{"text_format":"2","workbook":"xlsx","n_sheets":13,"sheets":["Lammet","Lähteiköt","Virtavedet","Avosuot","Puustoiset suot","Kangasmetsät yms.","Kosteat lehdot","Muut lehdot ja erityismetsät","Kalliojyrkänteet","Karut avokalliot","karuimmat- ja kalliometsät","Puustoiset perinnebiotoopit","Taul23"],"not_rendered":{"charts":0,"images":1,"macros":0,"external_links":0,"defined_names":8,"comments":0,"pivot_tables":0},"unopened":[],"bounds":{"document_bytes":16777216,"sheet_cells":100000,"run_cost":"one","rows_first":2000,"rows_last":500,"rows_between":2000,"halvings":0,"cell_chars":16384,"cell_head_chars":4096},"cells_cut":0,"cells_raw":0,"read":"whole","date_system":"1900"}

{"sheet":"Lammet","index":0,"n_rows":11,"n_cols":20,"rows_kept":11,"cut":false,"hidden":false,"merged":[]}
["3.3.2b. Lammet"]
[]
[]
["Mittarit",null,null,null,"Vesi- ja rantakasvillisuuden (putkilokasvit ja/tai jäkälät ja/tai sammalet) edustavuus: lajisto ja kasvillisuuden rakenne (runsaus, peittävyys, lajien/lajiryhmien runsaussuhteet)","Valuma-alueen tila","Vedenpinnan taso ja vaihtelu","Umpeenkasvu","Ranta- ja lähivyöhykkeen luonnontilaa muuttaneiden tekijöiden vaikutus (esim. metsä- tai suo-ojat, rantametsien hakkuut, hakkuualueiden auraus tai äestys, rakentaminen)","Haitalliset vieraslajit","Vesirakentaminen ja pohjan muokkaus (esim. ruoppaus, läjitys)"]
["Mittarin suhteellinen painokerroin",null,null,null,2,2,2,2,2,2,1]
[]
["Kuvionro","Apusarake","LuTu-luontotyyppi (koodi)","Kuvion pinta-ala, ha","Mittarin arvo (0,1 -1,0)","Mittarin arvo (0,1 -1,0)","Mittarin arvo (0,1 -1,0)","Mittarin arvo (0,1 -1,0)","Mittarin arvo (0,1 -1,0)","Mittarin arvo (0,1 -1,0)","Mittarin arvo (0,1 -1,0)","Luonnonarvovastaavuus","Luonnonarvohehtaarit","METSO-kohde","Natura-TYYPPI","Natura edustavuus","METE (ML 10 §)","vesilakikohde (VL 11 §)","Uhex","Muuta erityistä, esim lajisto"]
[140,"Ylimmäinen Korvalampi","V02.04 Suolammet",4.9000000000000004,1,0.7,0.8,1,0.7,1,0.9,{"$f":"(2*SUM(E8:J8)+SUM(K8:K8))/(2*COLUMNS(E8:J8)+COLUMNS(K8:K8))","v":0.86923076923076925},{"$f":"(PRODUCT(D8,L8))","v":4.2592307692307694},"ei","Humuspitoiset järvet ja lammet (3160)","hyvä","ei","ei","NT","Länsireunan nevalaide hyvin kehittynyt, itärannalla yksityinen laavu,  laituri ja uimapaikka. Eteläreunalla kapea, lajistoltaan tyypillinen laide. Ojituksista kuormitusta, tumma, humuspitoinen vesi. Ulpukkaa, nevalaiteiden kasvillisuus tyypillinen. Vedenpinnan tasossa ollut mahdollisesti lievää vaihtelua (kuolleet nuoret puut nevalaiteella; majava?)."]
[180,"Alimmainen Korvalampi","V02.04 Suolammet",4.9000000000000004,0.9,0.6,1,1,0.6,1,0.9,{"$f":"(2*SUM(E9:J9)+SUM(K9:K9))/(2*COLUMNS(E9:J9)+COLUMNS(K9:K9))","v":0.85384615384615381},{"$f":"(PRODUCT(D9,L9))","v":4.1838461538461535},"ei","Humuspitoiset järvet ja lammet (3160)","hyvä","ei","ei","NT","Pohjoisrannan nevalaide melko hyvin kehittynyt, itärannalla pelastusopiston harjoitusalueen laituri ym. muokattua rantaa. Vesi tummaa, humuspitoista, ulpukkaa vedessä ja lähellä korvapuron suuta suursaroja, sekä hieman järviruokoa. Ympäröivillä metsäalueilla ojituksia. Yhä edustava."]
[307,"Heinälampi","V02.04 Suolammet",0.7,0.7,0.5,0.9,1,0.6,1,0.9,{"$f":"(2*SUM(E10:J10)+SUM(K10:K10))/(2*COLUMNS(E10:J10)+COLUMNS(K10:K10))","v":0.79230769230769238},{"$f":"(PRODUCT(D10,L10))","v":0.55461538461538462},"ei","Humuspitoiset järvet ja lammet (3160)","hyvä","ei","kyllä","NT","Louhos, ojitukset ja harvennushakkuut valuma-alueella ovat heikentäneet Heinälammen luonnontilaa. Merkkejä lievästä rehevöitymisestä. Ulpukkaa ja lummetta, sekä mahdollisesti vitoja lammessa. Suolaide ja luhdan kasvillisuus hyvin kehittyneitä ja yhä edustavia. Rimpivesiherne runsas luhdassa."]
[319,"Poskilampi","V02.03 Metsälammet",4.5999999999999996,1,0.2,1,1,0.7,1,1,{"$f":"(2*SUM(E11:J11)+SUM(K11:K11))/(2*COLUMNS(E11:J11)+COLUMNS(K11:K11))","v":0.83076923076923082},{"$f":"(PRODUCT(D11,L11))","v":3.8215384615384616},"ei","Humuspitoiset järvet ja lammet (3160)","hyvä","ei","ei","NT","Edustava, rannoiltaan luonnontilaisen kaltainen metsälampi. Vesi kirkasta, tummaa, näkyvyys noin 1,5 m. Lumpeita, ulpukkaa, uistinvitaa vähän. Rantavyöhykkeessä paikoin hieman rantakukkaa, suoputkea, jouhisaraa, kurjenjalkaa. Kasvillisuus niukkaa. Rantavyöhyke melko luonnontilainen, mutta pohjoisrannalla heti kapean vyöhykkeen takana tehty hakkuu, jossa nyt nuorta taimikkoa. Koilliskulmalla rannalla epämääräisiä letkuja vedessä, jotka johtavat tyhjien kanisterien luo. Muutama oja, eteläkulmalla melko leveä jossa virtaa hitaasti Poskilampeen punasakkaista seisovaa ja sameaa vettä ja ojan suulla vehkakasvustoa."]

{"sheet":"Lähteiköt","index":1,"n_rows":13,"n_cols":28,"rows_kept":13,"cut":false,"hidden":false,"merged":[]}
["4.3.1. Lähteiköt"]
[]
[]
["Mittarit",{"$nulls":4},"Lähdevaikutteinen pinta\u0002ala (sisältäen erilaiset allikot, hetteiköt, tihkupinnat yms. sekä niiden muodostamat kompleksit","Lähteikön tilaan vaikuttava ihmistoiminta (esim. perkaukset, ojitukset, vedenottoon liittyvät rakenteet kuten kaivaminen, kaivonrenkaat ja kiveämiset)","Antoisuus","Pohjaveden purkaumien sijainti","Pintavesivaikutus ja veden laatu","Lähiympäristön tilaan vaikuttava ihmistoiminta (esim. maa-ainesten otto, pellonraivaus, tiestö, metsätalous)"]
["Mittarin suhteellinen painokerroin",{"$nulls":4},2,1,1,1,1,1]
[]
[null,null,"Tee tarvitatessa usempi rivi samalle kuviolle, jos useita lähteikköluontotyyppejä!"]
["Kuvionro","Apusarake","LuTu-luontotyyppi (koodi)","LuTu-tyypin % kuviosta","Kuvion pinta-ala, ha","Mittarin arvo (0,1 -1,0)","Mittarin arvo (0,1 -1,0)","Mittarin arvo (0,1 -1,0)","Mittarin arvo (0,1 -1,0)","Mittarin arvo (0,1 -1,0)","Mittarin arvo (0,1 -1,0)","Luonnonarvovastaavuus","Luonnonarvohehtaarit","METSO-kohde","Natura-TYYPPI","Natura edustavuus","METE (ML 10 §)","vesilakikohde (VL 11 §)","Uhex","Muuta erityistä, esim lajisto"]
[123,"Korpelan tihkupintalähde, kuivunut, vielä edustava","V03.01 Lähteiköt",99,0.3,0.4,0.6,0.5,0.8,1,0.9,{"$f":"(2*SUM(F9:F9)+SUM(G9:K9))/(2*COLUMNS(F9:F9)+COLUMNS(G9:K9))","v":0.65714285714285725},{"$f":"(PRODUCT(E9,L9))","v":0.19714285714285718},"Kyllä","Lähteet ja lähdesuot (7160)","merkittävä","Kyllä","Kyllä","VU","\"Myös luonnontilansa osittain menettäneet lähteiköt, esimerkiksi sellaiset joissa on vanhoja vedenottoon liityviä rakenteita, voivat olla edustavia lajistoltaan\" (Airaksinen & Karttunen 2001). Korpinurmikka (NT, RT) ja hentosara (NT), kevätlinnunsilmä paikoin runsas. Lähiympäristö lähes luonnontilainen, yksi vanha rengaskaivo kauempana lähteikön reunalla, ojassa, Hepomäen louhos kuivattanut."]
[158,"Korvaharju 267 tihkupintalähde, rengaskaivo","V03.01 Lähteiköt",100,0.1,0.5,0.3,0.4,0.3,1,0.8,{"$f":"(2*SUM(F10:F10)+SUM(G10:K10))/(2*COLUMNS(F10:F10)+COLUMNS(G10:K10))","v":0.54285714285714282},{"$f":"(PRODUCT(E10,L10))","v":5.4285714285714284E-2},"ei","Lähteet ja lähdesuot (7160)","ei merkittävä","ei","ei","VU","Ei tietoa millainen ollut purkautuma ennen kaivoa. Kaivon NW-puolella pieni suora \"ränni\" luoteeseen kohti rantaa. Mahdollisesti noro, jonka uomaa muokattu?Palautumassa luonnontilaisen kaltaiseksi, suojaava puusto ja muu kasvillisuus. Käytössä oleva rengaskaivo, josta letku rantaa kohti. Hieman vettä purkautuu edelleen kaivon alapuolelta rinteeseen. Pienialainen, mutainen tihkupinta. Lehväsammalia, suokeltto, rönsyleinikki, ojakellukka, palmusammal. Ku, hale runsas, pi, käenkaali, hiirenporras, metsäimarre, sudenmarja, oravanmarja, lehtokorte, ahomansikka, lehtoruusukesammal.",{"$nulls":7}," "]
[183,"Liukon tihkupintalähde ja noro","V03.01 Lähteiköt",90,0.8,0.9,0.8,1,1,1,0.6,{"$f":"(2*SUM(F11:F11)+SUM(G11:K11))/(2*COLUMNS(F11:F11)+COLUMNS(G11:K11))","v":0.88571428571428557},{"$f":"(PRODUCT(E11,L11))","v":0.70857142857142852},"Kyllä","Lähteet ja lähdesuot (7160)","erinomainen","Kyllä","Kyllä","VU","Tihkupintainen lähde, pinta paikoin hyllyvän upottava. Kasvillisuus edustava, mm. pikkuvelholehteä runsaasti. Hale valtainen, tuomi, mustaherukka, vadelma, hiirenporras, korpi-imarre, suokeltto, kurjenjalka, suo- ja korpiorvokki, metsä- ja lehtokorte, leskenlehti, käenkaali,ojakellukka, rentukka, karhunputki, mesiangervo, lehväsammalet. Ympäröivä kasvillisuus lehtoa, jossa vielä kookkaita puita, mutta ympäröiviä metsäalueita käsitelty. Kuviolla myös noro, jonka uoma oli kartoitusajankohtana kuiva, mutta jossa kasvoi lehväsammalia ja isokastesammalta, sekä hiirenporrasta, metsäalvejuurta, lehtokortetta, mustaherukkaa, korpikastikkaa, korpiorvokkia, korpi-imarretta ja tuomea. Noro kulkee lähteen eteläpuolelta itäkoilliseen alas rinnettä. Viereinen metsä harvennettu hiljan reippaasti. ULKOPUOLELLA"]
[317,"Tihkupintainen lähde","V03.01 Lähteiköt",100,0.1,0.9,0.8,1,1,0.9,0.7,{"$f":"(2*SUM(F12:F12)+SUM(G12:K12))/(2*COLUMNS(F12:F12)+COLUMNS(G12:K12))","v":0.88571428571428557},{"$f":"(PRODUCT(E12,L12))","v":8.8571428571428565E-2},"Kyllä","Lähteet ja lähdesuot (7160)","erinomainen","Kyllä","Kyllä","VU","Tihkupuntainen lähde ja sen ympärille muodostunut lähdelehtokorpi. Mutainen, hirvet etsineet vettä, kartoitus hyvin kuivana ajankohtana. Kevätlinnunsilmä runsas, samoin leskenlehti. Suokeltto, suo-orvokki, ojakellukka, hiirenporras, mesiangervo, lähdelehväsammal, palmusammal, rönsyleinikki, käenkaali, karhunputki, lehtokuusama, vadelma, iso- ja metsäalvejuuri. Erirakenteinen puusto. Lähteikön lähistöllä tehty metsänhoitotoimia, kuvion lounaisreuna talousmetsän puolella. Suojavyöhyke voisi olla leveämpi."]
[{"$nulls":4},{"$f":"SUM(E9:E12)","v":1.3000000000000003}]

{"sheet":"Virtavedet","index":2,"n_rows":33,"n_cols":19,"rows_kept":33,"cut":false,"hidden":false,"merged":[[5,12,5,13]]}
["5.3.1. Virtavedet"]
[]
[]
["Mittarit",null,null,"Uoman rakennepiirteet luontotyypille ja paikallisolosuhteille ominaisella tavalla (esim. vaihteleva raekoko, koski\u0002ja suvantoalueet, mutkittelevuus, meanderointi) ja niiden muuttuminen ihmistoiminnan vuoksi (esim. perkaukset, suoristukset, rakentaminen)","Valuma-alueen tila","Kasvillisuuden \n(putkilokasvit ja/tai \nsammalet) edustavuus: \nlajisto ja kasvillisuuden \nrakenne (runsaus, \npeittävyys, \nlajien/lajiryhmien \nrunsaussuhteet)","Säännöstely","Esteettömyys (padot, tierummut ja muut esteet)","Ranta- ja lähivyöhykkeen tilaa muuttaneen ihmistoiminnan vaikutus (esim. ojitukset, rantametsien hakkuut, hakkuualueiden auraus tai äestys, rakentaminen)"]
["Mittarin suhteellinen painokerroin",null,null,2,2,1,1,1,1]
[]
["Kuvionro","LuTu-luontotyyppi (koodi)","Kuvion pinta-ala, ha","Mittarin arvo (0,1 -1,0)","Mittarin arvo (0,1 -1,0)","Mittarin arvo (0,1 -1,0)","Mittarin arvo (0,1 -1,0)","Mittarin arvo (0,1 -1,0)","Mittarin arvo (0,1 -1,0)","Ekologinen tila/Luonnonarvovastaavuus","Luonnonarvohehtaarit","METSO kohde","NATURA-tyyppi","Natura-edustavuusluokka","METE (ML 10 §)","vesilakikohde (VL 11 §)","LSL 64-65 § kohde","Uhex","Muuta"]
[10,"Havumetsävyöhykkeen latvapurot V04.02.02",0.13,0.7,0.4,0.5,0.9,0.9,0.2,{"$f":"(2*SUM(D8:E8)+SUM(F8:I8))/(2*COLUMNS(D8:E8)+COLUMNS(F8:I8))","v":0.58750000000000002},{"$f":"(PRODUCT(C8,J8))","v":7.6375000000000012E-2},"ei","pikkujoet ja purot (3260)","merkittävä,  poikkeama ihmistoiminnan aiheuttama","ei luonnontilainen/luonnontilaisenkaltainen ympäristö","ei","ei","NT","Uoma on luonnontilainen eli siihen ei ole varsinaisesti koskettu mutta ympäristö kokonaan muuttunut, uomassa hiukan vettä ja näkyy myös tyypillisiä pieniä  \"suvantopaikkoja\" ja kiemurteleva. Ns virallinen valuma-alue on iso yli 10 km2 mutta käytännössä ko. pienen uoman reaalinen valuma-alue on hyvin pieni "]
[86,"Havemetsävyöhykkeen norot V04.02.01",0.5,0.7,0.5,0.9,0.8," ",0.8,0.61250000000000004,0.30625000000000002,"ei","ei","ei","Lähteiden, purojen ja pysyvän vedenjuoksu-uoman muodostavien norojen sekä pienten lampien välittömät lähiympäristöt","Luonnontilainen tai luonnontilaisen kaltainen noro","ei","DD","Uomaa on varmasti joskus oiottu ja kaivettu, mutta se on paikoin hyvin luonnontilaisen oloinen. Kartoitushetkellä iso osa uomasta oli kuiva. Uomassa on paikoin isoja kiviä sekä myös lahopuuta. Uoman rannat ovet myös edustavia puustoltaan ja kasvillisuudeltaan (lehtoa). Uoma on leveä eli ei kovin noromainen vaan ennemminkin puromainen. Liittyy METSO-kohteeseen (kuvio 67)"]
[111,"V04.02.02 Havumetsävyöhykkeen norot ",0.3,0.7,0.5,1,0.7,0.8,0.9,0.72499999999999998,0.2175,"ei","ei","ei","Lähteiden, purojen ja pysyvän vedenjuoksu-uoman muodostavien norojen sekä pienten lampien välittömät lähiympäristöt","Kyllä, luonnontilainen tai luonnontilaisen kaltainen noro","ei","DD","Uoma on joskus kaivettu ojaksi, varsinkin Purolan lähellä vielä näkyvissä hieman kaivuuvalleja. Tällä jaksolla palautunut pitkälti luonnontilaisen kaltaiseksi, ainoat rummut jakson alussa, jossa noro virtaa Purolasta, sekä radan ali kuviolle. Uoma noin 1-2,5 m leveä ja vaihdellen noin 0,5-1 m syvä, loivasti mutkitteleva, osin suorahko, haaroo paikoin. Uoma suurelta osin hyvinkin kivinen,kivet sammaleisia, pyöreähköjä,  paikoin hiekkaa ja hienompaa ainesta. Runsas kasvillisuus ja puusto varjostaa uomaa koko jaksolla, lajisto tyypillinen. Lahopuuta melko runsaasti uomassa ja sen ympärillä. Isonäkinsammalta ja lehväsammalia uomassa.Vesi kirkasta, vähän uoman pohjalla, virtaa verkkaisesti.liittyy metsokohteeseen (kuviot 110 ja 112)"]
[147,"V04.02.04 Havumetsävyöhykkeen purot ja pikkujoet",0.1,0.5,0.5,0.8,1,1,0.6,0.67500000000000004,6.7500000000000004E-2,"ei","Pikkujoet ja purot (3260)","hyvä,  poikkeama ihmistoiminnan aiheuttama","Lähteiden, purojen ja pysyvän vedenjuoksu-uoman muodostavien norojen sekä pienten lampien välittömät lähiympäristöt","ei","ei","VU","Uoma leveähkö, suorahko, syvä, runsaasti lahopuuta uomassa (myös järeää), isonäkinsammalta, vesitähtiä, suursaroja, vehkaa ja nuijapäitä uomassa, ympäröivä kasvillisuus luonnontilaisen kaltaista, suistoa kohti rehevöityvää, tummaa humuksen värjäämää vettä runsaasti, virtaa verkkaisesti, useita suoria sivuojia, joissa runsaasti kasvillisuutta. Rantapenkassa suurehko pesäkolo, jonka päällä jätös (mahdollisesti saukon?). liittyy metsokohteeseen (kuvio 146)"]
[151,"V04.02.04 Havumetsävyöhykkeen purot ja pikkujoet",0.1,0.7,0.6,0.9,1,1,0.7,0.77499999999999991,7.7499999999999999E-2,"ei","Pikkujoet ja purot (3260)","hyvä,  poikkeama ihmistoiminnan aiheuttama","Lähteiden, purojen ja pysyvän vedenjuoksu-uoman muodostavien norojen sekä pienten lampien välittömät lähiympäristöt","ei","ei","VU","Uoma 2,5-4 m leveä, paikoin suora, kaivuuvalli havaittavissa ja paikoin kevyesti mutkitteleva. Uoman pohjalla hiekkaa, kiviä, soraa, runsaasti lahopuuta ja varjostavaa puustoa & kasvillisuutta. Vesi virtaa paikoin verkkaisesti, paikoin reippaammin , kirkasta, mutta humuksen tummaksi värjäämää. Suursaroja, vesitähteä, isonäkinsammalta, terttualpia, rantaminttua, vehkaa, pohjoisosassa suursaniaisia."]
[171,"V04.02.04 Havumetsävyöhykkeen purot ja pikkujoet",0.4,0.8,0.6,0.7,1,0.9,0.7,0.76249999999999996,0.30499999999999999,"ei","Pikkujoet ja purot (3260)","Erinomainen","Kyllä, puron välitön lähiympäristö","ei","ei","VU","Sivuojia, silti edustava. Ainoa rumpu kuvion lopussa, missä Korvapuro alittaa Korvaharjun tien. Uomassa leveys ja syvyysvaihtelua, mutkittelua, sekä koskia ja suvantoja. Uoman pohja vaiheleva, kivikot sammalpeitteisiä. Varjostava puusto ja kasvillisuus, hyvin lahopuuta ja paikoin lehtoryteikkköä.Ympäröivä kuvio 170 METSO-kohde"]
[241,"V04.02.04 Havumetsävyöhykkeen purot ja pikkujoet",1.1000000000000001,0.8,0.6,0.9,1,1,0.7,0.79999999999999993,0.88,"ei","Pikkujoet ja purot (3260)","Erinomainen","Kyllä, puron välitön lähiympäristö","ei","ei","VU","Pari sivuojaa, pohjoispäätä muokattu aiemmin. Suurelta osin, varsinkin keskiosiltaan hyvin luonnontilainen. Vesi on kirkasta, koskia, suvantoja. Uomassa leveys ja syvyysvaihtelua, sekä mutkittelua. Pohjalla vaihdellen eri kokoisia kiviä, hiekkaa, soraa, mutaaa. Suistoalueella puro haarautuu, jokunen juolua jäänyt mahdollisesta majavien tulvituksesta. Pohjoisosassa ollut selvästi majavapato ja majavien tulvittama metsä. Uomassa kasvoi paikoin mm. suursaroja, terttualpia, keltakurjenmiekkaa, korpikastikkaa, rentukkaa, vehkaa, ulpukkaa, isonäkinsammalta ja raatetta. "]
[255,"V04.02.02 Havumetsävyöhykkeen norot ",0.1,1,0.8,1,1,0.7,0.9,0.9,9.0000000000000011E-2,"ei","ei","ei","Kyllä, noron välitön lähiympäristö","kyllä","ei","DD","Lähes luonnontilainen, Karttulantien ali pohjoisesta laskeutuva noro rinnenotkelmassa. Mahdollinen Karttulantien ali kulkevan rumpuputken suu ei ollut tiheän kasvillisuuden vuoksi näkyvillä, muutoin esteetön kulku. Valuma-aluetta vain vähäisesti muutettu: latvaosissa hakkuita, alempana uoman varrella lähde."]
[283,"V04.02.04 Havumetsävyöhykkeen purot ja pikkujoet",1.5,1,0.5,1,1,0.8,0.9,0.83749999999999991,1.2562499999999999,"ei","Pikkujoet ja purot (3260)","erinomainen","ei","ei","ei","VU","Pitkälti luonnontilainen, edustava, samoin kasvillisuus. Valuma-alueella sijaitsee mm. kaatopaikka ja pelastusopiston harjoitusalue. Liittyy METSO-kohteeseen"]
[467,"V04.02.04 Havumetsävyöhykkeen purot ja pikkujoet",1,1,0.5,1,1,0.8,0.9,0.83749999999999991,0.83749999999999991,"ei","pikkujoet ja purot (3260)","Erinomainen","kyllä","ei","ei","VU","Myllyjoen varren osuus, joka metsälakikohteena ja METSO-kohteena.  Pitkälti luonnontilainen, edustava, samoin kasvillisuus. Valuma-alueella sijaitsee mm. kaatopaikka ja pelastusopiston harjoitusalue."]
[289,"V04.02.04 Havumetsävyöhykkeen purot ja pikkujoet",0.5,0.6,0.3,0.8,1,0.6,0.6,0.6,0.3,"ei","Pikkujoet ja purot (3260)","hyvä,  poikkeama ihmistoiminnan aiheuttama","kyllä","ei","ei","VU","Valuma-alue on hieman alle 10 neliökilometria, mutta uomassa oli vettä hyvin kuivana ajankohtana elokuussa ja kalakulun katsotaan olevan hyvinkin mahdollista, joten virtavesi katsotaan puroksi. Viereinen kaatopaikka, sekä aivan uoman tuntumassa suoritetut hakkuut ovat heikentäneet luonnontilaa."]
[291,"V04.02.02 Havumetsävyöhykkeen norot ",0.2,0.7,0.6,0.9,1,1,0.8,0.78749999999999998,0.1575,"ei","ei","ei","kyllä","kyllä","ei","DD","Noron yläjuoksulla uoma perattu ojaksi, mutta kuviolla pitkälti luonnontilaisen kaltainen, kapea. Kartoitusajankohtaan suurelta osin kuiva. Ympäröivä kuvio on METSO-kohteena."]
[292,"V04.02.02 Havumetsävyöhykkeen norot ",0.1,0.5,0.5,1,1,1,0.8,{"$f":"(2*SUM(D20:E20)+SUM(F20:I20))/(2*COLUMNS(D20:E20)+COLUMNS(F20:I20))","v":0.72499999999999998},{"$f":"(PRODUCT(C20,J20))","v":7.2499999999999995E-2},"ei","ei","ei","kyllä","kyllä","ei","DD","Noro lähtee Kaatopaikantien reunamilta jätteenkäsittely/maanläjitysalueen kulmalta ja sen uoman yläosa on liettynyt, uoma hävinnyt ja vedessä sakeaa oranssia rautasaostumaa. Alempana uoma luonnontilaisen kaltainen ja vesi kirkasta."]
[293,"V04.02.02 Havumetsävyöhykkeen norot ",0.5,0.8,0.7,1,1,0.9,0.6,0.8125,0.40625,"ei","ei","ei","kyllä","kyllä","ei","DD","Edustava pieni noro ja rikas noronvarsilehdon kasvillisuus uomaosuuden yläjuoksulla. Suurin osa uomaa kuitenkin todennäköisesti muokattu, mutta palautumassa luonnontilaan (ollut peltoa 1980-luvulle). Osa kuviosta tulkittu."]
[298,"V04.02.02 Havumetsävyöhykkeen norot ",0.2,0.4,0.3,1,1,1,0.8,0.64999999999999991,0.12999999999999998,"ei","ei","ei","kyllä","kyllä","ei","DD","Uomaa muokattu, palautumassa, mutta kärsiiviereisestä kaatopaikasta ja yläjuoksun hakkuista. Laskee Heinälamminojaan. Uomassa paljon hiekkkaa ja vähän roskaa. Kasvillisuus edustava, puusto erirakenteista, osin vanhaa, osin nuorempaa."]
[303,"V04.02.04 Havumetsävyöhykkeen purot ja pikkujoet",0.5,0.7,0.4,0.7,1,0.5,0.5,0.61250000000000004,0.30625000000000002,"ei","Pikkujoet ja purot (3260)","merkittävä,  poikkeama ihmistoiminnan aiheuttama","kyllä","ei","ei","VU","Heinälamminojan luonnontilaisen kaltaiset uomaosuudet katsotaan puroiksi, sillä vettä runsaasti ja kalankulku merkittvävssä määrin mahdollista, vaikka valuma-alue onkin alle 10 neliökilometriä. Osuus tulkittu. Ilmakuvissa erottuu yhä luontainen, meanderoiva uoma ja luhtainen lähiympäristö. Ojitukset ja louhostoiminta kuitenkin selkeästi heikentäneet luonnontilaa. Louhoksen läpi kulkeva huoltotie kulkee uoman päältä. Ennallistettavaissa."]
[305,"V04.02.02 Havumetsävyöhykkeen norot ",0.1,0.9,0.6,0.9,1,1,0.6,0.8125,8.1250000000000003E-2,"ei","ei","ei","kyllä","kyllä","ei","DD","Luonnontilaisen kaltainen pieni noro rinteessä. Yläjuoksulla uomaa muokattu harvennushakkuiden yhteydessä (viereinen kuvio). Mahdollisesti purokinnassammalta, tai muuta Scapania-suvun sammalta noron kivillä paikoin runsaasti. Kartoitusajankohtana uoma kuiva."]
[310,"V04.02.04 Havumetsävyöhykkeen purot ja pikkujoet",0.3,0.7,0.8,0.9,1,1,0.7,0.82499999999999996,0.24749999999999997,"ei","Pikkujoet ja purot (3260)","erinomainen","kyllä","ei","ei","VU","Heinälamminojan luonnontilaisen kaltainen uomaosuus. Vierellä vanhoja, leveitä ojituksia, jotka eivät kuitenkaan ole kuivattaneet juuri aluetta ja vanha uoma myös ennallaan. Suopuro tässäkohdin. Länsiranta puustoinen, itärannalla puustoista ja avosuota. Vesi syvää, tummaa, kirkasta, verkkaalleen virtaavaa. Uoma 1,5-3 m leveä, meanderoiva, paikoin suorempi. Vedessä vesisammaleita, ulpukkaa, palpakoita, suursaroja, raatetta, vehkaa, mahdollisesti ärviöitä tai vesisammalia."]
[313,"V04.02.04 Havumetsävyöhykkeen purot ja pikkujoet",0.3,0.7,0.8,0.9,1,1,0.7,0.82499999999999996,0.24749999999999997,"ei","Pikkujoet ja purot (3260)","erinomainen","kyllä","ei","ei","VU","Heinälamminojan luonnontilaisen kaltainen uomaosuus. Vierellä vanhoja, leveitä ojituksia, jotka eivät kuitenkaan ole kuivattaneet alkuperäistä uomaa. Vesi kirkasta, verkkaalleen etenevää, ei kovin humuspitoista. Uoma tässä kohden matala, mutkitteleva, noin 1,5 m leveä, pohja mutainen. Uomassa ulpukkaa ja suomenlummetta, mahd. myös isolummetta, sekä uistinvitaa ja vehkaa. Rannat luonnontilaisen kaltaiset, puustoiset, luhtaiset. Ennallistamiskelpoinen ja arvokas."]
[325,"V04.02.02 Havumetsävyöhykkeen norot ",0.2,1,0.6,1,1,0.9,1,0.88749999999999996,0.17749999999999999,"ei","ei","ei","kyllä","kyllä","ei","DD","Kaatopaikantien reunalta, tai sen alta rinteeseen purkautuva noro, joka kulkee osin näkymättömissä kivikosa. Rehevä kasvillisuus, mm. mesiangervoa,  kotkansiipeä,hiirenporrasta, mustaherukkaa, hajuheinää, lehväsammalia, hieman vehkaa ja punakoisoa. Vettä paikoin näkyvissä."]
[376,"V04.02.02 Havumetsävyöhykkeen norot ",0.2,1,0.5,1,1,1,1,0.875,0.17500000000000002,"ei","ei","ei","kyllä","kyllä","ei","DD","Osin näkymättömissä, kasvillisuuden seassa painanteessa kulkeva noro. Uoma vaikeammin rajattavissa, lähtee todennäköisesti ylempää rinteestä. Jo aiemmin tunnistettu METE-kohde. Yläpuolisella valuma-alueella suuri louhosalue, jonka vaikutuksesta noron vesitalouteen ei tietoa. Kasvillisuus edustavaa."]
[381,"V04.02.02 Havumetsävyöhykkeen norot ",0.6,0.6,0.5,1,1,1,0.7,{"$f":"(2*SUM(D29:E29)+SUM(F29:I29))/(2*COLUMNS(D29:E29)+COLUMNS(F29:I29))","v":0.73750000000000004},{"$f":"(PRODUCT(C29,J29))","v":0.4425},"ei","ei","ei","kyllä","kyllä","ei","DD","Noron yläjuksulla viereisellä kuviolla tehty hakkuu ja kuvion rajalla metsää kaadettu. Uoma vielä luonnontilaisen kaltainen, kasvillisuus edustavaa, lähempänä Korvapuroa luonnontilaisuus kasvaa ja varren lehtokorpi edustava."]
[397,"V04.02.02 Havumetsävyöhykkeen norot ",0.1,0.5,0.7,0.4,1,0.5,0.7,0.625,6.25E-2,"ei","ei","ei","kyllä","kyllä","ei","DD","Ojitetun ja luonnontilainsa menettäneen noron viimeinen, luonnontilaisen kaltainen osuus. Uomassa runsaasti lahopuuta, uoma syvenee kohti radan alitusta ja siihen tulee lievää mutkittelua. Perkausvalleja vielä näkyvissä. Puusto osin varttunutta, suuria haapoja ja mm. koivulahopuuta. Tyypillinen kasvillisuus vähäistä: isoalvejuuri, metsäalve, soreahiirenporras. Kartoitusajankohtana kuiva. Yläjuoksun osuuksien ennallistaminen voisi parantaa tilaa. Merkitystä myös alajuoksulle, jossa jatkuu radan alitettuaan luonnontilaisen kaltaisena norona."]
[419,"V04.02.02 Havumetsävyöhykkeen norot ",0.1,0.8,0.6,0.9,1,1,0.5,0.77499999999999991,7.7499999999999999E-2,"ei","ei","ei","kyllä","kyllä","ei","DD","Noro ilmeisesti aikoinaan ojitettu, mutta palautunut luonnontilaisen kaltaiseksi. Kuvion yläpuolinen osuus ojitettu. Kartoitusajankohtana elokuussa kuiva. Kasvillisuus tyypillistä, uoman reunamilla kosteaa lehtoa. Jokunen järeähkö haapa, paikoin lehtokuusama runsas. Lähiympäristössä suoritettu  harvennushakkuita, mutta puustoa jätetty välittömään läheisyyteen. Avohakkuu tehty viimeksi 1990-luvun puolivälissä."]
[451,"V04.02.02 Havumetsävyöhykkeen norot ",0.2,0.6,0.7,0.7,0.8,0.7,0.6,0.67500000000000004,0.13500000000000001,"ei","ei","ei","kyllä","kyllä","ei","DD","Tulkittu. Kts. Ylävirtaan kuvio 86. Vaikuttaa samankaltaiselta. Vuoden 2014 selvityksessä mainitaan ojana. Sittemmin todennäköisesti palautunut luonnontolaisen kaltaiseksi."]
[454,"V04.02.02 Havumetsävyöhykkeen norot ",0.1,0.7,0.7,0.7,1,1,0.7,0.77500000000000002,7.7500000000000013E-2,"ei","ei","ei","kyllä","kyllä","ei","DD","Tämä osuus melko luonnontilainen. Muutamasta kohtaa ajettu yli metsäkoneella ja mönkijällä. Virtaa suurimmaksi osaksi kasvillisuuden seassa piilossa. Osin kuiva."]

{"sheet":"Avosuot","index":3,"n_rows":14,"n_cols":19,"rows_kept":14,"cut":false,"hidden":false,"merged":[]}
["7.3.1. Avosuot"]
[]
[]
["Mittarit",null,null,null,"Suokasvillisuuden (putkilokasvit ja/tai sammalet) edustavuus: lajisto ja kasvillisuuden rakenne (runsaus, peittävyys, lajien/lajiryhmien runsaussuhteet)","Vesitalous","Umpeenkasvu","Muu ihmisvaikutus","Suon suhde ympäristöönsä (suoyhdistymän tila) Ei käytetä boreaalisilla piensoilla eikä yhdestä suotyypistä koostuvilla irrallisilla suolaikuilla."]
["Mittarin suhteellinen painokerroin",null,null,null,2,2,2,1,2]
[]
[null,"Tee tarvitatessa usempi rivi samalle kuviolle, jos useita avosoiden luontotyyppejä!"]
["Kuvionro","LuTu-luontotyyppi (koodi)","LuTu-tyypin % kuviosta","Kuvion pinta-ala, ha","Mittarin arvo (0,1 -1,0)","Mittarin arvo (0,1 -1,0)","Mittarin arvo (0,1 -1,0)","Mittarin arvo (0,1 -1,0)","Mittarin arvo (0,1 -1,0)","Luonnonarvovastaavuus","Luonnonarvohehtaarit","METSO kohde","NATURA-tyyppi","Natura-edustavuusluokka","Metsälaki 10 §","vesilakikohde (VL 2:11)","LSL 64-65 § kohde","Uhex","Muuta"]
["19","S05.03 Saranevat (luhtainen)","80",7.0000000000000007E-2,1,1,1,0.8,"ei",{"$f":"(2*SUM(E9:G9)+SUM(H9))/(2*COLUMNS(E9:G9)+COLUMNS(H9))","v":0.97142857142857142},{"$f":"(PRODUCT(D9,J9))","v":6.8000000000000005E-2},"ei","Vaihettumissuot ja rantasuot (7140)","Hyvä, poikkeama luontaisten syiden aiheuttama ","10 §:n vähäpuustoinen jouto- ja kitumaan suo","ei","ei","NT","Luonnontilainen mutta erittäin pieni kohde. Onko tässä ollut joskus aikoinaan kaivanto, joka liittyy kenties taloon? vuoden 1959 vanhassa kartassa näkyy pieni kosteikkomerkintä, sen jälkeisissä ei näy. Muutoin hiukan yllättävä paikka piensuolle jossa ei kuitenkaan merkkejä lähteisyydestä eikä avointa vettä mutta kuitenkin hyvin hyllyvä, eli jokin pieni syvä lampare ollut joskus vaikkei näy vanhoissa ilmakuvissa tms. Tai pieni suppa aluieella, jolla ei muutoin näy suppakuoppia. "]
["146","S05.02 Luhtanevat","45",0.7,0.9,0.7,0.8,1,"ei",0.82857142857142863,0.57999999999999996,"kyllä","Vaihettumissuot ja rantasuot (7140)","Hyvä, poikkeama ihmistoiminnan aiheuttama (ojitukset)","10 §:n luhdat","ei","ei","NT","Ylimmän Korvalammen nevalaide edustava, liittyy luhtaiseen ja ruohoiseen sarakorpeen, joka osin kuivunut turvekankaaksi ojitusten takia. Kuviolla Korvapuro (147) ja sen suisto. Lammen rantavyöhykkeen luhtainen suokokonaisuus kaikkiaan arvokas ja ennallistamiskelpoinen."]
["153","S07.02.01 Pajuluhdat","99",0.4,0.9,0.9,0.9,0.9,"ei",0.90000000000000013,0.3600000000000001,"ei","Vaihettumissuot ja rantasuot (7140)","Hyvä","10 §:n luhdat","ei","ei","LC","Keskimmäisen Korvalammen rantaluhta Korvapuron suistossa, melko luonnontilainen ja häiriötön. Kiilto- ja tuhkapaju, korpikastikka, hiirenporras, metsäkorte, suo-orvokki, suo-ohdake, keltakurjenmiekka, vehka, kurjenjalka. Tiheäkasvuinen, vaikeakulkuinen. Valokuvat puuttuvat."]
["179","S05.02 Luhtanevat","99",0.2,0.9,0.8,0.8,1,"ei",0.8571428571428571,0.17142857142857143,"ei","Vaihettumissuot ja rantasuot (7140)","Hyvä","10 §:n vähäpuustoinen jouto- ja kitumaan suo","ei","ei","NT","Laide pohjoisrannalla kohtalaisen hyvin kehittynyt. Taaempana ojituksia, jotka vaikuttaneet vaihettumissuovyöhykkeisiin."]
["308","S05.02 Luhtanevat","45",1.3,1,0.9,1,1,"ei",0.97142857142857142,1.2628571428571429,"kyllä","Vaihettumissuot ja rantasuot (7140)","erinomainen","10 §:n vähäpuustoinen jouto- ja kitumaan suo","ei","ei","NT","Osa Heinälampea ympäröivää luhtaisten suotyyppien kokonaisuutta. Rahkasammallaide laaja, hyvin kehittynyt. Myös paju- ja ruokoluhtaa. Jouhisara runsas, pullosara, suoputki, kurjenjalka, vaivero, terttualpi, vaivaiskoivu, karpalo, suohorsma, kiiltopaju, raate, rimpivesiherne, paikoin juolukka & suopursu, viitakastikka, järviruoko, järvikorte, suokorte, vehka, luhtalitukka, rantamatara, terttualpi, rantakukka."]
["309","S05.03 Saranevat (ruohoinen)","25",0.8,1,0.8,0.8,1,"ei",0.88571428571428579,0.70857142857142863,"kyllä","Vaihettumissuot ja rantasuot (7140)","erinomainen","10 §:n vähäpuustoinen jouto- ja kitumaan suo, vesistön välitön lähiympäristö","ei","ei","NT","Etelä-Suomessa uhex luokitus VU: \"Etelä-Suomen saranevojen selvästi voimakkaamman vähenemisen takia on esiintymisen painopiste siirtynyt entistä selvemmin Pohjois-Suomeen. Saranevat ovat vähentyneet etenkin hemi- ja eteläboreaalisella vyöhykkeellä ja keskiboreaalisen vyöhykkeen eteläosissa ojitusten takia.\" (Luontotyppien uhanalaisuus, Pun. kirjan verkkopalvelu). Kuviolla puro Heinälamminoja (310). Edustava kasvillisuus: suovalkkua (NT, RT), siniheinä, juurtosara, jouhisara, pullosara, raate, kurjenjalka, vaivaiskoivu, maariankämmekkä runsas. Vaihettuu idässä ja etelässä ruohoiseksi sararämeeksi. Puron länsipuolella saraluhtaa."]

{"sheet":"Puustoiset suot","index":4,"n_rows":61,"n_cols":22,"rows_kept":61,"cut":false,"hidden":false,"merged":[]}
["7.3.2. Puustoiset suot"]
["Mittarit",{"$nulls":4},"Suokasvillisuuden (putkilokasvit ja/tai jäkälät ja/tai sammalet) edustavuus: lajisto ja kasvillisuuden rakenne (runsaus, peittävyys, lajien/lajiryhmien runsaussuhteet","Vesitalous","Puuston rakenne (puuston tiheys, ikäjakauma, tilajakauma, latvuskerroksellisuus, lajijakauma","Lahopuun määrä","Muu ihmisvaikutus","Suon suhde ympäristöönsä (suoyhdistymän tila) Ei käytetä boreaalisilla piensoilla eikä yhdestä suotyypistä koostuvilla irrallisilla suolaikuilla.","Onko puustoltaan hakkuukelpoinen?"]
["Mittarin suhteellinen painokerroin",{"$nulls":4},2,2,2,1,1,2,"ei käytetä"]
[null,null,"Tee tarvitatessa usempi rivi samalle kuviolle, jos useita puustoisten soiden luontotyyppejä!"]
["Kuvionro","apusarake","LuTu-luontotyyppi (koodi)","LuTu-tyypin % kuviosta","Kuvion pinta-ala, ha","Mittarin arvo (0,1 -1,0)","Mittarin arvo (0,1 -1,0)","Mittarin arvo (0,1 -1,0)","Mittarin arvo (0,1 -1,0)","Mittarin arvo (0,1 -1,0)","Mittarin arvo (0,1 -1,0)","0= ei, 1=kyllä","Luonnonarvovastaavuus/Ekologinen tila","Luonnonarvohehtaarit","METSO-kohde","Natura TYYPPI","Natura edustavuus","METE (ML 10 §)","vesilakikohde (VL 2:11 )","LSL 64-65 § kohde","Uhex","Muuta erityistä, esim lajisto"]
[2," ","S01.02 Lehtokorpi",90,0.5,0.8,0.7,0.9,0.8,0.9,"ei",1,{"$f":"(2*SUM(F6:H6)+SUM(I6:J6))/(2*COLUMNS(F6:H6)+COLUMNS(I6:J6))","v":0.8125},{"$f":"(PRODUCT(E6,M6))","v":0.40625},"METSO-taulukossa","Lehdot (9050)","hyvä, poikkeama ihmistoiminnan aiheuttama","10 §:n lehto- ja ruohokorpi","ei","ei","VU","Velhonlehti ja korpikaisla"]
[7,null,"Entinen niittypelto/Lettomuuttuma",99,0.7,0.4,0.1,0.1,0.1,0.6,"ei",0,0.23749999999999999,0.16624999999999998,"ei","ei","ei","ei","ei","ei","ei","Hakattu, ojitettu/pusikoitunut alue. Ollut vielä 1975 länsipäästään peltoa ja sitä ennen niittypalstoja (esim ilmakuva 1949). Metsittynyt lehtipuustolla alkaen 80-luvulta. Itäpää ollut rehevää suota jolla jonkin verran puustoakin jne. Puro menee edelleen lävitse. Ei varmaa tietoa mikä Lutu-tyyppi mutta rehevää on ollut alunperin selvästi. Pieneltä märältä alueelta otettu sinnittelevä rahaksamal näyttää olevan  Sph. teres. Kohdassa on vielä märkää ja muutakin rehevän suon lajistoa."]
[9,null,"Entinen lehtokorpi, muuttuma",99,2.4,0.4,0.1,0.1,0.1,0.8,"ei",0,0.26250000000000001,0.63,"ei","ei","ei","ei","ei","ei","ei","Lehtokorpi lie uskottavin alkuperäisenä luonotyyppinä vrt alueen yleinen rehevyys ja kun katsoo ilmakuvaa vv 1949 (isoja puita) plus maastokartan suo-merkinnät. Puro on virrannut silloinkin kuvion läpi."]
[39,null,"S03.04 Isovarpuräme",99,2.2000000000000002,0.8,0.7,0.7,0.5,1,"ei",1,0.73750000000000004,1.6225000000000003,"ei","puustoiset suot (91D0)","hyvä, poikkeama ihmistoiminnan aiheuttama","ei","ei","ei","NT","myös maisemallisesti hieno kohde lammen vieressä"]
[41,null,"S01.01 Mustikkakangaskorpi",90,0.9,0.9,0.6,0.5,0.2,1,"ei",1,0.65,0.58500000000000008,"ei","Luonnonmetsät (9010)","hyvä, poikkeama ihmistoiminnan aiheuttama","ei","ei","ei","EN","löytyy myös Sphagnum wulfianum, metsäkoretta paikoin runsaasti"]
[42,null,"S03.04 Isovarpuräme",100,0.4,0.8,0.6,0.5,0.1,0.6,"ei",1,0.5625,0.22500000000000001,"ei","puustoiset suot (91D0)","merkittävä, poikkeama ihmistoiminnan aiheuttama","ei","ei","ei","NT","tien vieressä"]
[27,null,"Lehtokorpimuuttuma",99,0.3,0.8,0.5,0.4,0.6,0.9,"ei",0,0.61250000000000004,0.18375,"ei","ei","ei","ei","ei","ei","ei","Sis ojan joka kulkee läpi ja on osin puromainen (tulee kuviolta 28). Osa avointa, osa puustoista. Paikoin hyvin edustavaa kasvillisuutta vieläkin, vaikka lähinnä korpimuuttuma."]
[28,null,"Ruohokorpimuuttuma",99,0.1,0.5,0.5,0.8,0.8,0.9,"ei",0,0.66250000000000009,6.6250000000000017E-2,"ei","ei","ei","ei","ei","ei","ei","Erittäin tiheä ja paljon pystylahopuuta (sekä kuusi että koivu), lahopuuta muodostunut tod. näk. tulvittumisen kautta (avo-oja tukittu teollisuustontin puolelta). Kohteella sekä nuorta että vanhaa raitaa sekä leppää, paljon nuorta koivua ja pajupensaita (ml. kiiltopaju). Hyvin pensaikkoinen. Sanikkaisia ja korkeita heinäkasveja. Hyvä lintukohde. Säilyttämisen arvoinen kohde."]
[27,"kuviolle tuleva oja on osin puromainen reunoiltaan","Lehtokorpimuuttuma",99,0.3,0.5,0.5,0.3,0.6,0.8,"ei",0,0.5,0.15,"ei","ei","ei","ei","ei","ei","ei","liittyy edelliseen kohteeseen, oja, joka osin puromainen varreltaan virtaa myös tämän kuvion läpi (pohjakasvillisuus osin edustavaa)"]
[48,"LuNK aivan rannalla","Sarakorvet; luhtanevakorvet S02.02",40,0.24,1,1,1,1,1,"ei",1,1,0.24,"Kyllä, Metso-taulukossa","puustoiset suot (91D0)","Erinomainen","Vähäpuustoiset jouto- ja kitumaan suot sekä luhdat","ei","ei","VU","Erittäin paljon erilaatuista lahopuuta, hyvin luonnontilainen, kasvillisuudeltaan monipuolinen"]
[48,"sama kuvio kuin yllä, ei eroteltu","Korpirämeet S03.02",60,0.36,0.9,1,1,0.7,1,"ei",1,0.9375,0.33749999999999997,"Kyllä, Metso-taulukossa","puustoiset suot (91D0)","Hyvä, poikkeama luontaisten syiden aiheuttama","ei","ei","ei","EN"]
[54,"Ruohokangaskorpi","Kangaskorvet; ruohokangaskorvet S01.01",99,0.3,1,1,1,1,1,"ei",1,1,0.3,"Kyllä, Metso-taulukossa","Luonnonmetsät (9010)","Erinomainen","ei","ei","ei","EN"]
[90,"Pieni osa kuviota 90","Korpimuuttuma",5,0.3,0.3,0.3,0.4,0.1,0.3,"ei",1,0.3,0.09,"ei","ei","ei","ei","ei","ei",null,"Koivu, kuusi, suursaniaisia. Lajisto selvästi muuttunut, kuten myös vesitalous. Syviä metsäkoneuria."]
[99,"Kuivunut saniaislehtokorpi","Korpimuuttuma",99,2,0.4,0.3,0.7,0.5,0.7,"ei",1,0.5,1,"ei","ei","ei","ei","ei","ei",null,"Keskellä kulkee syväksi ja suoraksi kaivettu oja. Kuusi ja koivu valtapuina, myös yksittäisiä järeitä puita ja varttunutta puustoa. Liito-oravalle ok. Ollut osin saniaiskorpi ja osin saniaislehtokorpea, pohjoispäässä Purolan lähellä hieman kosteampaa, muutoin selvästi kuivunut. Seinäsammal ja kynsisammalet korvanneet rahkasammalia, paikoin korpikarhunsammal, korpirahkasammal. Runsaita hiirenporras, isoalvejuuri, metsäalvejuuri, korpi-imarre, metsäimarre, oravanmarja ja käenkaali. Paikoin metsätähti, mustikka, vadelma, lehtotesma, korpikastikka, puna-ailakki, ahomansikka, karhunputki. Muutama lehtokuusama, vaahtera, punaherukka, sudenmarja. Pohjoispäässä suo-orvokkia, suo-kelttoa ja suo-ohdaketta."]
[100,"MK ja SaK muuttumaa, kuivunut, puusto varttunutta ku, ko, ha","Korpimuuttuma",20,0.46,0.7,0.5,0.8,0.5,0.8,"ei",1,0.66249999999999998,0.30475000000000002,"kyllä","ei","ei","ei","ei","ei",null,"Ojituksia, pohja paikoin rahkainen, paikoin painunut. Muu osa kuviosta mustikkakangasta. METSO-pontentiaalia, varsinkin jos saa kehittyä rauhassa; puusto järeähköä (30-40 cm rinnank.) ja monilajista. Eteläosissa myös varttunutta haapaa: kuvio liito-oravalle sopivaa habitaattia."]
[122,"Lähteikkökorpi","S01.02 Lehtokorvet",90,0.6,0.8,0.6,0.8,0.9,1,null,1,0.78750000000000009,0.47250000000000003,"Kyllä, Metso-taulukossa","Lehdot (9050)","erinomainen","Kyllä, lähteikön välitön lähiympäristö","Kuviolla lähteikkö (123)","ei","VU","Puusto kuusivaltaista,erirakenteista, koi, ha, rai, lahopuuta hyvin. Kasvillisuus tyypillistä, vaikka kuviolla sijaitseva lähteikkö kuivahtanut läheisen Hepomäen louhoksen takia.Liittyy vanhan metsän METSO-kohteeseen (124). \"Myös luonnontilansa osittain menettäneet lähteiköt, esimerkiksi sellaiset joissa on vanhoja vedenottoon liityviä rakenteita, voivat olla edustavia lajistoltaan\" (Airaksinen & Karttunen 2001). Korpinurmikka (NT, RT) ja hentosara (NT), kevätlinnunsilmä paikoin runsas. Vanha rengaskaivo lähteikön reunalla, sijainti vaihdellut."]
[139,"Ojitettu isovarpuräme","S03.04 Isovarpuräme",98,0.4,0.8,0.7,0.7,0.5,0.9,null,1,0.72500000000000009,0.29000000000000004,"ei","puustoiset suot (91D0)","hyvä","ei","ei","ei","NT","Ojituksesta huolimatta vesitalous vielä luonnontilaisen kaltainen ja kasvillisuus säilynyt. Lammen rannassa nevalaide. Muodostaa Ylimmän Korvalammen kanssa edustavan kokonaisuuden. Samaa luontotyyppikuviota kuin 39."]
[146,"Ojitettu luhtainen ja ruohoinen hieskoivukorpi","S02.02 Sarakorvet",40,0.7,0.7,0.6,0.7,0.6,1,null,1,0.7,0.48999999999999994,"Kyllä, Metso-taulukossa","puustoiset suot (91D0)","hyvä","kyllä","ei","ei","VU","Ruohoinen ja luhtainen ojitettu sarakorpi, joka osin kuivunut. Harajuuri (RT), hentosara (NT). Vaihettuu luhtanevaan Ylimmäisen korvalammen rannassa. Arvokas lammen rantavyöhykkeen suokokonaisuus. Enemmistö kuviosta luhtanevaa (arvioitu erikseen).  Korvapuron penkassa suurehko pesäkolo ja jätös (mahdollisesti saukon?)"]
[178,"rantavyöhykkeen vaihettumisräme","S03.04 Isovarpurämeet",20,0.14000000000000001,0.9,0.7,0.7,0.6,1,"ei",1,0.77499999999999991,0.1085,"ei","puustoiset suot (91D0)","hyvä, poikkeama ihmistoiminnan aiheuttama","ei","ei","ei","NT","Reunavyöhykkeen kapea räme edustava. Ylempänä ojitus kuivattanut kankaaksi. Kuviosta 80 % tuoretta kangasta. Kuvioiden 170, 171 ja 177 kanssa merkittävä kokonaisuus. METSO-potentiaalia."]
[193,"Ojitettu, varttunut korpi","S01.04.02 Metsäkortekorvet",85,0.3,0.8,0.6,0.8,0.6,1,"ei",1,0.75,0.22499999999999998,"Kyllä, Metso-taulukossa","puustoiset suot (91D0)","hyvä, poikkeama ihmistoiminnan aiheuttama","kyllä 10§:n metsäkortekorpi","ei","ei","EN","Pieni metsäkortekorpi satavuotiaan kankaan kyljessä. Suo ojitettu, mutta tämä alue vielä edustava. Paikoin jo korpimuuttumaa, ollut mahdollisesti myös puolukkakorpea ja muurainkorpea? Vaihettuu rämemuuttumaan. Herttakaksikkoa (RT) ja pallopäärahkasammalta, maariankämmekkä runsas osassa aluetta, mustikka, puolukka, metsätähti, vaalearahkasammal ja korpirahkasammal, lakka, pallosara, rahkasara, riippasara, harmaasara ja tupasvilla. Puusto noin 70 vuotiasta, erirakenteista."]
[195,"Ojitettu, varttunut korpi","Korpimuuttuma",50,4.2,0.5,0.5,0.7,0.4,0.8,"ei",1,0.57499999999999996,2.415,"kyllä","ei","ei","ei","ei","ei",null,"Syvät ojat, kuivunut. Korpijuoteissa pallosara, tupasvilla, lakka ja metsäkorte runsaita. Pyypoikue alueen etelälaidalla. Ollut erilaisia aitokorpia? Ennallistamiskelpoinen ja täten mahdollinen METSO 1C-kohde."]
[196,"Ojitettu, varttunut korpi","S01.04 Aitokorvet",90,1.9,0.7,0.7,0.7,0.3,0.9,"ei",1,0.67499999999999993,1.2824999999999998,"Kyllä, Metso-taulukossa","puustoiset suot (91D0)","merkittävä, poikkeama ihmistoiminnan aiheuttama","ei","ei","ei","EN","Ojitus osin muuttanut, ollut aitokorpia, vielä mustikkakorpea ja pienialaisesti metsäkortekorpea. Maasto kosteaa myös rinteessä. Ennallistamiskelpoinen, potentiaalinen laajempi METSO-kohde yhdessä kuvioiden 192, 193 ja 195 kanssa. Pienialaisesti metsäkortekorpea? (ML 10§?)"]
[200,"Osin hakattu pieni suo","S01.04 Aitokorvet",15,0.3,0.7,0.7,0.6,0.3,0.7,"ei",1,0.625,0.1875,"Kyllä, Metso-taulukossa","Puustoiset suot (91D0)","merkittävä, poikkeama ihmistoiminnan aiheuttama","ei","ei","ei","EN","Ei ojitettu, vesitalous luonotilaisen kaltainen, mutta osittainen avohakkuu ja metsäkoneurat muuttaneet olosuhteita."]
[203,"Ojitettu ku valtainen korpi","S01.01 Kangaskorvet",60,1.3,0.6,0.6,0.6,0.3,1,"ei",1,0.61249999999999993,0.7962499999999999,"Kyllä, Metso-taulukossa","Luonnonmetsät (9010)","merkittävä, poikkeama ihmistoiminnan aiheuttama","ei","ei","ei","EN","Ojitus kuivattanut, korpisissa osissa vielä pallosaraa, rahkasammalia ja metsäkortetta paikoin, mustikka, puolukka, metsäalvejuuri."]
[204,"Ku valtainen korpi","S01.01 Kangaskorvet",90,6.1,0.9,0.9,0.8,0.4,1,"ei",1,0.82499999999999996,5.0324999999999998,"Kyllä, Metso-taulukossa","Luonnonmetsät (9010)","hyvä","ei","ei","ei","EN","Luonnontilaisen kaltainen, puusto osin jo järeää. Rahkasammalia ja korpikarhunsammalta, mustikka, puolukka, pallosara, metsäalvejuuri, metsäkorte."]
[211,"Ojitettu mä valtainen korpi","Korpimuuttuma",99,2.1,0.6,0.5,0.7,0.2,0.9,"ei",1,0.58750000000000002,1.2337500000000001,"ei","ei","ei","ei","ei","ei",null,"Osin mä, osin ku valtainen. Ojitus kuivattanut. Vielä metsäkortetta, lakkaa, pallosaraa. Mustikka runsas."]
[219,"Ojitettu räme","S03.04 Isovarpurämeet",80,0.8,0.7,0.5,0.8,0.1,1,"ei",1,0.63749999999999996,0.51,"ei","Puustoiset suot (91D0)","merkittävä, poikkeama ihmistoiminnan aiheuttama","ei","ei","ei","NT","Ojituksen aiheuttamaa muuttumaa, osin jo kangasta. Lajisto yhä melko edustava: rahkasammalet ja seinäsammal, suopursu, juolukka, vaivaiskoivu, mustikka, puolukka, variksenmarja, lakka, pallosara, tupasvilla. Puusto varttunutta mä, koivun taimia. Ennallistamiskelpoinen!"]
[226,"Ojitettu, hakattu korpi","Korpimuuttuma",90,0.7,0.6,0.6,0.1,0.1,0.6,"ei",0,0.41249999999999998,0.28874999999999995,"ei","ei","ei","ei","ei","ei",null,"Tulkittu. Ollut pitkään puuton (suoniitty?), metsittynyt ja hakattu jälleen 200-luvulla."]
[240,"Edustava puronvarsikorpi","S01.01 Kangaskorvet",70,5.0999999999999996,0.9,0.7,0.9,0.9,0.9,"ei",null,0.85,4.335,"Kyllä, Metso-taulukossa","Luonnonmetsät (9010)","hyvä","ei","ei","ei","EN","Suurin osa kuviosta kangaskorpea, mutta myös luhtaista ruohokorpea erityisesti puron suistossa ja suulla, sekä korpi ja rämemuuttumaa ja kangasta. Erityisen monimuotoinen kuvio, runsaasti hyvin järeää lahopuuta. Vanhoja merkkejä majavista ja padosta. Kuviolla myös w-e -suuntainen sammaloitunut maavalli puron molemmin puolin, joka mahdollisesti vanha kiviaita, tai patorakennelma. Liito-oravalle, saukolle, majavalle erinomaisen sopivaa ympäristöä. Lahottajasienet ja sammalet olisi hyvä kartoittaa (mm. aarnisammal, korpihohtosammal...)"]
[242,"Rantasuo","S03.04 Isovarpurämeet",95,0.3,0.9,0.7,0.9,0.2,1,"ei",null,0.77500000000000002,0.23249999999999998,"Kyllä, Metso-taulukossa","Luonnonmetsät (9010)","hyvä","ei","ei","ei","NT","Rantaräme nevalaiteella."]
[269,"Noronvarsikorpi","S01.02 Lehtokorvet",75,0.6,0.8,0.9,0.8,0.5,0.6,"ei",null,0.76249999999999996,0.45749999999999996,"Kyllä, Metso-taulukossa","Lehdot (9050)","erinomainen","kyllä","kyllä","ei","VU","Kuviolla erikoinen pintavesiallikko ja vielä luonnontilaisen kaltainen noro. Hakkuita suoritettu rajalla."]
[284,"Noronvarsikorpi","S01.02 Lehtokorvet",65,1.5,1,1,0.8,0.5,0.6,"ei",null,0.83749999999999991,1.2562499999999999,"Kyllä, Metso-taulukossa","Lehdot (9050)","erinomainen","kyllä","kyllä","ei","VU","Korvapuroon laskevan noron ympärille notkelmaan muodostunut korpi, hyvinkin märkä. Runs lehväsammalia, lehtokortetta, metsäkortetta ja mesiangervoa. Roskaantumista, vedessä sakeaa värjäymää."]
[286,"Kostea rehevä korpi kaatopaikan ja Korvapuron välissä.","S01.02 Lehtokorvet",80,1.2,1,1,1,0.9,0.8,"ei",null,{"$f":"(2*SUM(F38:H38)+SUM(I38:J38))/(2*COLUMNS(F38:H38)+COLUMNS(I38:J38))","v":0.96250000000000002},{"$f":"(PRODUCT(E38,M38))","v":1.155},"Kyllä, Metso-taulukossa","Lehdot (9050)","erinomainen","kyllä","ei","ei","VU","Jonkinlainen salaojaputki johdettu kuviolle viereiseltä kaatopaikka-alueelta. Putken suulla myös kiintoainesta valunut kuviolle->upottavaa mutaa ja ravinteisen, kostean lehdon kasvillisuutta. Reunamilla myös roskaantumista.Muutoin edustava, Korvapuroon rajautuva lehtokorpi, jossa hyvin erirakenteinen puusto. "]
[297,"Korpi puron ja noron läheisyydessä","S01.02 Lehtokorvet",90,2.1,1,0.9,1,0.5,0.6,"ei",null,0.86250000000000004,1.8112500000000002,"Kyllä, Metso-taulukossa","Lehdot (9050)","erinomainen","kyllä","ei","ei","VU","Kuviolla luonontilaisen kaltainen noro ja kuvio rajautuu Heinälamminojan puroon (kuivunut, ojitettu). Puusto ja kasvillisuus edustavaa, kärsii viereisistä kaatopakasta ja hakkuusta. Mönkkäriuria, vähän roskaa."]
[300,"Ojitetun Heiniojan luona","Korpimuuttuma",99,1.2,0.4,0.3,0.8,0.5,0.6,"ei",null,0.51249999999999996,0.61499999999999988,"Kyllä, Metso-taulukossa","ei","ei","ei","ei","ei",null,"Kuviolla Heinälamminojan umpeenkasvanutta purouomaa ja vieressä suora, syvä oja. Puusto erirakenteista, osin iäkästä. Metso-kohteen vieressä, ennallistamiskelpoinen.Heinälamminojan luonnollinen uoma vielä olemassa rahkasammalpatjan ja raatekasvuston alla."]
[304,"Heinälammen pohjoispuolen luhta","S07.01.01 Koivuluhdat",60,1.8,0.8,0.6,0.6,0.4,0.3,"ei",null,0.58750000000000002,1.0575000000000001,"Kyllä, Metso-taulukossa",9080,"hyvä","kyllä, jouto- ja kitumaan suot, puron välitön lähiympäristö","rajautuu vesilkikohteeseen Heinälampi (305)","ei","DD","Heinälammen pohjoispuolinen luhta, joka ojitettu, mutta jossa yhä myös luonnontilaisen kaltainen purouoma Heinälamminoja. Useita luhtaisia luontotyyppejä."]
[308,"Heinälammen itäpuolen luhtaiset suot","S01.04 Aitokorvet",30,1.3,0.8,0.7,0.8,0.5,1,"ei",null,0.76249999999999996,0.99124999999999996,"Kyllä, Metso-taulukossa","91D0","hyvä","kyllä","ei","ei","EN","Suurimmaksi osaksi ojitettua, luhtaista luhtanevakorpea,paikoin  myös muurainkorven ja metsäkortekorven piirteitä, paikoin hieman kuivunutta muuttumaa. Ennallistamiskelpoinen, osa Heinälampea ympäröivää luhtaisten suotyyppien kokonaisuutta. Vaihettuu luhtarämeeseen ja ruovikkoluhtaan ojan länsipuolella. Sekatyyppi. Osa männyistä vanhoja, kilpikaarnaisia, mutta kituliaita. Luhtaisuuden ja pienialaisen muurainkorven perusteella katsotaan METE-kohteeksi."]
[309,"Heinälammen eteläpuolen suot","S04.03 Sararämeet (ruohoinen)",65,0.8,1,0.9,0.9,1,1,"ei",null,0.95,0.76,"Kyllä, Metso-taulukossa","91D0","erinomainen","kyllä","kyllä","ei","VU","Etelä-Suomessa uhex-luokitus EN. Edustava, vesitalous luonnontilaisen kaltainen. Siniheinä, jouhisara, karpalo, juolukkapaju ja vaivaiskoivu runsaita. Myös juolukka, tähtisara, raate, paatsama, maariankämmekkä, vaivero, suopursu ja tupasvilla yleisiä. Lisäksi suokukkaa ja suokortetta, sekä kaakossa runsaammin järviruokoa.  Ojitettu. Kuvion pohjoisosa rämemuuttumaa. Kuviolla luonnontilaisen kaltainen puro Heinälamminoja. Kuvion keski- ja länsiosa ruohoista saranevaa, jossa mm. suovalkkua (NT, RT)."]
[311,"Heinälamminojan rantojen suot","S03.02 Korpirämeet",30,1.6,1,0.8,0.8,0.8,1,"ei",null,0.875,1.4000000000000001,"Kyllä, Metso-taulukossa","91D0","hyvä","ei","ei","ei","EN","Ojitettu; vanha, suora, seisovavetinen, leveä oja kulkee alueen halki. Korpirämeen osuus kuvion pohjoispäässä edustava, Naturaluokka erinomainen. Loput kuviosta kuitenkin räme- ja korpimuuttumaa, sekä turvekangasta (lähes 70% kuviosta). Puusto osin vanhaa, jopa yli satavuotiasta. Kilpikaarnaisia mäntyjä ja joitain suurehkoja kuusia ja vanhoja koivuja. Kokonaisuutena arvokas, erityisesti osana Heinälamminsuon-alueen suo- ja vesiluontotyyppejä. Ennallistamiskelpoinen."]
[312,"Luhtainen saraneva","S02.02 Sarakorvet",80,1,0.7,0.6,0.9,0.5,1,"ei",null,0.73749999999999993,0.73749999999999993,"Kyllä, Metso-taulukossa","91D0","hyvä","ei","ei","ei","VU","Kuviolla luonnontilaisen kaltainen puro (310). Molemmin puolin puroa kuvion reunoilla suorat, vanhat ojat, jotka kuivattaneet osin kuviota. Osin turvekangasta tai muuttumaa, osin ruohoista ja luhtaista saranevakorpea. Yhdistelmätyyppi."]
[318,"Lähdevaikutteinen korpi","S01.04.02 Metsäkortekorvet",75,0.7,0.8,0.6,0.8,0.6,0.8,"ei",null,0.72500000000000009,0.50750000000000006,"Kyllä, Metso-taulukossa","91D0","hyvä","kyllä","ei","ei","EN","Ojitettu, lähdevaikutteinen korpi. Keski- ja itäosa metsäkortekorpea, hieman myös korpimuuttumaa. Lounaisreunalla tihkupintainen lähde (317) ja lähdelehtokorpea. Itäreunalla suuria haapoja. "]
[321,"Poskilammen rantarämeet","S03.04 Isovarpurämeet",60,0.9,1,0.9,0.9,0.7,1,"ei",null,0.91249999999999998,0.82125000000000004,"Kyllä, Metso-taulukossa","91D0","hyvä","ei","ei","ei","NT","Edustava rantasuo, vaikka rämevyöhyke jääkin hakkuun vuoksi pohjoisrannalla kapeaksi. Pohjoiskulmalla vanha oja, joka kuivattanut loput kuviosta rämemuuttumaksi ja turvekankaaksi, voinut olla korpiräme. Pohjoisrannan kuvion länsipäädyssä on luonnonsuojelulain nojalla suojeltu kalasääsken pesäpuu, joka on nykyisin keloutunut oksattomaksi. Ontto, palokorojen kirjoma kelo on yhä arvokas, vaikkei enää kalasääskelle."]
[327,"Sekapuustoinen kostea rinnemetsä","S01.02 Lehtokorvet",95,0.7,1,0.9,0.9,0.7,0.8,"ei",null,0.88749999999999996,0.62124999999999997,"Kyllä, Metso-taulukossa",9050,"hyvä","kyllä","ei","ei","VU","Sekapuustoinen, osin ku ja osin ko valtainen lehtokorpi. Kuviolla kostea juotti louhoksen reunamilta alas rinnettä itäkoilliseen, jonkinlaista pintaveden valumista. Ei varsinaisia lähteisyyden indikaattorilajeja. Hiirenporras, metsäkorte, isoalvejuuri, leskenlehti, mustaherukka, korpikastikka, lehtokuusama, suo-orvokki, vadelma, lehväsammalet. Lähellä louhoksen reunaa punakoiso, vehka, rikkapalsami, nokkonen. Jokunen terttuselja."]
[330,"Arvokas valuvetinen lehtokorpirinne","S01.02 Lehtokorvet",90,2.4,1,1,1,0.9,0.9,"ei",null,0.97499999999999998,2.34,"Kyllä, Metso-taulukossa",9050,"erinomainen","ei","ei","ei","VU","Korpinurmikkaa (NT, RT), märkiä pintoja, valuvaa vettä."]
[343,"Pieni korpilaikku","S01.02 Lehtokorvet",100,0.2,0.7,0.8,0.5,0.2,0.9,"ei",null,0.63749999999999996,0.1275,"Kyllä, Metso-taulukossa",9050,"merkittävä","kyllä","ei","ei","VU","Pieni saniaiskorpilaikku kangasmetsän keskellä."]
[341,"Ojitettu korpi","Korpimuuttuma",99,1.6,0.3,0.5,0.8,0.3,0.2,"ei",null,0.46250000000000002,0.7400000000000001,"ei","ei","ei","ei","ei","ei",null,"Puron uoma perattu ojaksi, viereinen kaatopaikka heikentänyt suuresti luonnontilaa. Osa kuviosta voi olla parempaa? Osin tulkittu."]
[346,"Myllyjoen ja korvapuron rantasuot","S01.02 Lehtokorvet",65,2.6,1,1,1,0.9,1,"ei",null,0.98750000000000004,2.5675000000000003,"kyllä","Lehdot (9050)","Erinomainen","ei","ei","ei","VU","Erittäin edustavaa järeäpuustoista puronvarsilehtoa. Paikoin kotkansiipeä. Hentosaraa (NT)."]
[466,"Myllyjoen varren lehtokorpien mete-osuus","S01.02 Lehtokorvet",65,1.4,1,1,1,0.9,1,"ei",null,0.98750000000000004,1.3825000000000001,"kyllä","Lehdot (9050)","Erinomainen","kyllä","ei","ei","VU","Myllyojan varren metsälakiosuus. Erittäin edustavaa järeäpuustoista puronvarsilehtoa. Paikoin kotkansiipeä. Hentosaraa (NT)."]
[391,"Pieni soistuma vanhalla ojalla","S03.02 Korpirämeet",100,0.3,0.9,0.7,0.9,0.3,1,"ei",null,0.78749999999999998,0.23624999999999999,"ei","91D0","merkittävä, poikkeama ihmistoiminnan aiheuttama","ei","ei","ei","EN","Pienialainen korpiräme ojitetun vanhan norouoman varrella. Muutamia kilpikaarnamäntyjä, kasvillisuus luontotyypille ominainen (mustikka, suopursu, juolukka, vaivero, puolukka, lakka, pallosara, tupasvilla, rahkasammalet)."]
[396,"Pieni pyöreä suo","S02.02 Sarakorvet",90,0.1,0.8,0.9,0.5,0.3,0.9,"ei",null,0.70000000000000007,7.0000000000000007E-2,"ei","91D0","merkittävä, poikkeama ihmistoiminnan aiheuttama","kyllä","ei","ei","VU","Pikkuinen vähäpuustoinen avolaikku, mm.  Pullosara, korpikastikka, luhtavilla, virpapaju, mättäillä puolukka, lakka, hiko, ku."]
[404,"Oja S-reunalla","S01.04.02 Metsäkortekorvet",65,0.6,0.8,0.6,0.8,0.9,0.9,"ei",null,0.77500000000000002,0.46499999999999997,"kyllä","91D0","merkittävä, poikkeama ihmistoiminnan aiheuttama","kyllä","ei","ei","EN","Ojituksen osin kuivattama, yhä edustava. Puusto varttunutta, erirakenteista, lahopuuta hyvin. Rajautuu ojaan, hakkuuseen ja tiehen, reunavaikutusta. Itäreuna MT-kangasta."]
[428,"Korpijuotti","S01.01 Kangaskorvet",95,1.3,1,0.9,0.7,0.5,0.9,"ei",null,0.82499999999999996,1.0725,"kyllä","ei","ei","ei","ei","ei","EN","Loivan rinteen painanteessa alas laskeutuva kapea korpijuotti."]
[432,"Kuivunut korpijuotti","Korpimuuttuma",90,1.4,0.5,0.5,0.3,0.5,0.7,"ei",null,0.47499999999999998,0.66499999999999992,"ei","ei","ei","ei","ei","ei",null,"Kapea juotti rinteen painaumassa. N-osa pahemmin kuivunut, runsaasti haapaa ja muutama vanha raita. S-osassa vielä kangaskorven piirteitä. Yläpuolisen valuma-alueen ojitukset todennäköisesti kuivattaneet, metsää raivattu."]
[436,"Ojitettu korpi","Korpimuuttuma",10,0.4,0.7,0.6,0.5,0.7,0.7,"ei",null,0.625,0.25,"ei","ei","ei","ei","ei","ei",null,"Puusto yli 60 v, ku valtaista, mustikka ja metsäkorte runsaita. Ojitus kuivattanut."]
[439,"Puusto nuorta hiko, ku","S01.04 Aitokorvet",90,0.8,0.7,0.9,0.6,0.2,0.7,"ei",null,0.66250000000000009,0.53000000000000014,"kyllä","91D0","merkittävä, poikkeama ihmistoiminnan aiheuttama","ei","ei","ei","EN","Puusto nuorta, reunalta käsitelty, METE-kriteeri ei täyty. Vesitalous kuit luonnontilaisen oloinen, siksi METSO-peruste täyttyy. Todennäköisesti suurelta osin metsäkortekorpea, mutta metsänkäsittely voinut muuttaa kasvillisuuden rakennetta. "]
[447,"Kaatopaikan reunalla","Korpimuuttuma",99,0.9,0.5,0.5,0.6,0.5,0.3,"ei",null,0.5,0.45,"ei","ei","ei","ei","ei","ei",null,"Tulkittu. Kaatopaikan ja kuvion rajalla oja, joka on luonnontilansa menettänyt noro. Voimakas kaatopaikan reunavaikutus."]

{"sheet":"Kangasmetsät yms.","index":5,"n_rows":300,"n_cols":32,"rows_kept":300,"cut":false,"hidden":false,"merged":[]}
["3.8.1. Lehtomaiset kankaat, Jalopuustoiset kangasmetsät, Tuoreet kankaat, Kuivahkot kankaat, Ruoho-, mustikka-, puolukka-, ja varputurvekankaat",{"$nulls":27}," "]
[]
[]
["Mittarit",null,null,null," ","Kehitysluokka",{"$nulls":5},"Luontotyypille ominaisten puuston rakennepiirteiden esiintyminen: eri-ikäisyys, latvuskerroksellisuus, satunnainen tilajakauma, palojäljet, monilajisuus",{"$nulls":5},"Luontotyypille ominainen lahopuun määrä3 ja rakennepiirteet: jatkumo, järeä lahopuu, monilajisuus","Kasvillisuuden (putkilokasvit ja/tai jäkälät ja/tai sammalet) edustavuus: lajisto ja kasvillisuuden rakenne (runsaus, peittävyys, lajien/lajiryhmien runsaussuhteet","Järeiden puiden määrä","Haitalliset vieraskavilajit","Muu ihmisvaikutus"]
["Mittarin suhteellinen painokerroin",{"$nulls":4},2,{"$nulls":5},2,{"$nulls":5},2,1,1,1,1]
[{"$nulls":12},"Jompi kumpi näistä (arvio)"]
["Tarkasteltava asia","apusarake yleiskuvaus",{"$nulls":4},"Eri-ikäisyys","Latvuskerroksellisuus","Satunnainen tilajakauma","palojäljet","monilajisuus",null,"Määrä m3/ha","Määrä, osuutena luonnontilaisesta","Jatkumo","Järeä lahopuu","Monilajisuus"]
[null,null,"Tee tarvitatessa usempi rivi samalle kuviolle, jos useita kangasmetsien/turvekankaiden (pl. karukkokonkaat) luontotyyppejä!"]
["Kuvionro","apusarake yleiskuvaus","LuTu-luontotyyppi (koodi)","LuTu-tyypin % kuviosta","Kuvion pinta-ala, ha","Mittarin arvo (0,1 -1,0)","Apumittarin arvo (0, 1 tai 2)",{"$nulls":4},"Mittarin arvo (0,1 -1,0)",null,null,"Apumittarin arvo (0, 1 tai 2)",null,null,"Mittarin arvo (0,1 -1,0)","Mittarin arvo (0,1 -1,0)","Mittarin arvo (0,1 -1,0)","Mittarin arvo (0,1 -1,0)","Mittarin arvo (0,1 -1,0)","Luonnonarvovastaavuus","Luonnonarvohehtaarit","METSO kohde","NATURA","Natura edustavuus","METE","vesilaki","LSL 64-65 § kohde?","uhex","Muuta"]
[4,"muutaman vuoden vanha avohakkuu","Nuoret tuoreet kankaat M02.02.01",95,2.7,0.3,0,0,1,0,1,0.4,{"$nulls":5},0.2,0.2,0.2,1,0.5,{"$f":"(2*SUM(F10,L10,R10)+SUM(S10:V10))/(2*AREAS((F10,L10,R10))+COLUMNS(S10:V10))","v":0.37},{"$f":"(PRODUCT(E10,W10))","v":0.999},"ei","ei","ei","ei","ei","ei","VU","hakkuu"]
[5,"Lähinnä mustikkaturvekangas","Mustikkaturvekangas","99",3.2,0.6,1,1,2,0,1,0.4,{"$nulls":5},0.3,0.8,0.2,1,1,{"$f":"(2*SUM(F11,L11,R11)+SUM(S11:V11))/(2*AREAS((F11,L11,R11))+COLUMNS(S11:V11))","v":0.55999999999999994},1.7919999999999998,"ei","ei","ei","ei","ei","ei",null,"turvekangas"]
[6,"Turvemaa, muuttuma, tuore hakkuu","Turvemaan tuore hakkuu (muuttuma/turvekg)","99",1.8,0.1,{"$nulls":5},0.1,{"$nulls":5},0.1,0.5,0.1,0.5,0.3,{"$f":"(2*SUM(F12,L12,R12)+SUM(S12:V12))/(2*AREAS((F12,L12,R12))+COLUMNS(S12:V12))","v":0.2},0.36000000000000004,"ei","ei","ei","ei","ei","ei",null,"aivan tuore hakkuu (touko-kesäkuu 25)"]
[11,"avohakkuu, ollut lehtomaista kangasta tod näk","Nuoret lehtomaiset kankaat M02.01.01",99,0.3,0.1,0,0,1,0,1,0.2,null,null,0,0,0,0.1,0.1,0.1,0.9,1,{"$f":"(2*SUM(F13,L13,R13)+SUM(S13:V13))/(2*AREAS((F13,L13,R13))+COLUMNS(S13:V13))","v":0.29000000000000004},8.7000000000000008E-2,"ei","ei","ei","ei","ei","ei","VU","hakkuu"]
[22,"tiheä varttunut taimikko, kuusi. Myös koivu ja vähän pihlajaa tulossa.","Nuoret tuoreet kankaat M02.02.01",99,2.9,0.1,0,0,0,0,1,0.1,0,{"$nulls":4},0.1,0.1,0.1,0.9,0.8,{"$f":"(2*SUM(F14,L14,R14)+SUM(S14:V14))/(2*AREAS((F14,L14,R14))+COLUMNS(S14:V14))","v":0.25},0.72499999999999998,"ei","ei","ei","ei","ei","ei","VU"]
[23,null,"Varttuneet havupuuvaltaiset tuoreet kankaat M02.02.02",99,0.1,0.5,0,0,0,0,0,0.1,0,{"$nulls":4},0.1,0.5,0.1,1,1,{"$f":"(2*SUM(F15,L15,R15)+SUM(S15:V15))/(2*AREAS((F15,L15,R15))+COLUMNS(S15:V15))","v":0.4},4.0000000000000008E-2,"ei","ei","ei","ei","ei","ei","NT","tulkittu"]
[25,"varttunut taimikko; lehtomaista kangasta säästöpuuryhmiä","Nuoret lehtomaiset kankaat M02.01.01","99",0.5,0.3,1,1,1,0,2,0.6,{"$nulls":6},0.5,0.1,1,0.5,{"$f":"(2*SUM(F16,L16,R16)+SUM(S16:V16))/(2*AREAS((F16,L16,R16))+COLUMNS(S16:V16))","v":0.39},0.19500000000000001,"ei","ei","ei","ei","ei","ei","VU","tulkittu kuvio (MV tieto)"]
[26,"Nuori kasvatusmetsikkö; tuoretta/lehtomaista kg","Nuoret tuoreet kankaat M02.02.01","99",1.6,0.4,0,0,1,0,0,0.2,0,null,0,0,0,0.1,0.3,0.1,1,0.8,{"$f":"(2*SUM(F17,L17,R17)+SUM(S17:V17))/(2*AREAS((F17,L17,R17))+COLUMNS(S17:V17))","v":0.36000000000000004},0.57600000000000007,"ei","ei","ei","ei","ei","ei","VU"]
[30,"VMT; varttunut kasvatusmetsikkö","Varttuneet havupuuvaltaiset tuoreet kankaat M02.02.02","99",0.1,0.5,0,0,1,0,1,0.5,"0-5",null,0,0,0,0.1,{"$nulls":4},{"$f":"(2*SUM(F18,L18,R18)+SUM(S18:V18))/(2*AREAS((F18,L18,R18))+COLUMNS(S18:V18))","v":0.22000000000000003},2.2000000000000006E-2,"ei","ei","ei","ei","ei","ei","NT","tulkittu kuvio (MV tieto)"]
[31,"Varttunut koivutaimikko, tietojen mukaan kuusivaltainen, osin ojitettu, tod näk rehevää korpea ollut osin","Nuoret lehtomaiset kankaat M02.01.01","90",3.9,0.3,0,0,0,0,1,0.2,0,null,0,0,0,0.1,0.1,0.1,0.5,0.3,{"$f":"(2*SUM(F19,L19,R19)+SUM(S19:V19))/(2*AREAS((F19,L19,R19))+COLUMNS(S19:V19))","v":0.22000000000000003},0.8580000000000001,"ei","ei","ei","ei","ei","ei","VU","Ollut rehevämpi kangas, ja pieneltä osin räme/korpi. Koivu vallitsee, seassa myös kuusi"]
[34,"VMT","Varttuneet havupuuvaltaiset tuoreet kankaat M02.02.02",100,0.98,0.5,0,0,1,0,1,0.5,null,null,0,0,0,0.2,0.7,0.1,1,1,{"$f":"(2*SUM(F20,L20,R20)+SUM(S20:V20))/(2*AREAS((F20,L20,R20))+COLUMNS(S20:V20))","v":0.51999999999999991},0.50959999999999994,"ei","ei","ei","ei","ei","ei","NT"]
[35,"kastikkainen männylle viljelty ex OMT/VMT?","Varttuneet havupuuvaltaiset tuoreet kankaat M02.02.02","99",2.4,0.5,0,0,1,0,1,0.5,"0-5",null,0,0,0,0.2,0.6,0.1,1,1,{"$f":"(2*SUM(F21,L21,R21)+SUM(S21:V21))/(2*AREAS((F21,L21,R21))+COLUMNS(S21:V21))","v":0.51},1.224,"ei","ei","ei","ei","ei","ei","NT"]
[36,"Avohakattu ja osin ojitusmätästetty alue; osa ollut pienesti ehkä rehevää korpea, nyt muuttumaa","Nuoret lehtomaiset kankaat M02.01.01","85",3.3,0.1,0,0,0,0,0,0.1,0,null,0,0,0,0.1,0.1,0.1,0.5,0.1,{"$f":"(2*SUM(F22,L22,R22)+SUM(S22:V22))/(2*AREAS((F22,L22,R22))+COLUMNS(S22:V22))","v":0.13999999999999999},0.46199999999999991,"ei","ei","ei","ei","ei","ei","VU","rehevämpi entinen kangas, ja vähäisesti räme/korpialuetta. Reunoilla näkyy myös hyvin tuoretta ojitusmätästystä (lähinnä kuusta istutettu)"]
[38,"VMT pieni talousmetsäkuvio","Varttuneet havupuuvaltaiset tuoreet kankaat M02.02.02","99",0.2,0.5,0,0,0,0,1,0.3,"0-5",null,0,0,0,0.4,0.8,0.1,1,0.1,{"$f":"(2*SUM(F23,L23,R23)+SUM(S23:V23))/(2*AREAS((F23,L23,R23))+COLUMNS(S23:V23))","v":0.44000000000000006},8.8000000000000023E-2,"ei","ei","ei","ei","ei","ei","NT","sisältää pienen sääsöpuuryhmän josta tuuli kaatanut reunalta paljon kuusta"]
[40,"mustikkaturvekangas","Mustikkaturvekangas",99,6.5,0.5,1,1,1,0,1,0.7,"0-5",null,0,0,0,0.1,0.8,0.1,1,0.9,{"$f":"(2*SUM(F24,L24,R24)+SUM(S24:V24))/(2*AREAS((F24,L24,R24))+COLUMNS(S24:V24))","v":0.54},3.5100000000000002,"ei","ei","ei","ei","ei","ei"]
[43,"männylle (viljelty?) varttunut kasvatusmetsikkö, aiemmin harvennettu","Varttuneet havupuuvaltaiset tuoreet kankaat M02.02.02","99",0.6,0.5,0,0,0,0,0,0.1,0,null,0,0,0,0.1,0.1,0.1,1,1,{"$f":"(2*SUM(F25,L25,R25)+SUM(S25:V25))/(2*AREAS((F25,L25,R25))+COLUMNS(S25:V25))","v":0.36},0.216,"ei","ei","ei","ei","ei","ei","NT","hakattu ja harvennustarpeessa oleva männylle tn viljelty kumpare (alun perin rehevämpää tyyppiä)"]
[45,"varttunut metsikkö; kastikkainen kuusikko-männikkö. Ollut tn rehevämpää metsää.","Varttuneet havupuuvaltaiset tuoreet kankaat M02.02.02","99",1.9,0.5,0,0,1,0,1,0.5,"0-5",null,0,0,0,0.1,0.4,0.1,1,0.8,{"$f":"(2*SUM(F26,L26,R26)+SUM(S26:V26))/(2*AREAS((F26,L26,R26))+COLUMNS(S26:V26))","v":0.45},0.85499999999999998,"ei","ei","ei","ei","ei","ei","NT","todennäköistä kangasmaitikkaa runsaasti (poikkeuksellisen kuivuuden takia ruskettuneista tarkempi lajinmääritys vaikeaa)"]
[46,"koivutaimikko","Nuoret lehtomaiset kankaat M02.01.01","99",1.6,0.3,0,0,0,0,1,0.1,0,null,0,0,0,0.1,0.4,0.1,1,0.7,{"$f":"(2*SUM(F27,L27,R27)+SUM(S27:V27))/(2*AREAS((F27,L27,R27))+COLUMNS(S27:V27))","v":0.32},0.51200000000000001,"ei","ei","ei","ei","ei","ei","VU","koivutaimikko, jossa seassa myös mm. kuusta, entinen tuore/lehtomainen kangas"]
[47,"harvennettua kuusikkoreunusta","Varttuneet havupuuvaltaiset lehtomaiset kankaat M02.01.02","99",0.1,0.5,0,0,0,0,1,0.1,"0-5",null,0,0,0,0.1,0.4,0.1,1,1,{"$f":"(2*SUM(F28,L28,R28)+SUM(S28:V28))/(2*AREAS((F28,L28,R28))+COLUMNS(S28:V28))","v":0.39},3.9000000000000007E-2,"ei","ei","ei","ei","ei","ei","NT"]
[49,null,"M02.01.03 Vanhat havupuuvaltaiset lehtomaiset kankaat (OMT)",99,1.5,0.8,2,1,1,0,1,0.7,"5-10",null,1,1,1,0.6,0.8,0.7,1,0.6,{"$f":"(2*SUM(F29,L29,R29)+SUM(S29:V29))/(2*AREAS((F29,L29,R29))+COLUMNS(S29:V29))","v":0.73000000000000009},1.0950000000000002,"kyllä","boreaaliset luonnonmetsät (9010)","hyvä, poikkeama ihmistoiminnan aiheuttama","ei","ei","ei","EN","kuviolla laavukyhäelmä ja näyttää siltä että lahopuuta on tällä kuviolla vähemmän koska sitä on kerätty poltettavaksi, kuviolla myös hieman tihkuisuutta ja lehtoisuutta indikoiva pieni painauma, jossa mm. hentosaraa (NT). Kuviolta löytyy myös mm. kuusenkääpää"]
[50,null,"M02.01.03 Vanhat havupuuvaltaiset lehtomaiset kankaat (OMT)",99,2.2999999999999998,0.9,2,2,2,0,2,0.9,"10-15",null,2,1,1,0.7,0.9,"0.8",1,0.9,{"$f":"(2*SUM(F30,L30,R30)+SUM(S30:V30))/(2*AREAS((F30,L30,R30))+COLUMNS(S30:V30))","v":0.78},1.7939999999999998,"kyllä","boreaaliset luonnonmetsät (9010)","hyvä, poikkeama ihmistoiminnan aiheuttama","ei","ei","ei","EN","runsaasti tuoretta lahopuuta, rytöjä paikoin"]
[51,"nuorempi kasvatuskoivikko, rauduskoivu (OMT)","Nuoret lehtomaiset kankaat M02.01.01",99,1.2,0.5,0,0,0,0,2,0.4,"0-5",null,0,0,0,0.1,0.5,0.1,1,1,{"$f":"(2*SUM(F31,L31,R31)+SUM(S31:V31))/(2*AREAS((F31,L31,R31))+COLUMNS(S31:V31))","v":0.45999999999999996},0.55199999999999994,"ei","ei","ei","ei","ei","ei","VU","Monilajinen rauduskoivukasvatusmetsä; alikasvoksena myös kuusi, mänty, harmaaleppä, vanhempi raita, mänty, haapa, pihlaja"]
[52,"hakkuuaukea (tuore tai lehtomainen kangas)","Nuoret lehtomaiset kankaat M02.01.01","99",1.2,0.1,0,0,0,0,0,0.1,0,null,0,0,0,0.1,0.1,0.1,1,0.4,{"$f":"(2*SUM(F32,L32,R32)+SUM(S32:V32))/(2*AREAS((F32,L32,R32))+COLUMNS(S32:V32))","v":0.22000000000000003},0.26400000000000001,"ei","ei","ei","ei","ei","ei","VU"]
[53,"Aikoinaan harvennettu, heinittynyt uudistuskypsä ex-OMT","Varttuneet havupuuvaltaiset lehtomaiset kankaat M02.01.02","99",0.7,0.8,1,0,1,0,1,0.6,"0-5",null,1,1,0,0.6,0.5,0.4,1,0.7,{"$f":"(2*SUM(F33,L33,R33)+SUM(S33:V33))/(2*AREAS((F33,L33,R33))+COLUMNS(S33:V33))","v":0.65999999999999992},0.46199999999999991,"ei","ei","ei","ei","ei","ei","NT","Kuvion toisessa päässä runsaasti tuoretta lahopuuta, myrskyn kaatamia"]
[55,"Tuore kangas, varttunut taimikko","Nuoret tuoreet kankaat M02.02.01",99,0.9,0.3,1,0,0,0,1,0.3,0,null,0,0,0,0.1,0.1,0.1,1,0.7,{"$f":"(2*SUM(F34,L34,R34)+SUM(S34:V34))/(2*AREAS((F34,L34,R34))+COLUMNS(S34:V34))","v":0.32999999999999996},0.29699999999999999,"ei","ei","ei","ei","ei","ei","VU","Tulkittu. Yli 1,3 m mäntytaimikko; myös ku, ko."]
[56,"varttunut kasvatusmetsä, mäntyvaltainen","Varttuneet havupuuvaltaiset lehtomaiset kankaat M02.01.02",99,2,0.5,0,0,0,0,1,0.5,0,null,0,0,0,0.1,0.5,0.1,1,0.9,{"$f":"(2*SUM(F35,L35,R35)+SUM(S35:V35))/(2*AREAS((F35,L35,R35))+COLUMNS(S35:V35))","v":0.47000000000000003},0.94000000000000006,"ei","ei","ei","ei","ei","ei","NT","tulkittu"]
[57,"varttunut ojitettu kasvatusmetsä (OMT), soistumia/muuttumia","Varttuneet havupuuvaltaiset lehtomaiset kankaat M02.01.02",99,4.9000000000000004,0.5,1,1,1,0,1,0.6,"0-5 ",null,0,0,0,0.1,0.6,0.1,1,0.6,{"$f":"(2*SUM(F36,L36,R36)+SUM(S36:V36))/(2*AREAS((F36,L36,R36))+COLUMNS(S36:V36))","v":0.47000000000000003},2.3030000000000004,"ei","ei","ei","ei","ei","ei","NT","lähinnä kuusivaltainen, paikoin soistumaa, aika vasta harvennushakattu (epätasaisesti), vadelmaisia ajouria tiheästi, hakkuutähteitä paljon, myös pieniä runkoja, "]
[58,"varttunut kasvatuskuusikoivikko (OMT)","Varttuneet havupuuvaltaiset lehtomaiset kankaat M02.01.02",99,2,0.5,0,0,1,0,1,0.4,0,null,0,0,0,0.1,0.1,0.5,1,0.7,{"$f":"(2*SUM(F37,L37,R37)+SUM(S37:V37))/(2*AREAS((F37,L37,R37))+COLUMNS(S37:V37))","v":0.43},0.86,"ei","ei","ei","ei","ei","ei","NT","Osin tulkittu. Monilajinen koivukasvatusmetsä myös kuusi, mänty (aihkejakin), harmaaleppä, mänty, haapa (myös isoa), pihlaja. H"]
[59,"Varttunut kuusivaltainen kasvatusmetsä, ojitettu, lähinnä ruohoturvekangasta sekä korpimuuttumaa.","Ruohoturvekangas/korpimuuttuma",99,0.9,0.5,1,0,1,0,1,0.6,"0-5",null,0,0,0,0.1,0.6,0.1,1,0.3,{"$f":"(2*SUM(F38,L38,R38)+SUM(S38:V38))/(2*AREAS((F38,L38,R38))+COLUMNS(S38:V38))","v":0.44000000000000006},0.39600000000000007,"ei","ei","ei","ei","ei","ei",null,"Vaihteleva kuvio, paikoin jätetty paljon hakkutähteitä, paikoin edustavampaa kasvillisuutta"]
[60,"Nuori kasvatusmetsikkö; tuoretta/lehtomaista kg","Nuoret tuoreet kankaat M02.02.01",99,0.6,0.5,0,0,0,0,0,0.1,0,null,0,0,0,0.1,0.5,0.1,1,0.8,{"$f":"(2*SUM(F39,L39,R39)+SUM(S39:V39))/(2*AREAS((F39,L39,R39))+COLUMNS(S39:V39))","v":0.38},0.22799999999999998,"ei","ei","ei","ei","ei","ei","VU","tulkittu"]
[61,"Nuori kasvatusmetsikkö, kuusivaltainen (OMT)","Nuoret lehtomaiset kankaat M02.01.01",99,4.7,0.5,1,1,1,0,1,0.6,0,null,0,0,0,0.1,0.5,0.1,1,0.9,{"$f":"(2*SUM(F40,L40,R40)+SUM(S40:V40))/(2*AREAS((F40,L40,R40))+COLUMNS(S40:V40))","v":0.49000000000000005},2.3030000000000004,"ei","ei","ei","ei","ei","ei","VU","nuorta ja tiheää, heinittynyttä"]
[62,"heinittynyt hakkuutaimikko, koivukasvos, säästöpuuryhmiä","Nuoret lehtomaiset kankaat M02.01.01",90,3.6,0.2,0,0,0,0,0,0.1,null,null,0,0,0,0.1,0.1,0.1,1,0.2,{"$f":"(2*SUM(F41,L41,R41)+SUM(S41:V41))/(2*AREAS((F41,L41,R41))+COLUMNS(S41:V41))","v":0.22000000000000003},0.79200000000000015,"ei","ei","ei","ei","ei","ei","VU"]
[63,null,"Varttuneet havupuuvaltaiset lehtomaiset kankaat M02.01.02",90,1.5,0.5,0,0,0,0,1,0.3,null,null,0,0,0,0.1,0.5,0.1,1,0.8,{"$f":"(2*SUM(F42,L42,R42)+SUM(S42:V42))/(2*AREAS((F42,L42,R42))+COLUMNS(S42:V42))","v":0.42000000000000004},0.63000000000000012,"ei","ei","ei","ei","ei","ei","NT"]
[66,"varttunut kasvatusmetsä, kuusivaltainen (OMT)","Varttuneet havupuuvaltaiset lehtomaiset kankaat M02.01.02",99,1,0.5,1,0,1,0,0,0.5,"0-5",null,0,0,0,0.1,0.6,0.1,1,0.7,{"$f":"(2*SUM(F43,L43,R43)+SUM(S43:V43))/(2*AREAS((F43,L43,R43))+COLUMNS(S43:V43))","v":0.45999999999999996},0.45999999999999996,"ei","ei","ei","ei","ei","ei","NT"]
[68,"paikoin soistunutta kangasta, harvennettu 2019","Varttuneet havupuuvaltaiset lehtomaiset kankaat M02.01.02",95,0.7,0.5,0,0,0,0,1,0.1,0,{"$nulls":4},0.1,0.5,0.1,1,0.8,{"$f":"(2*SUM(F44,L44,R44)+SUM(S44:V44))/(2*AREAS((F44,L44,R44))+COLUMNS(S44:V44))","v":0.38},0.26599999999999996,"ei","ei","ei","ei","ei","ei","NT","tulkittu. Harvennettu 2019"]
[69,"harvennettu 2019","Varttuneet havupuuvaltaiset lehtomaiset kankaat M02.01.02",99,1.9,0.5,0,0,0,0,1,0.1,0,{"$nulls":4},0.1,0.5,0.1,1,0.8,{"$f":"(2*SUM(F45,L45,R45)+SUM(S45:V45))/(2*AREAS((F45,L45,R45))+COLUMNS(S45:V45))","v":0.38},0.72199999999999998,"ei","ei","ei","ei","ei","ei","NT","tulkittu. Harvennettu 2019"]
[70,null,"Nuoret tuoreet kankaat M02.02.01",99,1.2,0.5,0,0,0,0,1,0.3,0,{"$nulls":4},0.1,0.5,0.1,1,0.8,{"$f":"(2*SUM(F46,L46,R46)+SUM(S46:V46))/(2*AREAS((F46,L46,R46))+COLUMNS(S46:V46))","v":0.42000000000000004},0.504,"ei","ei","ei","ei","ei","ei","VU","tulkittu "]
[71,null,"Varttuneet havupuuvaltaiset lehtomaiset kankaat M02.01.02",99,0.7,0.5,0,0,0,0,1,0.3,0,{"$nulls":4},0.1,0.5,0.1,1,0.8,{"$f":"(2*SUM(F47,L47,R47)+SUM(S47:V47))/(2*AREAS((F47,L47,R47))+COLUMNS(S47:V47))","v":0.42000000000000004},0.29399999999999998,"ei","ei","ei","ei","ei","ei","NT","tulkittu"]
[73,null,"Nuoret lehtomaiset kankaat M02.01.01",90,0.6,0.5,0,0,0,0,1,0.3,"0-5",{"$nulls":4},0.2,0.5,0.1,1,0.9,{"$f":"(2*SUM(F48,L48,R48)+SUM(S48:V48))/(2*AREAS((F48,L48,R48))+COLUMNS(S48:V48))","v":0.45},0.27,"ei","ei","ei","ei","ei","ei","VU"]
[74,"soistumaa ja jätettyjä ylispuita","Nuoret lehtomaiset kankaat M02.01.01",95,1.1000000000000001,0.5,1,1,1,0,1,0.6,0,{"$nulls":4},0.1,0.5,0.1,1,0.9,{"$f":"(2*SUM(F49,L49,R49)+SUM(S49:V49))/(2*AREAS((F49,L49,R49))+COLUMNS(S49:V49))","v":0.49000000000000005},0.53900000000000015,"ei","ei","ei","ei","ei","ei","VU","mv tietojen mukaan kuviolla pieni kosteikko, ei näy kartassa tai ilmakuvilla."]
[76,"sisäreunalla joitakin isompia ylispuita; mäntyä","Nuoret tuoreet kankaat M02.02.01",99,0.7,0.5,1,0,1,0,1,0.5,0,{"$nulls":4},0.1,0.5,0.1,1,0.9,{"$f":"(2*SUM(F50,L50,R50)+SUM(S50:V50))/(2*AREAS((F50,L50,R50))+COLUMNS(S50:V50))","v":0.47000000000000003},0.32900000000000001,"ei","ei","ei","ei","ei","ei","VU"]
[77,"erilaisuutta kuviolla, ajouria.","Varttuneet havupuuvaltaiset tuoreet kankaat M02.02.02",90,0.7,0.5,0,0,0,0,1,0.3,"0-5",{"$nulls":4},0.1,0.7,0.1,1,0.5,{"$f":"(2*SUM(F51,L51,R51)+SUM(S51:V51))/(2*AREAS((F51,L51,R51))+COLUMNS(S51:V51))","v":0.41},0.28699999999999998,"ei","ei","ei","ei","ei","ei","NT"]
[78,null,"Nuoret lehtomaiset kankaat M02.01.01",99,0.5,0.5,0,0,0,0,1,0.3,0,{"$nulls":4},0.1,0.5,0.1,1,0.9,{"$f":"(2*SUM(F52,L52,R52)+SUM(S52:V52))/(2*AREAS((F52,L52,R52))+COLUMNS(S52:V52))","v":0.43},0.215,"ei","ei","ei","ei","ei","ei","VU"]
[79,null,"Nuoret lehtomaiset kankaat M02.01.01",99,0.6,0.5,1,1,0,0,1,0.6,0,{"$nulls":4},0.1,0.5,0.1,1,0.9,{"$f":"(2*SUM(F53,L53,R53)+SUM(S53:V53))/(2*AREAS((F53,L53,R53))+COLUMNS(S53:V53))","v":0.49000000000000005},0.29400000000000004,"ei","ei","ei","ei","ei","ei","VU"]
[80,"heinittynyt, harvennettu männikkö sekapuusto","Varttuneet havupuuvaltaiset tuoreet kankaat M02.02.02",99,0.7,0.5,1,0,0,0,1,0.4,0,null,0,0,0,0.1,0.5,0.2,1,1,{"$f":"(2*SUM(F54,L54,R54)+SUM(S54:V54))/(2*AREAS((F54,L54,R54))+COLUMNS(S54:V54))","v":0.47000000000000003},0.32900000000000001,"ei","ei","ei","ei","ei","ei","NT"]
[81,"varttunut kasvatuskuusikko","Varttuneet havupuuvaltaiset lehtomaiset kankaat M02.01.02",99,0.5,0.5,0,0,0,0,1,0.4,0,null,0,0,0,0.1,0.5,0.1,1,0.8,{"$f":"(2*SUM(F55,L55,R55)+SUM(S55:V55))/(2*AREAS((F55,L55,R55))+COLUMNS(S55:V55))","v":0.44000000000000006},0.22000000000000003,"ei","ei","ei","ei","ei","ei","NT","tulkittu"]
[83,"osin pieniä soistumia, ei suota, paljon jätettyä hakkuutähdettä, myös pieniä runkoja","Varttuneet havupuuvaltaiset lehtomaiset kankaat M02.01.02",90,2.1,0.5,1,1,0,0,1,0.5,"0-5",{"$nulls":4},0.1,0.5,0.1,1,0.5,{"$f":"(2*SUM(F56,L56,R56)+SUM(S56:V56))/(2*AREAS((F56,L56,R56))+COLUMNS(S56:V56))","v":0.43000000000000005},0.90300000000000014,"ei","ei","ei","ei","ei","ei","NT"]
[84,"varttunut kuusimetsä, sekapuustoinen, epätasainen","Varttuneet havupuuvaltaiset lehtomaiset kankaat M02.01.02",99,2,0.5,1,0,1,0,1,0.5,"0-5",null,0,0,0,0.2,0.6,0.1,1,0.6,{"$f":"(2*SUM(F57,L57,R57)+SUM(S57:V57))/(2*AREAS((F57,L57,R57))+COLUMNS(S57:V57))","v":0.46999999999999992},0.93999999999999984,"ei","ei","ei","ei","ei","ei","NT","Tulkittu"]
[85,"varttunut kasvatusmetsä, VMT","Varttuneet havupuuvaltaiset tuoreet kankaat M02.02.02",99,1.2,0.5,1,0,0,0,1,0.5,"0-5",null,0,0,0,0.1,0.6,0.1,1,0.9,{"$f":"(2*SUM(F58,L58,R58)+SUM(S58:V58))/(2*AREAS((F58,L58,R58))+COLUMNS(S58:V58))","v":0.48000000000000009},0.57600000000000007,"ei","ei","ei","ei","ei","ei","NT","osin tulkittu"]
[87,"nuori, kuusivaltainen, harvennettu talousmetsä","Nuoret tuoreet kankaat M02.02.01",99,0.8,0.4,0,0,1,0,0,0.2,0,null,0,0,0,0.1,0.5,0.1,1,0.3,{"$f":"(2*SUM(F59,L59,R59)+SUM(S59:V59))/(2*AREAS((F59,L59,R59))+COLUMNS(S59:V59))","v":0.33},0.26400000000000001,"ei","ei","ei","ei","ei","ei","VU","Hiljattain harvennettu, paljon metsäkoneuria, pieniä risuja. Paikoin lehtomaisuutta (käenkaali, oravanmarja, lillukka). Hirviä liikkuu."]
[88,"nuori, epätasaisesti käsitelty nuori lehtom kangas rajautuen ratavyöhykkeeseen","Nuoret lehtomaiset kankaat M02.01.01",90,0.6,0.5,0,1,1,0,1,0.7,0,null,0,0,0,0.1,0.4,0.1,1,0.4,{"$f":"(2*SUM(F60,L60,R60)+SUM(S60:V60))/(2*AREAS((F60,L60,R60))+COLUMNS(S60:V60))","v":0.45},0.27,"ei","ei","ei","ei","ei","ei","VU","Rautatie lähellä, sen ympäristössä nuorta taimikkoa. Kuvio osin heinikoitunut, pieniä niittym. aukioita. Hirven makuupaikkoja ja jätöksiä."]
[89,"nuori, mäntyvaltainen harvennettu talousmetsä","Nuoret tuoreet kankaat M02.02.01",90,4.5,0.5,0,1,1,0,0,0.4,0,null,0,0,0,0.1,0.7,0.1,1,0.5,{"$f":"(2*SUM(F61,L61,R61)+SUM(S61:V61))/(2*AREAS((F61,L61,R61))+COLUMNS(S61:V61))","v":0.43},1.9350000000000001,"ei","ei","ei","ei","ei","ei","VU","Valkolehdokkia (rauh) alueen etelälaidalla, missä vaihettuu lehtomaiseksi. Pyyn (VU) ja metson jätöksiä pienen kalliopaljastuman päällä. Runsaasti kangasmaitikkaa (kirjoverkkoperhonen IV)."]
[90,"nuori, kuusivaltainen, harvennettu talousmetsä","Nuoret tuoreet kankaat M02.02.02",70,3.4,0.4,0,0,0,0,1,0.3,0,0,0,0,0,0.1,0.4,0.1,1,0.3,{"$f":"(2*SUM(F62,L62,R62)+SUM(S62:V62))/(2*AREAS((F62,L62,R62))+COLUMNS(S62:V62))","v":0.33999999999999997},1.1559999999999999,"ei","ei","ei","ei","ei","ei","VU","Suurin osa kuviosta. Paljon risukasoja ja metsäkoneuria."]
[90,"nuori, kuusivaltainen, harvennettu talousmetsä","Nuoret lehtomaiset kankaat M02.01.01",25,1.2,0.4,0,0,0,0,1,0.3,0,0,0,0,0,0.1,0.4,0.1,1,0.3,{"$f":"(2*SUM(F63,L63,R63)+SUM(S63:V63))/(2*AREAS((F63,L63,R63))+COLUMNS(S63:V63))","v":0.33999999999999997},0.40799999999999997,"ei","ei","ei","ei","ei","ei","VU","Rajautuu etelässä lehtoon, joka liito-oravalle sopivaa (varttuneita haapoja ym.)."]
[92,"Muutama järeä kuusi, hieman haapaa. OMT-tyyppi","Varttuneet havupuuvaltaiset lehtomaiset kankaat M02.01.02",100,1.1000000000000001,0.7,1,1,1,0,0,0.7,0,0,0,0,0,0.3,1,0.4,1,0.8,{"$f":"(2*SUM(F64,L64,R64)+SUM(S64:V64))/(2*AREAS((F64,L64,R64))+COLUMNS(S64:V64))","v":0.65999999999999992},0.72599999999999998,"ei","boreaaliset luonnonmetsät 9010","ei","ei","ei","ei","NT","Potentiaalinen liito-oravalle (IV). Palokärjen hakkuita. Lahopuupotentiaalia."]
[94,"Tiheä, nuori, risukkoinen kuusikko","Nuoret lehtomaiset kankaat M02.01.01",100,0.2,0.4,0,0,0,0,0,0.2,5,0,0,0,0,0.4,0.2,0.1,1,0.5,{"$f":"(2*SUM(F65,L65,R65)+SUM(S65:V65))/(2*AREAS((F65,L65,R65))+COLUMNS(S65:V65))","v":0.38},7.6000000000000012E-2,"ei","ei","ei","ei","ei","ei","VU","Hyvin karikkeinen, kenttäkerroksessa vain muutamia metsäalvejuuria ja puna-ailakkeja."]
[95,"Nuori, risukkoinen kuusikko, hieman pihlajaa, raitaa","Nuoret lehtomaiset kankaat M02.01.02",95,0.2,0.4,0,0,0,0,1,0.4,5,0,0,0,0,0.4,0.2,0.1,1,0.5,{"$f":"(2*SUM(F66,L66,R66)+SUM(S66:V66))/(2*AREAS((F66,L66,R66))+COLUMNS(S66:V66))","v":0.42000000000000004},8.4000000000000019E-2,"ei","ei","ei","ei","ei","ei","VU","Kuin edellinen, ei niin tiheä. Molemmissa kuusiriukua jättetty lahoamaan."]
[96,"Nuori, kuusivaltainen lehtomainen kangas, mahd lehtokorpimuuttuma.","Nuoret lehtomaiset kankaat M02.01.03",90,0.6,0.5,0,0,0,0,1,0.5,0,0,0,0,1,0.4,0.4,0.1,1,0.5,{"$f":"(2*SUM(F67,L67,R67)+SUM(S67:V67))/(2*AREAS((F67,L67,R67))+COLUMNS(S67:V67))","v":0.48},0.28799999999999998,"ei","ei","ei","ei","ei","ei","VU","Mahdollisesti kuivunutta lehtokorpea osin"]
[97,"Nuori, kuusivaltainen lehtomainen kangas, talous","Nuoret lehtomaiset kankaat M02.01.04",75,1.6,0.4,0,0,1,0,1,0.5,0,0,0,0,0,0.2,0.6,0.1,1,0.7,{"$f":"(2*SUM(F68,L68,R68)+SUM(S68:V68))/(2*AREAS((F68,L68,R68))+COLUMNS(S68:V68))","v":0.45999999999999996},0.73599999999999999,"ei","ei","ei","ei","ei","ei","VU","Runsaasti oravanmarjaa, käenkaalia, myös mustikkaa. Vaihettuu pohjoiseen tuoreeksi."]
[97,"Nuori, kuusivaltainen turvekangas",null,25,0.5,0.4,0,0,1,0,1,0.5,0,0,0,0,0,0.2,0.6,0.1,1,0.6,{"$f":"(2*SUM(F69,L69,R69)+SUM(S69:V69))/(2*AREAS((F69,L69,R69))+COLUMNS(S69:V69))","v":0.45},0.22500000000000001,"ei","ei","ei","ei","ei","ei",null,"Kuvion itäosa ojitettua entistä korpea, kuivunut turvekankaaksi. Puusto muun kuvion kaltainen."]
[98,"Nuori, osin kuusivaltainen tuore kangas reunavyöhykkeessä","Nuoret tuoreet kankaat M02.02.02",98,0.8,0.5,1,1,1,0,1,0.7,0,0,0,1,0,0.4,0.8,0.1,1,0.6,{"$f":"(2*SUM(F70,L70,R70)+SUM(S70:V70))/(2*AREAS((F70,L70,R70))+COLUMNS(S70:V70))","v":0.57000000000000006},0.45600000000000007,"ei","ei","ei","ei","ei","ei","VU","Yksittäinen järeä kelo kuvioiden 97 ja 98 rajalla. Pohjoisreunalla aukkoisempi, varttuneempaa puustoa, mm. rauduskoivuja ja runsaasti nuorta lehtipuuta (ha lep, pih, koi). Rajautuu rata-alueeseen."]
[100,"Varttunut, kuusivaltainen tuore kangas, myös mä, koi, haapa","Varttuneet havupuuvaltaiset tuoreet kankaat M02.02.02",80,1.84,0.8,1,1,1,0,1,0.8,0,0,1,0,0,0.5,0.9,0.6,1,0.8,{"$f":"(2*SUM(F71,L71,R71)+SUM(S71:V71))/(2*AREAS((F71,L71,R71))+COLUMNS(S71:V71))","v":0.75},1.3800000000000001,"kyllä","boreaaliset luonnonmetsät 9010","hyvä","ei","ei","ei","NT","Ojituksia, pohja paikoin rahkainen, paikoin painunut. Ollut ehkä osin korpi. METSO-pontentiaalia, varsinkin jos saa kehittyä rauhassa; puusto järeähköä (30-40 cm rinnank.) ja monilajista. Eteläosissa myös varttunutta haapaa: kuvio liito-oravalle sopivaa habitaattia."]
[101,"Nuori, havupuuvaltainen tuore kangas","Nuoret tuoreet kankaat M02.02.02",99,0.2,0.5,1,1,0,0,1,0.6,0,0,0,0,0,0.1,0.7,0.3,1,0.5,{"$f":"(2*SUM(F72,L72,R72)+SUM(S72:V72))/(2*AREAS((F72,L72,R72))+COLUMNS(S72:V72))","v":0.49000000000000005},9.8000000000000018E-2,"ei","ei","ei","ei","ei","ei","VU","Muistiinpanot puutteelliset"]
[103,"Nuori, kuusivaltainen lehtomainen kangas","Nuoret lehtomaiset kankaat M02.01.04",99,0.5,0.6,1,1,1,0,1,0.8,4,0,0,0,0,0.4,0.5,0.5,1,0.7,{"$f":"(2*SUM(F73,L73,R73)+SUM(S73:V73))/(2*AREAS((F73,L73,R73))+COLUMNS(S73:V73))","v":0.63},{"$f":"(PRODUCT(E73,W73))","v":0.315},"ei","ei","ei","ei","ei","ei","VU","Järeitä mäntyjä, koivua ja raitaa seassa. Kynsi ja kerrossammal, oravanmarja runsas, mustikka, kielo, lillukka, metsätähti, kultapiisku, käenkaali"]
[104,"Varttunut, sekapuustoinen lehtomainen osin kuivunut, ojitettu","M02.02.04 Varttuneet lehtipuuvaltaiset lehtomaiset ja tuoreet kankaat",50,0.9,0.8,1,1,1,0,1,0.8,0,0,1,0,1,0.7,0.7,0.7,1,0.6,{"$f":"(2*SUM(F74,L74,R74)+SUM(S74:V74))/(2*AREAS((F74,L74,R74))+COLUMNS(S74:V74))","v":0.76},0.68400000000000005,"kyllä","ei","ei","ei","ei","ei","VU","Kuviolla ojitus, joka on kuivattanut (saniais)korven. Lähinnä lehtomaista kangasta nyt. Toinenpuoli kuviota kuivaa, keskiravinteista lehtoa. Koko kuviota ehdotettu jo aiemmin METSO-kohteeksi. Varttunutta lehtipuuta runsaasti, myös haapaa. Liito-oravalle soveltuvaa ja aiempia havaintoja tiedossa."]
[105,"Varttunut, kuusivaltainen tuore kangas, myös mä, koi","Varttuneet havupuuvaltaiset tuoreet kankaat M02.02.03",100,1.9,0.7,1,0,1,0,1,0.8,0,0,1,1,1,0.7,1,0.5,1,0.9,{"$f":"(2*SUM(F75,L75,R75)+SUM(S75:V75))/(2*AREAS((F75,L75,R75))+COLUMNS(S75:V75))","v":0.78},1.482,"Kyllä","ei","ei","ei","ei","ei","NT","Potentiaalia METSO-kohteeksi, mikäli saa kehittyä rauhassa. Korkea lahopuupotentiaali. Suurin osa puustosta lähes järeää. Soveltuu liito-oravalle, kookkaita kuusia ja koivuja, lähellä sopivia ruokailualueita."]
[106,"Varttunut, harvennettu koivuvaltainen lehtomainen kangas","M02.02.04 Varttuneet lehtipuuvaltaiset lehtomaiset ja tuoreet kankaat",40,0.2,0.7,1,1,1,0,1,0.8,0,0,0,1,1,0.5,0.9,0.5,1,0.7,{"$f":"(2*SUM(F76,L76,R76)+SUM(S76:V76))/(2*AREAS((F76,L76,R76))+COLUMNS(S76:V76))","v":0.71},0.14199999999999999,"ei","ei","ei","ei","ei","ei","VU","Koivuvaltainen, ku, mä, ha, joitain järeitä, harvennettu. Alikasvoksena paikoin runsaasti kuusta ja haapaa. Liiturihavainto 2015, soveltuu yhä lajille. Loput kuviosta lehtoa."]
[107,"Varttunut, harvennettu sekapuustoinen tuore kangas","M02.02.04 Varttuneet lehtipuuvaltaiset lehtomaiset ja tuoreet kankaat",100,0.5,0.7,1,1,1,0,1,0.8,0,0,0,0,1,0.4,1,0.5,1,0.7,{"$f":"(2*SUM(F77,L77,R77)+SUM(S77:V77))/(2*AREAS((F77,L77,R77))+COLUMNS(S77:V77))","v":0.7},0.35,"ei","ei","ei","ei","ei","ei","VU","Niukasti koivuvaltainen, myös ku, mä, ha, vielä järeitäkin puita, harvennettu. Alikasvoksena runsaasti pihlajaa, haapaa. Liiturihavaintoja 2013, soveltuu yhä lajille."]
[109,"Koivuvaltainen, lehtomainen kasvatusmetsä"," M02.01.04 Nuoret lehtomaiset kankaat",90,2.2000000000000002,0.5,1,1,0,0,1,0.6,null,null,0,0,0,0.2,0.8,0.5,1,0.7,{"$f":"(2*SUM(F78,L78,R78)+SUM(S78:V78))/(2*AREAS((F78,L78,R78))+COLUMNS(S78:V78))","v":0.55999999999999994},1.232,"ei","ei","ei","ei","ei","ei","VU","Maasto vaihtelee kuivasta kosteampaan. Soistumia( vettä ja rahkasammalia, korpikastikkaa, kiiltopajua) kuvion 108 rajalla vanhan talopaikan pohoispuolella. Talopaikan luota mahdollisesti noro kivien alla rinnettä alas pohjoiseen. "]
[119,"Varttunut, sekapuustoinen, lehdoksi vaihettuva  kangas","M02.02.04 Varttuneet lehtipuuvaltaiset lehtomaiset ja tuoreet kankaat",95,0.5,0.7,1,1,2,0,2,0.9,null,null,0,0,0,0.2,0.9,0.5,0.9,0.9,{"$f":"(2*SUM(F79,L79,R79)+SUM(S79:V79))/(2*AREAS((F79,L79,R79))+COLUMNS(S79:V79))","v":0.67999999999999994},0.33999999999999997,"ei","ei","ei","ei","ei","ei","VU","Pohjoisosa tuoretta kangasta, vaihettuu etelään lehtomaiseksi kankaaksi ja s-rajalla lehdoksi (näsiä, lehtokuusama). Joistain hyvinkin järeitä puita ja toisaalta runsaasti nuorta lehtipuuta. Kuviolla vanha kiviaita. Itäpuolen rinne erinomaisen hyvin liito-oravalle sopivaa järeäpuustoista metsää."]
[124,"Kuusivaltainen, edustava vanha metsä OMT","M02.01.03 Vanhat havupuuvaltaiset lehtomaiset kankaat",90,4.5,1,2,2,2,0,1,0.9,null,null,1,1,1,0.9,1,1,1,1,{"$f":"(2*SUM(F80,L80,R80)+SUM(S80:V80))/(2*AREAS((F80,L80,R80))+COLUMNS(S80:V80))","v":0.96},4.32,"Kyllä","boreaaliset luonnonmetsät 9010","Erinomainen","ei, viereinen kuvio 122 metsälakikohde","ei, viereinen kuvio 123 vesilakikohde","ei","EN","Erittäin edustava kohde, jo aiemmin havaittu täyttävän METSO-kriteerit, liittyy vesi- ja metsälakikohteisiin (122 ja 123), muodostavat yhdessä merkittävän, monimuotoisen kokonaisuuden. Valtapuu järeä kuusi, myös järeitä mäntyjä ja haapoja. Aiempia liito-oravahavaintoja, kolopuita. Runsaasti järeää lahopuuta. Lepakoile sopivaa (vieressä vielä mm. Korpelan hevoslaidun ja niittymäinen peltoaukea.)"]
[126,"Kuusivaltainen varttunut ja vanhempi metsä OMT","Varttuneet havupuuvaltaiset tuoreet kankaat M02.02.03",90,1.7,0.9,1,2,2,0,1,0.8,null,null,1,1,1,0.7,0.9,0.7,1,0.9,{"$f":"(2*SUM(F81,L81,R81)+SUM(S81:V81))/(2*AREAS((F81,L81,R81))+COLUMNS(S81:V81))","v":0.83000000000000007},1.411,"Kyllä","boreaaliset luonnonmetsät 9010","hyvä","ei","ei","ei","NT","Hyvä lahopuupotentiaali, kookasta haapaa ojalla, joka palautumassa luonontilaisen noron kaltaiseksi. Kuvion itäpuolella vähemmän lahopuuta, järeitä kuusia."]
[129,"Varttunut talousmetsä","Varttuneet havupuuvaltaiset tuoreet kankaat M02.02.04",100,1.5,0.7,1,1,1,0,1,0.8,null,null,0,0,0,0.2,0.9,0.4,1,0.9,{"$f":"(2*SUM(F82,L82,R82)+SUM(S82:V82))/(2*AREAS((F82,L82,R82))+COLUMNS(S82:V82))","v":0.65999999999999992},0.98999999999999988,"ei","ei","ei","ei","ei","ei","NT","Puutteelliset muistiinpanot: \"Muistuttaa kuviota 126, mutta ei juuri lehtipuita eikä lahopuuta, kun taas kataja runsas. Talousmetsäksi edustava\"."]
[135,"Varttunut talouskoivikko","M02.02.04 Varttuneet lehtipuuvaltaiset lehtomaiset ja tuoreet kankaat",100,1.8,0.5,0,0,0,0,1,0.4,null,null,0,0,0,0.1,0.5,0.1,1,0.7,{"$f":"(2*SUM(F83,L83,R83)+SUM(S83:V83))/(2*AREAS((F83,L83,R83))+COLUMNS(S83:V83))","v":0.43},0.77400000000000002,"ei","ei","ei","ei","ei","ei","VU","Heinikoitunut (kastikkaa), 2 latvuskerrosta ko, ku, valkolehdokki"]
[136,"Avara talouskoivikko","M02.02.04 Varttuneet lehtipuuvaltaiset lehtomaiset ja tuoreet kankaat",99,0.4,0.5,0,0,0,0,0,0.2,null,null,0,0,0,0.1,0.3,0.1,0.8,0.5,{"$f":"(2*SUM(F84,L84,R84)+SUM(S84:V84))/(2*AREAS((F84,L84,R84))+COLUMNS(S84:V84))","v":0.32999999999999996},0.13199999999999998,"ei","ei","ei","ei","ei","ei","VU","Heinikoitunut, pihan ja tien reunavaikutusta"]
[137,"Havupuuvaltainen nuori talousmetsä ","M02.02.01 Nuoret tuoreet kankaat",90,1.7,0.4,0,0,1,0,1,0.5,null,null,0,0,0,0.1,0.7,0.1,1,0.7,{"$f":"(2*SUM(F85,L85,R85)+SUM(S85:V85))/(2*AREAS((F85,L85,R85))+COLUMNS(S85:V85))","v":0.45},0.76500000000000001,"ei","ei","ei","ei","ei","ei","VU","Kuvion poikki kulkee pihatie rantaan, pohjoisosa tulkittu"]
[138,"Ojitettu räme","Mustikkaturvekangas",100,1.3,0.7,1,1,1,0,1,0.5,"0-5",{"$nulls":4},0.2,0.6,0.2,1,0.6,{"$f":"(2*SUM(F86,L86,R86)+SUM(S86:V86))/(2*AREAS((F86,L86,R86))+COLUMNS(S86:V86))","v":0.51999999999999991},0.67599999999999993,"ei","ei","ei","ei","ei","ei",null,"Valtapuusto ojituksen seurauksena venähtänyttä mäntyä. Kuvion keskellä pieni uimaranta ja rantaan johtava pihatie. Kuvion pohjoisosa tulkittu. Lounaiskulmalla rannassa vielä rämettä."]
[141,"Ojitettu talouskuusikko","Peltoheitto, jolla kasvatuskuusikkoa",95,2.1,0.5,0,0,0,0,1,0.3,null,null,0,0,0,0.1,0.3,0.1,1,0.5,{"$f":"(2*SUM(F87,L87,R87)+SUM(S87:V87))/(2*AREAS((F87,L87,R87))+COLUMNS(S87:V87))","v":0.37},0.77700000000000002,"ei","ei","ei","ei","ei","ei",null,"Kasvatuskuusikko entisellä pellolla. Kenttäkerros hyvin niukka."]
[142,"Kasvatusmetsätaimikko, ojitettu, ku valtainen","M02.02.01 Nuoret tuoreet kankaat",99,1.2,0.2,0,0,0,0,0,0.1,null,null,0,0,0,0.1,0.5,0.1,1,0.5,{"$f":"(2*SUM(F88,L88,R88)+SUM(S88:V88))/(2*AREAS((F88,L88,R88))+COLUMNS(S88:V88))","v":0.29000000000000004},0.34800000000000003,"ei","ei","ei","ei","ei","ei","NT","Nuori kasvatusmetsätaimikko ojitetulla avohakkuualueella. Tulkittu"]
[143,"Kasvatusmetsätaimikko,ojitettu,  ku valtainen"," M02.01.04 Nuoret lehtomaiset kankaat",99,0.4,0.4,1,0,0,0,1,0.4,null,null,0,0,0,0.2,0.6,0.2,1,0.5,{"$f":"(2*SUM(F89,L89,R89)+SUM(S89:V89))/(2*AREAS((F89,L89,R89))+COLUMNS(S89:V89))","v":0.43},0.17200000000000001,"ei","ei","ei","ei","ei","ei","NT","Nuori kasvatusmetsä, ojitettu, osin sekapuustoinen. Tulkittu"]
[144,"Ku valtainen ojitettu kasvatusmetsä","M02.02.01 Nuoret tuoreet kankaat",90,0.6,0.5,1,0,0,0,1,0.5,null,null,0,0,0,0.3,0.6,0.2,1,0.5,{"$f":"(2*SUM(F90,L90,R90)+SUM(S90:V90))/(2*AREAS((F90,L90,R90))+COLUMNS(S90:V90))","v":0.49000000000000005},0.29400000000000004,"ei","ei","ei","ei","ei","ei","NT","Itäosa mahdollisesti korpimuuttumaa.Tulkittu."]
[145,"Ojitettu räme","Puolukkaturvekangas",95,1.2,0.6,1,1,1,0,1,0.7,"0-5",{"$nulls":4},0.2,0.6,0.3,1,0.6,{"$f":"(2*SUM(F91,L91,R91)+SUM(S91:V91))/(2*AREAS((F91,L91,R91))+COLUMNS(S91:V91))","v":0.55000000000000004},0.66,"ei","ei","ei","ei","ei","ei"]
[146,"Ojitettu luhtainen ja ruohoinen hieskoivukorpi","Turvekangas",15,0.7,0.4,1,1,0,0,1,0.6,null,null,0,1,1,0.6,0.4,0.1,1,0.8,{"$f":"(2*SUM(F92,L92,R92)+SUM(S92:V92))/(2*AREAS((F92,L92,R92))+COLUMNS(S92:V92))","v":0.55000000000000004},0.38500000000000001,"kyllä","ei","ei","kyllä","ei","ei",null,"Korvapuron Ylimmäiseen Korvalampeen laskeva suistoalue kuviolla. Osa arvokkaasta suokokonaisuudesta muuttunut ojitusten vuoksi turvekankaaksi, vaihettuu sarakorveksi. Ennallistamiskelpoinen. Loput kuviosta arvokasta rantasuota."]
[148,"ku valt kasvatusmetsä","M02.02.01 Nuoret tuoreet kankaat",99,0.3,0.4,0,0,1,0,1,0.4,null,null,0,0,0,0.2,0.6,0.1,1,0.6,{"$f":"(2*SUM(F93,L93,R93)+SUM(S93:V93))/(2*AREAS((F93,L93,R93))+COLUMNS(S93:V93))","v":0.43},0.129,"ei","ei","ei","ei","ei","ei","VU","tulkittu"]
[149,"ku valt kasvatusmetsä","M02.02.01 Nuoret tuoreet kankaat",99,0.4,0.4,0,0,1,0,1,0.4,null,null,0,0,0,0.2,0.6,0.1,1,0.6,{"$f":"(2*SUM(F94,L94,R94)+SUM(S94:V94))/(2*AREAS((F94,L94,R94))+COLUMNS(S94:V94))","v":0.43},0.17200000000000001,"ei","ei","ei","ei","ei","ei","VU","tulkittu"]
[150,"ojitettu räme","Turvekangas (puolukka, mustikka)",100,0.4,0.5,1,1,1,0,1,0.7,"0-5",{"$nulls":4},0.2,0.5,0.2,1,0.6,{"$f":"(2*SUM(F95,L95,R95)+SUM(S95:V95))/(2*AREAS((F95,L95,R95))+COLUMNS(S95:V95))","v":0.51},0.20400000000000001,"ei","ei","ei","ei","ei","ei",null,"Tuoreen kankaan lajistoa, kuivunut räme. Puusto erirakenteinen, monimuotoinen, osin varttunut."]
[152,"ku valtainen sekapuustoinen puronvarsimetsä","Varttuneet havupuuvaltaiset tuoreet kankaat M02.02.04",99,0.2,0.8,2,2,1,0,1,0.9,null,null,1,1,1,0.7,0.9,0.5,1,0.5,{"$f":"(2*SUM(F96,L96,R96)+SUM(S96:V96))/(2*AREAS((F96,L96,R96))+COLUMNS(S96:V96))","v":0.77000000000000013},0.15400000000000003,"kyllä","ei","ei","kyllä","ei","ei","NT","Potentiaalia METSOon varsinkin puron länsirannan metsällä. Kohde 151 Korvapuro kuviolla."]
[154,"ku valtainen kasvatusmetsä","Varttuneet havupuuvaltaiset tuoreet kankaat M02.02.05",95,1.8,0.7,1,1,0,0,1,0.6,null,null,0,0,0,0.3,0.8,0.4,1,0.5,{"$f":"(2*SUM(F97,L97,R97)+SUM(S97:V97))/(2*AREAS((F97,L97,R97))+COLUMNS(S97:V97))","v":0.59000000000000008},1.0620000000000003,"ei","ei","ei","ei","ei","ei","NT","Osa kuviosta mustikkaturvekangasta, ojitus kuivattanut aiemmin korpiset alueet. Valtapuusto noin 70 vuotiasta."]
[155,"mä valtainen kasvatusmetsä","Varttuneet havupuuvaltaiset tuoreet kankaat M02.02.06",100,1.3,0.6,1,0,0,0,1,0.5,null,null,0,0,0,0.1,0.6,0.1,1,0.7,{"$f":"(2*SUM(F98,L98,R98)+SUM(S98:V98))/(2*AREAS((F98,L98,R98))+COLUMNS(S98:V98))","v":0.48000000000000009},0.62400000000000011,"ei","ei","ei","ei","ei","ei","NT","Harvahko, metsäkastikka runsas"]
[156,"tiheä, koi, pi valtainen rinnemetsä","Nuoret lehtomaiset kankaat M02.01.04",100,1.2,0.5,1,1,1,0,2,0.8,null,null,0,0,1,0.5,0.9,0.1,1,0.9,{"$f":"(2*SUM(F99,L99,R99)+SUM(S99:V99))/(2*AREAS((F99,L99,R99))+COLUMNS(S99:V99))","v":0.65},0.78,"ei","ei","ei","ei","ei","ei","VU","Kuusikoituva, tiheä. Oravanmarja runsas, tähtitalvikkia."]
[157,"kostea sekapuustoinen rinnemetsä notkelmassa","M02.01.02 Varttuneet havupuuvaltaiset lehtomaiset kankaat",95,0.4,0.7,1,2,1,0,2,0.9,null,null,0,0,0,0.5,0.9,0.4,1,0.7,{"$f":"(2*SUM(F100,L100,R100)+SUM(S100:V100))/(2*AREAS((F100,L100,R100))+COLUMNS(S100:V100))","v":0.72},0.28799999999999998,"ei","ei","ei","ei","ei","ei","NT","Kuviolla tihkupintainen lähde ja noro (169). Molemmat ihmisen muokkaamia, rengaskaivo jolta letku, norouoma suoristettu aikoinaan ojaksi, palautuva?."]
[159,"Kastikoitunut lehtipuuvaltainen nuori metsä","Nuoret lehtomaiset kankaat M02.01.04",100,0.9,0.5,1,1,1,0,2,0.7,null,null,0,0,0,0.2,0.5,0.2,0.5,0.6,{"$f":"(2*SUM(F101,L101,R101)+SUM(S101:V101))/(2*AREAS((F101,L101,R101))+COLUMNS(S101:V101))","v":0.45999999999999996},0.41399999999999998,"ei","ei","ei","ei","ei","ei","VU","Runsaasti nuorta pi, koi, siemenpuina varttunutta mä harvakseltaan, aukkoinen, kärrypolku-uria, metsäkastikka runsas.Lupiini, puistolemmikki. Itäreunalla vanha kiviaita ja kivikasa."]
[160,"Lehtipuuvaltainen nuori lehtom kangas","Nuoret lehtomaiset kankaat M02.01.05",95,1,0.5,1,1,1,0,2,0.7,null,null,0,0,0,0.2,0.5,0.2,0.8,0.7,{"$f":"(2*SUM(F102,L102,R102)+SUM(S102:V102))/(2*AREAS((F102,L102,R102))+COLUMNS(S102:V102))","v":0.5},0.5,null,"ei","ei","ei","ei","ei","VU","Osin tulkittu. Sekapuustoinen, runsaasti nuorta lehtipuuta. Vanha kivikasa E-kulmalla."]
[161,"Koivuvaltainen nuorehko kasvatusmetsä","M02.02.04 Varttuneet lehtipuuvaltaiset lehtomaiset ja tuoreet kankaat",90,1.7,0.5,1,1,0,0,1,0.6,null,null,0,0,0,0.1,0.3,0.1,0.4,0.6,{"$f":"(2*SUM(F103,L103,R103)+SUM(S103:V103))/(2*AREAS((F103,L103,R103))+COLUMNS(S103:V103))","v":0.38},0.64600000000000002,"ei","ei","ei","ei","ei","ei","VU","Entisellä pellolla, kenttäkerroksen kasvillisuus muistuttaa rehevän niityn kasvillisuutta. Lupiiinia, puistolemmikkiä."]
[162,"Ku valtainen kasvatusmetsä","M02.01.02 Varttuneet havupuuvaltaiset lehtomaiset kankaat",99,0.7,0.5,1,0,0,0,0,0.2,null,null,0,0,0,0.1,0.2,0.1,0.7,0.7,{"$f":"(2*SUM(F104,L104,R104)+SUM(S104:V104))/(2*AREAS((F104,L104,R104))+COLUMNS(S104:V104))","v":0.32999999999999996},0.23099999999999996,"ei","ei","ei","ei","ei","ei","NT","Entisellä pellolla, tulkittu."]
[163,"Lehtipuuvaltainen kasvatusmetsä","Nuoret lehtomaiset kankaat M02.01.05",99,0.4,0.5,1,1,1,0,1,0.8,{"$nulls":5},0.2,0.7,0.1,0.9,0.7,{"$f":"(2*SUM(F105,L105,R105)+SUM(S105:V105))/(2*AREAS((F105,L105,R105))+COLUMNS(S105:V105))","v":0.54},0.21600000000000003,"ei","ei","ei","ei","ei","ei","VU","Tulkittu."]
[164,"Havupuuvaltainen kasvatusmetsä","Varttuneet havupuuvaltaiset tuoreet kankaat M02.02.06",99,0.5,0.6,1,1,0,0,1,0.7,null,null,0,0,0,0.2,0.7,0.3,0.9,0.7,{"$f":"(2*SUM(F106,L106,R106)+SUM(S106:V106))/(2*AREAS((F106,L106,R106))+COLUMNS(S106:V106))","v":0.55999999999999994},0.27999999999999997,"ei","ei","ei","ei","ei","ei","NT","Tulkittu."]
[165,"Sekapuustoinen kasvatusmetsä","M02.02.01 Nuoret tuoreet kankaat",99,0.3,0.5,1,1,1,0,2,0.8,null,null,0,0,1,0.4,0.7,0.1,0.9,0.7,{"$f":"(2*SUM(F107,L107,R107)+SUM(S107:V107))/(2*AREAS((F107,L107,R107))+COLUMNS(S107:V107))","v":0.58000000000000007},0.17400000000000002,"ei","ei","ei","ei","ei","ei","VU","Tulkittu."]
[166,"Varttunut ku valtainen kangas","Varttuneet havupuuvaltaiset tuoreet kankaat M02.02.06",99,1,0.7,1,1,1,0,1,0.8,{"$nulls":5},0.5,0.8,0.6,0.9,0.8,{"$f":"(2*SUM(F108,L108,R108)+SUM(S108:V108))/(2*AREAS((F108,L108,R108))+COLUMNS(S108:V108))","v":0.71},0.71,"ei","ei","ei","ei","ei","ei","NT","Tulkittu."]
[167,"Harvennettu lehtipuuvaltainen kasvatusmetsä","Nuoret lehtomaiset kankaat M02.01.05",99,0.5,0.5,0,0,0,0,1,0.3,null,null,0,0,0,0.1,0.2,0.1,0.5,0.6,{"$f":"(2*SUM(F109,L109,R109)+SUM(S109:V109))/(2*AREAS((F109,L109,R109))+COLUMNS(S109:V109))","v":0.32},0.16,"ei","ei","ei","ei","ei","ei","VU","Tulkittu."]
[168,"Havupuuvaltainen kasvatusmetsä","Varttuneet havupuuvaltaiset tuoreet kankaat M02.02.06",100,1.9,0.6,1,1,1,0,1,0.8,null,null,0,0,1,0.5,1,0.2,1,0.8,{"$f":"(2*SUM(F110,L110,R110)+SUM(S110:V110))/(2*AREAS((F110,L110,R110))+COLUMNS(S110:V110))","v":0.67999999999999994},1.2919999999999998,"ei","ei","ei","ei","ei","ei","NT","Osin mänty-, osin kuusivaltainen"]
[169,"Taimikko","M02.02.01 Nuoret tuoreet kankaat",100,0.6,0.3,0,0,1,0,1,0.5,0,null,0,0,0,0.1,0.9,0.1,1,0.7,{"$f":"(2*SUM(F111,L111,R111)+SUM(S111:V111))/(2*AREAS((F111,L111,R111))+COLUMNS(S111:V111))","v":0.45},0.27,"ei","ei","ei","ei","ei","ei","VU","Alle 10-vuotias avohakkuulle noussut taimikko, ku, koi"]
[172,"Havupuuvaltainen kasvatusmetsä","Varttuneet havupuuvaltaiset tuoreet kankaat M02.02.06",100,3.1,0.6,1,1,1,0,1,0.7,null,null,0,0,1,0.4,0.9,0.2,1,0.8,{"$f":"(2*SUM(F112,L112,R112)+SUM(S112:V112))/(2*AREAS((F112,L112,R112))+COLUMNS(S112:V112))","v":0.63},1.9530000000000001,"ei","ei","ei","ei","ei","ei","NT","Yli 60-vuotiasta, mä ja ku valtaista kangasta, myös koi runsas"]
[173,"Ojitettu ku valtainen kasvatusmetsä","Varttuneet havupuuvaltaiset tuoreet kankaat M02.02.06",98,3.3,0.6,1,1,1,0,1,0.6,null,null,0,0,0,0.2,0.7,0.2,1,0.6,{"$f":"(2*SUM(F113,L113,R113)+SUM(S113:V113))/(2*AREAS((F113,L113,R113))+COLUMNS(S113:V113))","v":0.53},1.7489999999999999,"ei","ei","ei","ei","ei","ei","NT","Ojitukset kuivattaneet korpimaisia osia mustikkaturvekankaan suuntaan."]
[174,"Ku valtainen kasvatusmetsä","M02.02.01 Nuoret tuoreet kankaat",99,1.8,0.5,0,0,1,0,1,0.4,null,null,0,0,0,0.1,0.8,0.1,1,0.7,{"$f":"(2*SUM(F114,L114,R114)+SUM(S114:V114))/(2*AREAS((F114,L114,R114))+COLUMNS(S114:V114))","v":0.45999999999999996},0.82799999999999996,"ei","ei","ei","ei","ei","ei","VU"]
[175,"Lehtomainen metsälaikku","M02.01.02 Varttuneet havupuuvaltaiset lehtomaiset kankaat",90,0.2,0.6,1,1,1,0,1,0.6,null,null,0,0,0,0.2,0.8,0.2,1,0.8,{"$f":"(2*SUM(F115,L115,R115)+SUM(S115:V115))/(2*AREAS((F115,L115,R115))+COLUMNS(S115:V115))","v":0.55999999999999994},0.11199999999999999,"ei","ei","ei","ei","ei","ei","NT","Tulkittu. Metsäkeskuksen metsävaratiedoista poiketen kosteusindeksi, tai maastokartta eivät viittaa soistumaan."]
[176,"Ku valtainen kasvatusmetsä","Varttuneet havupuuvaltaiset tuoreet kankaat M02.02.06",90,0.3,0.6,1,1,1,0,1,0.6,null,null,0,0,0,0.2,0.7,0.2,1,0.7,{"$f":"(2*SUM(F116,L116,R116)+SUM(S116:V116))/(2*AREAS((F116,L116,R116))+COLUMNS(S116:V116))","v":0.53999999999999992},0.16199999999999998,"ei","ei","ei","ei","ei","ei","NT","Tulkittu. Metsäkeskuksen kosteusindeksi viittaa soistumaan, ojitettu alempaa selvitysalueen ulkopuolella."]
[177,"Ku valtainen varttunutta vanhempi metsälaikku","Varttuneet havupuuvaltaiset tuoreet kankaat M02.02.07",90,0.5,0.8,1,1,1,0,1,0.8,{"$nulls":5},0.6,0.8,0.7,1,0.9,{"$f":"(2*SUM(F117,L117,R117)+SUM(S117:V117))/(2*AREAS((F117,L117,R117))+COLUMNS(S117:V117))","v":0.78},0.39,"ei","ei","ei","ei","ei","ei","NT","Tulkittu. Ikänsä puolesta potentiaalinen METSO-kohde, varsinkin jos korpisuutta, lahopuuta, tai lehtomaisuutta. Kosteusindeksin perusteella voi olla soistumaa. Ympäröivillä kuvioilla kuitenkin ojituksia."]
[178,"Mä valtainen ojitettu kangas","Varttuneet havupuuvaltaiset tuoreet kankaat M02.02.08",80,0.56000000000000005,0.6,1,1,1,0,1,0.7,null,null,0,0,0,0.2,0.7,0.1,1,0.7,{"$f":"(2*SUM(F118,L118,R118)+SUM(S118:V118))/(2*AREAS((F118,L118,R118))+COLUMNS(S118:V118))","v":0.55000000000000004},0.30800000000000005,"ei","ei","ei","ei","ei","ei","NT","Osa kuviosta rantavyöhykkeen vaihettumisrämettä, potentiaalinen METSO-kohde? Koska vain 20 % rämettä, paikkatietoon talletettu kangas"]
[181,"Havupuuvaltainen ojitettu kangas","Varttuneet havupuuvaltaiset tuoreet kankaat M02.02.09",99,0.4,0.5,1,1,1,0,1,0.7,null,null,0,0,1,0.6,0.9,0.1,1,0.6,{"$f":"(2*SUM(F119,L119,R119)+SUM(S119:V119))/(2*AREAS((F119,L119,R119))+COLUMNS(S119:V119))","v":0.61999999999999988},0.24799999999999997,"ei","ei","ei","ei","ei","ei","NT","Voisi kehittyä monimuotoiseksi METSO-kohteeksi yhdessä kuvioiden 170, 171, 177 , 178 ja 179 kanssa."]
[182,"Taimikko hakkuuaukiolla","M02.02.01 Nuoret tuoreet kankaat",100,0.3,0.3,0,0,1,0,1,0.5,null,null,0,0,0,0.1,0.8,0.1,1,0.6,{"$f":"(2*SUM(F120,L120,R120)+SUM(S120:V120))/(2*AREAS((F120,L120,R120))+COLUMNS(S120:V120))","v":0.43},0.129,"ei","ei","ei","ei","ei","ei","NT","Ojitettu ympäriltä, s-reunalla hapaa ja lahopuuta."]
[184,"Harvennettu reunusmetsä","Nuoret lehtomaiset kankaat M02.01.05",90,0.6,0.5,1,0,0,0,1,0.5,null,null,0,0,1,0.2,0.4,0.3,0.8,0.3,{"$f":"(2*SUM(F121,L121,R121)+SUM(S121:V121))/(2*AREAS((F121,L121,R121))+COLUMNS(S121:V121))","v":0.42000000000000004},0.252,"ei","ei","ei","ei","ei","ei","VU","Harvennettu hiljan reippaasti, paljon reunavaikutusta (piha-alue, pelto, tie)."]
[186,"Aukkoinen sekametsä","Nuoret lehtomaiset kankaat M02.01.06",90,1.9,0.4,1,1,1,0,1,0.7,null,null,0,0,1,0.3,0.4,0.1,0.7,0.7,{"$f":"(2*SUM(F122,L122,R122)+SUM(S122:V122))/(2*AREAS((F122,L122,R122))+COLUMNS(S122:V122))","v":0.47000000000000003},0.89300000000000002,"ei","ei","ei","ei","ei","ei","VU","Osin vanhaa peltoa, niittymäistä kasvillisuutta aukkopaikoissa, jokunen lupiini. Muutama lehtoisa tiheikkö, joissa vanhempaa puustoa ja tu, hale, osin taas lähempänä tuoreen kankaan kasvillisuutta. Aukkohakattu, rau koi, ku valtalajit, mä, hale, rai, tu."]
[187,"Tiheä nuori kasvatusmetsä","M02.02.01 Nuoret tuoreet kankaat",95,1.1000000000000001,0.4,0,0,1,0,1,0.5,null,null,0,0,1,0.2,0.9,0.1,0.9,0.9,{"$f":"(2*SUM(F123,L123,R123)+SUM(S123:V123))/(2*AREAS((F123,L123,R123))+COLUMNS(S123:V123))","v":0.5},0.55000000000000004,"ei","ei","ei","ei","ei","ei","VU","Vaihettuu etelässä lehtomaiseksi. Koi, ku, (mä, pi, hale). Vanha kiviaita kaakkoisrajalla?"]
[192,"Yli satavuotias ku valtainen kangas","Varttuneet havupuuvaltaiset tuoreet kankaat M02.02.08",100,1.5,0.9,2,2,1,0,1,0.9,null,null,1,1,1,0.8,1,0.8,1,1,{"$f":"(2*SUM(F124,L124,R124)+SUM(S124:V124))/(2*AREAS((F124,L124,R124))+COLUMNS(S124:V124))","v":0.9},1.35,"kyllä","boreaaliset luonnonmetsät 9010","hyvä","ei","ei","ei","NT","Edustava, lahopuusta noin puolet pystylahoa, jatkumo olemassa. Ku, mä, koi, pi. Yövilkkaa.\"Metsän vanhuudella tarkoitetaan pääsääntöisesti sitä, että metsän vallitseva puusto on vähintään metsätaloudellisen uudistusiän saavuttanutta.\" (Airaksinen & Karttunen 2001)"]
[194,"Varttunut mä valtainen kasvatusmetsä","Varttuneet havupuuvaltaiset tuoreet kankaat M02.02.08",95,1.6,0.6,1,1,0,0,1,0.6,null,null,0,1,0,0.4,1,0.3,1,0.9,{"$f":"(2*SUM(F125,L125,R125)+SUM(S125:V125))/(2*AREAS((F125,L125,R125))+COLUMNS(S125:V125))","v":0.64},1.024,"ei","ei","ei","ei","ei","ei","NT","kuvion halki kulkee kärrypolku w-e suunnassa, kataja runsas pensaskerroksessa, vanha hirvitorni"]
[195,"Ojitetun suon ja kankaan mosaiikki","Varttuneet havupuuvaltaiset tuoreet kankaat M02.02.09",50,4.2,0.6,2,1,1,0,1,0.7,null,null,0,1,0,0.4,1,0.3,1,0.6,{"$f":"(2*SUM(F126,L126,R126)+SUM(S126:V126))/(2*AREAS((F126,L126,R126))+COLUMNS(S126:V126))","v":0.62999999999999989},2.6459999999999995,"ei","ei","ei","ei","ei","ei","NT","Pyypoikue alueen etelälaidalla."]
[197,"Nuori tiheä kasvatusmetsä","M02.02.01 Nuoret tuoreet kankaat",100,0.9,0.5,1,0,0,0,1,0.5,null,null,0,0,0,0.2,0.8,0.1,1,0.8,{"$f":"(2*SUM(F127,L127,R127)+SUM(S127:V127))/(2*AREAS((F127,L127,R127))+COLUMNS(S127:V127))","v":0.51},0.45900000000000002,"ei","ei","ei","ei","ei","ei","VU","Koivuvaltainen, nuori kuusikko tiheää, tasarakenteinen"]
[198,"Hakkuuaukea (taimikko alle 1 m)","M02.02.01 Nuoret tuoreet kankaat",100,2,0.2,0,0,0,0,1,0.3,0,{"$nulls":4},0.1,0.9,0.1,1,0.5,{"$f":"(2*SUM(F128,L128,R128)+SUM(S128:V128))/(2*AREAS((F128,L128,R128))+COLUMNS(S128:V128))","v":0.37},0.74,"ei","ei","ei","ei","ei","ei","VU","Koi, ku, muutamia mä siemenpuina. Vadelmikkoa.Avohakkuu, jonka länsilaidalla ollut pieni soistuma. Suokasvillisuutta vielä hieman jäljellä naapurikuviolla 199."]
[199,"Ikääntynyt ku valtainen kasvatusmetsä"," M02.02.09 Varttuneet havupuuvaltaiset tuoreet kankaat",100,1.1000000000000001,0.8,2,2,1,0,1,0.8,"0-5",null,1,0,1,0.6,1,0.7,1,0.9,{"$f":"(2*SUM(F129,L129,R129)+SUM(S129:V129))/(2*AREAS((F129,L129,R129))+COLUMNS(S129:V129))","v":0.8},0.88000000000000012,"ei",9010,"ei merkittävä","ei","ei","ei","NT","Järeitä kuusia, kilpikaarnamäntyjä ja muutamia vanhoja koivuja. Erirakenteinen, hyvää lahopuupotentiaalia. Paikoin rahkainen. Vieressä avohakkuu."]
[200,"Nuori osin soistunut kasvatusmetsä","M02.02.01 Nuoret tuoreet kankaat",85,0.3,0.5,1,1,1,0,1,0.7,"0-5",{"$nulls":4},0.3,0.7,0.1,1,0.6,{"$f":"(2*SUM(F130,L130,R130)+SUM(S130:V130))/(2*AREAS((F130,L130,R130))+COLUMNS(S130:V130))","v":0.54},0.16200000000000001,"ei","ei","ei","ei","ei","ei","VU","Osin tiheikköinen, osin harsittu hakkuulle kulkevan uran luota. Kuviolla myös puustoista suota."]
[201,"Mä valtainen ojitettu kangas"," M02.02.09 Varttuneet havupuuvaltaiset tuoreet kankaat",100,0.4,0.6,1,1,1,0,1,0.7,"0-5",{"$nulls":4},0.3,0.7,0.3,1,0.6,{"$f":"(2*SUM(F131,L131,R131)+SUM(S131:V131))/(2*AREAS((F131,L131,R131))+COLUMNS(S131:V131))","v":0.57999999999999996},0.23199999999999998,"ei","ei","ei","ei","ei","ei","NT","Ojitus kuivattanut, mustikkakangasta"]
[202,"Mä valtainen ojitettu kangas"," M02.02.09 Varttuneet havupuuvaltaiset tuoreet kankaat",80,1.3,0.5,1,1,1,0,1,0.7,"0-5",{"$nulls":4},0.3,0.8,0.2,1,0.6,{"$f":"(2*SUM(F132,L132,R132)+SUM(S132:V132))/(2*AREAS((F132,L132,R132))+COLUMNS(S132:V132))","v":0.55999999999999994},0.72799999999999998,"ei","ei","ei","ei","ei","ei","NT","Ojitus kuivattanut, mustikka- ja puolukkakangasta, paikoin korpimuuttumaa."]
[203,"Ku valtainen kangas ojitettu"," M02.02.09 Varttuneet havupuuvaltaiset tuoreet kankaat",40,1.3,0.6,1,1,1,0,1,0.7,"0-5",{"$nulls":4},0.3,0.8,0.4,1,0.9,{"$f":"(2*SUM(F133,L133,R133)+SUM(S133:V133))/(2*AREAS((F133,L133,R133))+COLUMNS(S133:V133))","v":0.63},0.81900000000000006,"ei","ei","ei","ei","ei","ei","NT","Ojitus kuivattanut korpiset osat."]
[205,"Ku valtainen ikääntynyt kangas"," M02.02.09 Varttuneet havupuuvaltaiset tuoreet kankaat",95,4.8,0.8,2,2,1,0,1,0.8,"0-5",{"$nulls":4},0.6,1,0.7,1,0.9,{"$f":"(2*SUM(F134,L134,R134)+SUM(S134:V134))/(2*AREAS((F134,L134,R134))+COLUMNS(S134:V134))","v":0.8},3.84,"kyllä","Luonnonmetsät(9010)","hyvä","ei","ei","ei","NT","Puusto yli 80-vuotiasta, osin järeää. Muutamia vanhoja koivuja, mäntyjä. Rajautuu kuvion 204 mustikkakangaskorpeen. Lahopuuta vielä vähän, mutta potentiaalia on."]
[206,"Mä valtainen kangas"," M02.02.09 Varttuneet havupuuvaltaiset tuoreet kankaat",99,1.3,0.6,1,1,1,0,0,0.7,"0-5",{"$nulls":4},0.3,0.8,0.3,1,0.9,{"$f":"(2*SUM(F135,L135,R135)+SUM(S135:V135))/(2*AREAS((F135,L135,R135))+COLUMNS(S135:V135))","v":0.61999999999999988},0.80599999999999983,"ei","ei","ei","ei","ei","ei","NT","Tulkittu"]
[207,"Nuori tasarakenteinen talouskuusikko","M02.02.01 Nuoret tuoreet kankaat",100,0.3,0.4,0,0,0,0,0,0.2,"0-5",{"$nulls":4},0.1,0.7,0.1,1,0.8,{"$f":"(2*SUM(F136,L136,R136)+SUM(S136:V136))/(2*AREAS((F136,L136,R136))+COLUMNS(S136:V136))","v":0.4},0.12,"ei","ei","ei","ei","ei","ei","VU","Tulkittu"]
[208,"Varttunut talouskuusikko"," M02.02.09 Varttuneet havupuuvaltaiset tuoreet kankaat",80,0.8,0.7,1,1,0,0,0,0.4,"0-5",{"$nulls":4},0.1,0.5,0.5,1,0.6,{"$f":"(2*SUM(F137,L137,R137)+SUM(S137:V137))/(2*AREAS((F137,L137,R137))+COLUMNS(S137:V137))","v":0.5},0.4,"ei","ei","ei","ei","ei","ei","NT","Osa kuviosta mustikkaturvekangasta, ojitettu. Kenttäkerros pitkälti vaatimaton, varpuja vähän, runsaasti kantoja, ollut tiheä aiemmin."]
[209,"Laaja avohakkuu","M02.02.01 Nuoret tuoreet kankaat",100,14.9,0.1,0,0,0,0,1,0.2,0,{"$nulls":4},0.1,0.4,0.1,1,0.6,{"$f":"(2*SUM(F138,L138,R138)+SUM(S138:V138))/(2*AREAS((F138,L138,R138))+COLUMNS(S138:V138))","v":0.29000000000000004},4.3210000000000006,"ei","ei","ei","ei","ei","ei","VU","Itäosa hakattu aiemmin, siellä pieni taimikko, länsiosa metsälauhavainiota. Muutamia siemenpuita, mä, koi"]
[210,"Tiheä kasvatusmetsä","M02.02.01 Nuoret tuoreet kankaat",100,0.9,0.4,0,0,0,0,1,0.3,0,{"$nulls":4},0.1,0.7,0.1,1,0.8,{"$f":"(2*SUM(F139,L139,R139)+SUM(S139:V139))/(2*AREAS((F139,L139,R139))+COLUMNS(S139:V139))","v":0.41999999999999993},0.37799999999999995,"ei","ei","ei","ei","ei","ei","VU","Vain reunoilta sekapuustoinen mä, koi, pi, ku, sisäosissa pelkkä kuusi"]
[212,"Havupuuvaltainen ojitettu kangas"," M02.02.09 Varttuneet havupuuvaltaiset tuoreet kankaat",99,1.7,0.6,1,1,0,0,1,0.6,"0-5",{"$nulls":4},0.3,0.9,0.2,1,0.6,{"$f":"(2*SUM(F140,L140,R140)+SUM(S140:V140))/(2*AREAS((F140,L140,R140))+COLUMNS(S140:V140))","v":0.57000000000000006},0.96900000000000008,"ei","ei","ei","ei","ei","ei","NT","Ojitettu, harvahkopuustoinen, kantoja, ei juuri lahopuuta, osin mä osin ku valtainen."]
[213,"Taimikko hakkuuaukiolla","M02.02.01 Nuoret tuoreet kankaat",100,2.9,0.3,0,0,0,0,1,0.3,0,{"$nulls":4},0.1,0.9,0.1,1,0.7,{"$f":"(2*SUM(F141,L141,R141)+SUM(S141:V141))/(2*AREAS((F141,L141,R141))+COLUMNS(S141:V141))","v":0.41},{"$f":"(PRODUCT(E141,W141))","v":1.1889999999999998},"ei","ei","ei","ei","ei","ei","VU","Alle 15 vuotiasta koi, ku avohakkuulla"]
[214,"Ku valtainen sekapuustoinen kasvatusmetsä"," M02.02.09 Varttuneet havupuuvaltaiset tuoreet kankaat",90,1.6,0.6,1,1,0,0,2,0.7,0,{"$nulls":4},0.1,1,0.1,1,0.9,{"$f":"(2*SUM(F142,L142,R142)+SUM(S142:V142))/(2*AREAS((F142,L142,R142))+COLUMNS(S142:V142))","v":0.57999999999999996},0.92799999999999994,"ei","ei","ei","ei","ei","ei","NT","Kuvion 193 metsäkortekorpi jatkuu tällä kuviolla pienen painanteen kohdalla. Metsäkorte, korpikastikka, metsäalvejuuri, okarahkasammal, korpikarhunsammal, muut rahkasammalet. Soistuma ei näy maastokartalla. Oijittamaton. Muu kuvio kasvatusmetsää, ku, koi, mä, pi, rai."]
[215,"Nuori kasvatusmännikkö","M02.02.01 Nuoret tuoreet kankaat",95,1.4,0.5,0,0,0,0,1,0.2,0,{"$nulls":4},0.1,0.3,0.1,1,0.8,{"$f":"(2*SUM(F143,L143,R143)+SUM(S143:V143))/(2*AREAS((F143,L143,R143))+COLUMNS(S143:V143))","v":0.38},0.53199999999999992,"ei","ei","ei","ei","ei","ei","VU","Tasarakenteinen, kastikoitunut talousmännikkö. Kuvion itärajalla pieni kuvio varttunutta tiheää kuusikkoa."]
[216,"Nuori kasvatuskuusikko","M02.02.01 Nuoret tuoreet kankaat",95,4.8,0.5,1,0,0,0,1,0.3,0,{"$nulls":4},0.1,0.5,0.2,1,0.6,{"$f":"(2*SUM(F144,L144,R144)+SUM(S144:V144))/(2*AREAS((F144,L144,R144))+COLUMNS(S144:V144))","v":0.41},1.9679999999999997,"ei","ei","ei","ei","ei","ei","VU","Laaja, vaihteleva kuvio, paikoin mä valtainen, osin kenttäkerros lajistoltaan tyypillisempi, paljon koneuria ym, siemenpuina järeitä mäntyjä."]
[217,"Hakkuuaukio","Turvekangas",100,0.4,0.2,0,0,0,0,1,0.2,0,{"$nulls":4},0.1,0.6,0.1,1,0.6,{"$f":"(2*SUM(F145,L145,R145)+SUM(S145:V145))/(2*AREAS((F145,L145,R145))+COLUMNS(S145:V145))","v":0.32999999999999996},0.13199999999999998,"ei","ei","ei","ei","ei","ei",null,"Noin 10-vuotiasta taimikkoa, ku, koi, mä"]
[218,"Tasainen talouskuusikko entisellä pellolla","Turvekangas, hieman korpilajistoa",100,1.2,0.5,0,0,0,0,1,0.2,0,{"$nulls":4},0.1,0.3,0.1,1,0.6,{"$f":"(2*SUM(F146,L146,R146)+SUM(S146:V146))/(2*AREAS((F146,L146,R146))+COLUMNS(S146:V146))","v":0.36},0.432,"ei","ei","ei","ei","ei","ei",null,"Niityn ja korven kasvillisuutta osin harvassa kenttäkerroksessa, ei oikei mikään LuTu. Turvekankaita muistuttaa. "]
[220,"Ojitettu räme","Turvekangas",100,0.3,0.7,1,1,1,0,1,0.7,"0-5",{"$nulls":4},0.1,0.4,0.2,1,0.9,{"$f":"(2*SUM(F147,L147,R147)+SUM(S147:V147))/(2*AREAS((F147,L147,R147))+COLUMNS(S147:V147))","v":0.55000000000000004},0.16500000000000001,"ei","ei","ei","ei","ei","ei",null,"Pallopäärahkasammalta, puusto erirakenteinen."]
[221,"Nuori talouskuusikko","M02.01.05 Nuoret lehtomaiset kankaat ",99,3.8,0.5,0,0,0,0,1,0.2,"0-5",{"$nulls":4},0.2,0.5,0.1,1,0.6,{"$f":"(2*SUM(F148,L148,R148)+SUM(S148:V148))/(2*AREAS((F148,L148,R148))+COLUMNS(S148:V148))","v":0.4},1.52,"ei","ei","ei","ei","ei","ei","VU","Hyvin tasarakenteinen"]
[222,"Nuori harva talousmetsä","M02.01.05 Nuoret lehtomaiset kankaat ",100,0.3,0.4,1,0,0,0,1,0.3,0,{"$nulls":4},0.1,0.4,0.1,1,0.6,{"$f":"(2*SUM(F149,L149,R149)+SUM(S149:V149))/(2*AREAS((F149,L149,R149))+COLUMNS(S149:V149))","v":0.37},0.111,"ei","ei","ei","ei","ei","ei","VU","Niittymäistä kasvillisuutta aukkopaikoissa"]
[223,"Avohakkuulle nousut taimikko","M02.02.01 Nuoret tuoreet kankaat",100,0.1,0.2,0,0,0,0,1,0.2,0,{"$nulls":4},0.1,0.7,0.1,1,0.6,{"$f":"(2*SUM(F150,L150,R150)+SUM(S150:V150))/(2*AREAS((F150,L150,R150))+COLUMNS(S150:V150))","v":0.33999999999999997},3.3999999999999996E-2,"ei","ei","ei","ei","ei","ei","VU","Ojitettu"]
[224,"Varttunut ku valtainen kangas"," M02.02.09 Varttuneet havupuuvaltaiset tuoreet kankaat",99,0.2,0.6,1,1,0,0,1,0.7,0.5,{"$nulls":4},0.2,0.7,0.2,1,0.6,{"$f":"(2*SUM(F151,L151,R151)+SUM(S151:V151))/(2*AREAS((F151,L151,R151))+COLUMNS(S151:V151))","v":0.55000000000000004},0.11000000000000001,"ei","ei","ei","ei","ei","ei","NT","Oja"]
[225,"Tasainen talouskuusikko ","M02.02.01 Nuoret tuoreet kankaat",99,3,0.5,0,0,0,0,1,0.2,"0-5",{"$nulls":4},0.2,0.5,0.1,1,0.6,{"$f":"(2*SUM(F152,L152,R152)+SUM(S152:V152))/(2*AREAS((F152,L152,R152))+COLUMNS(S152:V152))","v":0.4},1.2000000000000002,"ei","ei","ei","ei","ei","ei","VU","Oja, itärajalla vanhaa kiviaitaa"]
[227,"Kasvatuskoivikkoa entisellä pellolla","M02.01.05 Nuoret lehtomaiset kankaat ",85,0.3,0.5,1,1,1,0,2,0.7,"0-5",{"$nulls":4},0.2,0.6,0.3,1,0.6,{"$f":"(2*SUM(F153,L153,R153)+SUM(S153:V153))/(2*AREAS((F153,L153,R153))+COLUMNS(S153:V153))","v":0.53},0.159,"ei","ei","ei","ei","ei","ei","VU","Vanhoja kiviaitoja, entistä peltoa, niittyaukeita, aidanseipäitä ym. Puoliksi kasvatuskoivikkoa, puoliksi sekapuustoista."]
[228,"Avohakkuu, ojitettu entinen pelto","Kostean niityn kasvillisuutta",100,0.9,0.2,0,0,0,0,2,0.4,"0-5",{"$nulls":4},0.3,0.2,0.3,1,0.6,{"$f":"(2*SUM(F154,L154,R154)+SUM(S154:V154))/(2*AREAS((F154,L154,R154))+COLUMNS(S154:V154))","v":0.39},0.35100000000000003,"ei","ei","ei","ei","ei","ei",null,"Avohakkuulle noussut kostean niityn kasvillisuutta, pajupensaita ja puuntaimia. Ojitettu. Viitisen v sitten hakattu ilm. kasvatuskoivikko. Vanhaa peltoa. Vanhojen kiviaitojen reunustama, aitojen luona varttunutta lehtipuustoa ja kuusia. Outoja vesikuoppia hakkuulla, hyvin vaikeakulkuinen. Erikoinen, ei LuTu eikä RyTy."]
[229,"Hakkuulle noussut nuori taimikko","M02.01.05 Nuoret lehtomaiset kankaat ",100,0.6,0.2,0,0,0,0,1,0.2,"0-5",{"$nulls":4},0.1,0.4,0.1,0.9,0.6,{"$f":"(2*SUM(F155,L155,R155)+SUM(S155:V155))/(2*AREAS((F155,L155,R155))+COLUMNS(S155:V155))","v":0.3},0.18,"ei","ei","ei","ei","ei","ei","VU","Ei luontotyyppi. Tulkittu."]
[230,"Ikääntynyt ku valtainen kangas"," M02.02.09 Varttuneet havupuuvaltaiset tuoreet kankaat",100,0.4,0.7,1,1,1,0,1,0.8,"0-5",{"$nulls":4},0.5,1,0.5,1,1,{"$f":"(2*SUM(F156,L156,R156)+SUM(S156:V156))/(2*AREAS((F156,L156,R156))+COLUMNS(S156:V156))","v":0.75},0.30000000000000004,"ei","ei","ei","ei","ei","ei","NT","Lounaisrajaa pitkin kulkee vanha kiviaita. Luonnontila hyvä, ei erityispiirteitä. Märkiä , rahkasammaleisia onkaloita paikoin pohjalla."]
[231,"Vanhojen kiviaitojen ympäröimä ku valtainen metsä","M02.01.05 Nuoret lehtomaiset kankaat ",95,1.4,0.4,1,1,1,0,1,0.7,"0-5",{"$nulls":4},0.2,0.9,0.2,1,1,{"$f":"(2*SUM(F157,L157,R157)+SUM(S157:V157))/(2*AREAS((F157,L157,R157))+COLUMNS(S157:V157))","v":0.57000000000000006},0.79800000000000004,"ei","ei","ei","ei","ei","ei","VU","Kaakkoiskulmall akostean niityn kasvillisuutta ja reunalla oja. Vanhat kiviaidat reunustavat kuviota, ei ole ollut peltoa ainakaan 75 vuoteen, mahdollisesti ollut joskus hakamaa, tai metsälaidun? Pohjoiskulmalla suuri kiviröykkiö."]
[232,"Hakkuuaukio","M02.01.05 Nuoret lehtomaiset kankaat ",100,1.3,0.1,0,0,0,0,1,0.2,0,{"$nulls":4},0.1,0.6,0.1,0.4,0.5,{"$f":"(2*SUM(F158,L158,R158)+SUM(S158:V158))/(2*AREAS((F158,L158,R158))+COLUMNS(S158:V158))","v":0.24000000000000005},0.31200000000000006,"ei","ei","ei","ei","ei","ei","VU","Hakkuuaukio, kasvatusmetsä kaadettu hiljan, pieni taimikko ale 5 v, lehtipuut, ku, vadelma, niittykasveja, komealupiinia, oja keskellä, vanhaa peltoa."]
[233,"Nuorehko kasvatuskuusikko","M02.01.05 Nuoret lehtomaiset kankaat ",99,1.1000000000000001,0.5,0,0,0,0,0,0.1,0,{"$nulls":4},0.1,0.4,0.1,0.3,0.5,{"$f":"(2*SUM(F159,L159,R159)+SUM(S159:V159))/(2*AREAS((F159,L159,R159))+COLUMNS(S159:V159))","v":0.27},0.29700000000000004,"ei","ei","ei","ei","ei","ei","VU","Tasarakenteinen, harvennettu talouskuusikko entisellä pellolla. Lajisto muuttunutta, komealupiini leviämässä voimallisesti naapurikuviolta 134. Oja kuvion halki."]
[234,"Lupiinin valtaama kasvatuskoivikko","M02.01.05 Nuoret lehtomaiset kankaat ",100,1,0.5,1,0,0,0,1,0.5,0,{"$nulls":4},0.1,0.2,0.1,0.1,0.6,{"$f":"(2*SUM(F160,L160,R160)+SUM(S160:V160))/(2*AREAS((F160,L160,R160))+COLUMNS(S160:V160))","v":0.32},0.32,"ei","ei","ei","ei","ei","ei","VU","Tasarakenteinen, koi, ku, komealupiinin valtaama, myös tuoreen lehdon ja tuoreen niityn kasvillisuutta, ukonkelloa. Vanhaa peltoa."]
[235,"Ihmisvaikutteinen lehtipuuvaltainen metsäalue","M02.02.04 Varttuneet lehtipuuvaltaiset lehtomaiset ja tuoreet kankaat",99,0.6,0.5,1,1,1,0,2,0.8,"0-5",{"$nulls":4},0.3,0.4,0.3,0.3,0.5,{"$f":"(2*SUM(F161,L161,R161)+SUM(S161:V161))/(2*AREAS((F161,L161,R161))+COLUMNS(S161:V161))","v":0.47000000000000003},0.28200000000000003,"ei","ei","ei","ei","ei","ei","VU","Osin vanhaa peltoa, entisen pellon rajalla vanha kiviaita. Erilaista metalliromua ja muuta sekalaista jätettä. Kuviolla ollut mahdollisetsi kaksi latoa. Lupiini leviämässä."]
[236,"Nuori ku valtainen kasvatusmetsä","M02.01.05 Nuoret lehtomaiset kankaat ",90,3.1,0.4,1,0,1,0,1,0.6,"0-5",{"$nulls":4},0.2,0.7,0.2,0.9,0.5,{"$f":"(2*SUM(F162,L162,R162)+SUM(S162:V162))/(2*AREAS((F162,L162,R162))+COLUMNS(S162:V162))","v":0.46999999999999992},1.4569999999999999,"ei","ei","ei","ei","ei","ei","VU","Ihmistoimintaa, myös roskaantumista."]
[237,"Nuorehko koivuvaltainen kasvatusmetsä","M02.02.04 Varttuneet lehtipuuvaltaiset lehtomaiset ja tuoreet kankaat",100,1.1000000000000001,0.5,1,1,0,0,1,0.7,0,{"$nulls":4},0.1,0.7,0.1,0.9,0.7,{"$f":"(2*SUM(F163,L163,R163)+SUM(S163:V163))/(2*AREAS((F163,L163,R163))+COLUMNS(S163:V163))","v":0.5},0.55000000000000004,"ei","ei","ei","ei","ei","ei","VU","Hiljan harvennettu, heinikoitumista, uria"]
[238,"Nuorehko sekapuustoinen metsä","M02.02.04 Varttuneet lehtipuuvaltaiset lehtomaiset ja tuoreet kankaat",100,0.2,0.5,1,1,1,0,1,0.7,"0-5",{"$nulls":4},0.2,0.7,0.1,1,0.7,{"$f":"(2*SUM(F164,L164,R164)+SUM(S164:V164))/(2*AREAS((F164,L164,R164))+COLUMNS(S164:V164))","v":0.53},0.10600000000000001,"ei","ei","ei","ei","ei","ei","VU","Vanhoja uria, kuusettuva, metsäkastikka runsas."]
[239,"Harvennettu mäntykangas mönkkäriurilla","M02.02.04 Varttuneet lehtipuuvaltaiset lehtomaiset ja tuoreet kankaat",90,2.5,0.6,1,1,0,0,1,0.7,"0-5",{"$nulls":4},0.2,0.6,0.2,1,0.5,{"$f":"(2*SUM(F165,L165,R165)+SUM(S165:V165))/(2*AREAS((F165,L165,R165))+COLUMNS(S165:V165))","v":0.52999999999999992},1.3249999999999997,"ei","ei","ei","ei","ei","ei","NT","Harvapuustoinen, kastikoitunut, vaihettuu alarinteessä luonnontilaisemmaksi ja ku valtaiseksi. Mönkkäriura kiemurtelee kuviolla. Korvaharjun tieltä tehty sepelitiesilmukka kuviolle. Kuuluu kaupungin kartoituksessa METSO-alueisiin"]
[243,"Nuori taimikko hakkuulla","M02.02.01 Nuoret tuoreet kankaat",100,6.3,0.3,0,0,0,0,1,0.3,0,{"$nulls":4},0.1,0.9,0.1,0.6,0.7,{"$f":"(2*SUM(F166,L166,R166)+SUM(S166:V166))/(2*AREAS((F166,L166,R166))+COLUMNS(S166:V166))","v":0.37},2.331,"ei","ei","ei","ei","ei","ei","VU","Hieman komealupiinia"]
[247,"Harva nuori ku valtainen metsä","M02.01.05 Nuoret lehtomaiset kankaat ",99,0.7,0.4,0,0,1,0,1,0.5,0,{"$nulls":4},0.1,0.7,0.1,1,0.7,{"$f":"(2*SUM(F167,L167,R167)+SUM(S167:V167))/(2*AREAS((F167,L167,R167))+COLUMNS(S167:V167))","v":0.45},0.315,"ei","ei","ei","ei","ei","ei","VU","Tulkittu. Vanha peltosaareke."]
[248,"Harva reunavaikutteinen metsikkö","M02.01.02 Varttuneet havupuuvaltaiset lehtomaiset kankaat",95,0.5,0.7,1,1,1,0,1,0.7,"0-5",{"$nulls":4},0.5,0.7,0.6,0.9,0.4,{"$f":"(2*SUM(F168,L168,R168)+SUM(S168:V168))/(2*AREAS((F168,L168,R168))+COLUMNS(S168:V168))","v":0.6399999999999999},0.31999999999999995,"ei","Luonnonmetsät (9010)","ei merkittävä","ei","ei","ei","NT","Roskaantumista, reunavaikutusta"]
[253,"Mä valtainen rinnemetsä"," M02.02.09 Varttuneet havupuuvaltaiset tuoreet kankaat",100,0.5,0.5,1,1,0,0,1,0.6,"0-5",{"$nulls":4},0.2,0.7,0.2,1,0.9,{"$f":"(2*SUM(F169,L169,R169)+SUM(S169:V169))/(2*AREAS((F169,L169,R169))+COLUMNS(S169:V169))","v":0.54},0.27,"ei","ei","ei","ei","ei","ei","NT","Harvennettu."]
[256,"Koi valtainen kasvatusmetsä","M02.02.01 Nuoret tuoreet kankaat",98,2.8,0.5,1,0,0,0,1,0.4,0,{"$nulls":4},0.2,0.7,0.3,1,0.6,{"$f":"(2*SUM(F170,L170,R170)+SUM(S170:V170))/(2*AREAS((F170,L170,R170))+COLUMNS(S170:V170))","v":0.48000000000000009},1.3440000000000001,"ei","ei","ei","ei","ei","ei","VU","Avara, harvennettu. Itäkulmalla norouoma, eli mahdollinen vesilakikohde!"]
[259,"Ku valt harvennettu kasvatusmetsä","M02.01.02 Varttuneet havupuuvaltaiset lehtomaiset kankaat",100,0.5,0.6,1,1,0,0,1,0.6,"0-5",{"$nulls":4},0.2,0.7,0.3,1,0.6,{"$f":"(2*SUM(F171,L171,R171)+SUM(S171:V171))/(2*AREAS((F171,L171,R171))+COLUMNS(S171:V171))","v":0.54},0.27,"ei","ei","ei","ei","ei","ei","NT","reunavaikutusta"]
[260,"Lehtipuuvaltainen tiheä metsä","M02.01.01 Nuoret lehtomaiset kankaat",99,1.2,0.5,1,1,0,0,1,0.6,"0-5",{"$nulls":4},0.2,0.7,0.1,1,0.7,{"$f":"(2*SUM(F172,L172,R172)+SUM(S172:V172))/(2*AREAS((F172,L172,R172))+COLUMNS(S172:V172))","v":0.51},0.61199999999999999,"ei","ei","ei","ei","ei","ei","VU","Tulkittu"]
[262,"Tiheä talouskuusikko","M02.02.01 Nuoret tuoreet kankaat",99,1.5,0.4,0,0,0,0,1,0.3,"0-5",{"$nulls":4},0.1,0.5,0.2,1,0.5,{"$f":"(2*SUM(F173,L173,R173)+SUM(S173:V173))/(2*AREAS((F173,L173,R173))+COLUMNS(S173:V173))","v":0.38},0.57000000000000006,"ei","ei","ei","ei","ei","ei","VU","Ojitettu, kuivunut, harva kenttäkerros"]
[263,"Tiheä talouskuusikko","M02.02.01 Nuoret tuoreet kankaat",99,0.6,0.4,1,0,0,0,1,0.4,"0-5",{"$nulls":4},0.2,0.8,0.2,1,0.9,{"$f":"(2*SUM(F174,L174,R174)+SUM(S174:V174))/(2*AREAS((F174,L174,R174))+COLUMNS(S174:V174))","v":0.49000000000000005},0.29400000000000004,"ei","ei","ei","ei","ei","ei","VU","Tulkittu"]
[264,"Harvapuustoinen kangas"," M02.02.09 Varttuneet havupuuvaltaiset tuoreet kankaat",100,3.2,0.6,1,1,1,0,1,0.8,"0-5",{"$nulls":4},0.3,1,0.2,1,1,{"$f":"(2*SUM(F175,L175,R175)+SUM(S175:V175))/(2*AREAS((F175,L175,R175))+COLUMNS(S175:V175))","v":0.65999999999999992},2.1119999999999997,"ei","ei","ei","ei","ei","ei","NT","kataja runsas, valkolehdokkia"]
[265,"Pihan reuna-alue","M02.01.02 Varttuneet havupuuvaltaiset lehtomaiset kankaat",98,1.5,0.7,1,1,1,0,1,0.8,"0-5",{"$nulls":4},0.2,0.6,0.5,0.8,0.3,{"$f":"(2*SUM(F176,L176,R176)+SUM(S176:V176))/(2*AREAS((F176,L176,R176))+COLUMNS(S176:V176))","v":0.55999999999999994},0.83999999999999986,"ei","ei","ei","ei","ei","ei","NT","Piha-alueen reunalla, paljon autunromuja ja muuta roskaa."]
[266,"Talousmetsä"," M02.02.09 Varttuneet havupuuvaltaiset tuoreet kankaat",99,1.4,0.5,1,1,0,0,1,0.6,"0-5",{"$nulls":4},0.2,0.9,0.2,1,0.9,{"$f":"(2*SUM(F177,L177,R177)+SUM(S177:V177))/(2*AREAS((F177,L177,R177))+COLUMNS(S177:V177))","v":0.55999999999999994},0.78399999999999992,"ei","ei","ei","ei","ei","ei","NT","Tulkittu. Puuston ikä ja lajisuhteet vaihetelevat, N-osa nuorempaa."]
[267,"Hakkuu","M02.01.01 Nuoret lehtomaiset kankaat",85,1.3,0.1,0,0,0,0,1,0.2,"0-5",{"$nulls":4},0.3,0.5,0.2,1,0.4,{"$f":"(2*SUM(F178,L178,R178)+SUM(S178:V178))/(2*AREAS((F178,L178,R178))+COLUMNS(S178:V178))","v":0.33},0.42900000000000005,"ei","ei","ei","ei","ei","ei","NT","Tuore hakkuu, siemenpuut varttuneita mä, ha. Kuviolla ollut myös todennäköisesti lehtokorpea. Kuviolla noro/oja, jonka uoma ei suurelta osin ole enää luonnontilainen."]
[268,"Ku valtainen rinne","M02.01.02 Varttuneet havupuuvaltaiset lehtomaiset kankaat",98,0.7,0.7,2,1,1,0,2,0.8,"0-5",{"$nulls":4},0.5,0.9,0.7,1,0.8,{"$f":"(2*SUM(F179,L179,R179)+SUM(S179:V179))/(2*AREAS((F179,L179,R179))+COLUMNS(S179:V179))","v":0.74},0.51800000000000002,"kyllä","ei","ei","ei","ei","ei","NT","Metso 3-luokka, vieressä METE, VL ja METSO-kohde"]
[270,"Ku valtainen talousmetsä","M02.01.02 Varttuneet havupuuvaltaiset lehtomaiset kankaat",98,0.9,0.5,0,0,0,0,1,0.2,"0-5",{"$nulls":4},0.2,0.5,0.1,1,0.8,{"$f":"(2*SUM(F180,L180,R180)+SUM(S180:V180))/(2*AREAS((F180,L180,R180))+COLUMNS(S180:V180))","v":0.42000000000000004},0.37800000000000006,"ei","ei","ei","ei","ei","ei","NT"]
[271,"Harvennettu mä valtainen talousmetsä"," M02.02.09 Varttuneet havupuuvaltaiset tuoreet kankaat",99,1.7,0.7,1,0,0,0,1,0.5,"0-5",{"$nulls":4},0.2,1,0.3,1,0.9,{"$f":"(2*SUM(F181,L181,R181)+SUM(S181:V181))/(2*AREAS((F181,L181,R181))+COLUMNS(S181:V181))","v":0.6},1.02,"ei","ei","ei","ei","ei","ei","NT"]
[272,"Harvennettu mä valtainen talousmetsä","M02.03 Kuivahkot kankaat",65,1.2,0.7,1,1,0,0,1,0.6,"0-5",{"$nulls":4},0.3,0.9,0.1,1,0.8,{"$f":"(2*SUM(F182,L182,R182)+SUM(S182:V182))/(2*AREAS((F182,L182,R182))+COLUMNS(S182:V182))","v":0.6},0.72,"ei","ei","ei","ei","ei","ei","EN","Kuvion lounaisosa tuoretta MT-kangasta."]
[272,"Harvennettu mä valtainen talousmetsä"," M02.02.09 Varttuneet havupuuvaltaiset tuoreet kankaat",35,1.2,0.7,1,1,0,0,1,0.6,"0-5",{"$nulls":4},0.2,1,0.2,1,0.9,{"$f":"(2*SUM(F183,L183,R183)+SUM(S183:V183))/(2*AREAS((F183,L183,R183))+COLUMNS(S183:V183))","v":0.61},0.73199999999999998,"ei","ei","ei","ei","ei","ei","NT","Kuvion koillisosa kuivahkoa VT-kangasta"]
[273,"Nuori ku valt taimikko avohakkuulla","M02.01.01 Nuoret lehtomaiset kankaat",100,3.3,0.3,0,0,0,0,1,0.4,"0-5",{"$nulls":4},0.1,0.9,0.1,1,0.9,{"$f":"(2*SUM(F184,L184,R184)+SUM(S184:V184))/(2*AREAS((F184,L184,R184))+COLUMNS(S184:V184))","v":0.45},1.4849999999999999,"ei","ei","ei","ei","ei","ei","VU"]
[274,"Avohakkuu","M02.02.01 Nuoret tuoreet kankaat",100,1.3,0.1,0,0,0,0,0,0.1,"0-5",{"$nulls":4},0.3,0.3,0.1,1,0.6,{"$f":"(2*SUM(F185,L185,R185)+SUM(S185:V185))/(2*AREAS((F185,L185,R185))+COLUMNS(S185:V185))","v":0.3},0.39,"ei","ei","ei","ei","ei","ei","VU","metsälauhavainio hakkuulla, siemenpuina mä, ko"]
[275,"Harvennettu talousmetsä","M02.02.01 Nuoret tuoreet kankaat",100,5.3,0.4,0,0,0,0,1,0.3,"0-5",{"$nulls":4},0.3,0.7,0.1,1,0.8,{"$f":"(2*SUM(F186,L186,R186)+SUM(S186:V186))/(2*AREAS((F186,L186,R186))+COLUMNS(S186:V186))","v":0.45999999999999996},2.4379999999999997,"ei","ei","ei","ei","ei","ei","VU","havupuuvaltainen"]
[276,"Nuori ja tiheä","M02.02.01 Nuoret tuoreet kankaat",98,3.7,0.4,0,0,1,0,1,0.5,"0-5",{"$nulls":4},0.2,0.9,0.2,1,0.9,{"$f":"(2*SUM(F187,L187,R187)+SUM(S187:V187))/(2*AREAS((F187,L187,R187))+COLUMNS(S187:V187))","v":0.52},1.9240000000000002,"ei","ei","ei","ei","ei","ei","VU"]
[277,"Tiheä taimikko","M02.01.01 Nuoret lehtomaiset kankaat",98,2.1,0.3,1,0,1,0,1,0.6,"0-5",{"$nulls":4},0.2,0.9,0.2,1,0.9,{"$f":"(2*SUM(F188,L188,R188)+SUM(S188:V188))/(2*AREAS((F188,L188,R188))+COLUMNS(S188:V188))","v":0.51999999999999991},1.0919999999999999,"ei","ei","ei","ei","ei","ei","VU"]
[278,"Talousmetsä","M02.01.01 Nuoret lehtomaiset kankaat",98,0.6,0.4,1,0,1,0,1,0.6,"0-5",{"$nulls":4},0.1,0.8,0.1,1,1,{"$f":"(2*SUM(F189,L189,R189)+SUM(S189:V189))/(2*AREAS((F189,L189,R189))+COLUMNS(S189:V189))","v":0.51},0.30599999999999999,"ei","ei","ei","ei","ei","ei","VU"]
[279,"Harva talousmetsä"," M02.02.09 Varttuneet havupuuvaltaiset tuoreet kankaat",100,0.9,0.6,1,0,0,0,1,0.5,"0-5",{"$nulls":4},0.2,0.8,0.2,1,0.8,{"$f":"(2*SUM(F190,L190,R190)+SUM(S190:V190))/(2*AREAS((F190,L190,R190))+COLUMNS(S190:V190))","v":0.54},0.48600000000000004,"ei","ei","ei","ei","ei","ei","NT"]
[280,"Taimikko avohakkuulla","M02.02.01 Nuoret tuoreet kankaat",90,2.8,0.3,1,0,1,0,1,0.6,"0-5",{"$nulls":4},0.2,0.9,0.2,1,0.8,{"$f":"(2*SUM(F191,L191,R191)+SUM(S191:V191))/(2*AREAS((F191,L191,R191))+COLUMNS(S191:V191))","v":0.51},1.4279999999999999,"ei","ei","ei","ei","ei","ei","VU"]
[281,null,"M02.02.01 Nuoret tuoreet kankaat",99,2,0.5,1,0,1,0,1,0.6,"0-5",{"$nulls":4},0.2,0.9,0.2,1,0.9,{"$f":"(2*SUM(F192,L192,R192)+SUM(S192:V192))/(2*AREAS((F192,L192,R192))+COLUMNS(S192:V192))","v":0.55999999999999994},1.1199999999999999,"ei","ei","ei","ei","ei","ei","VU","Tulkittu"]
[282,"Osin mä osin ku valtainen"," M02.02.09 Varttuneet havupuuvaltaiset tuoreet kankaat",99,2.2999999999999998,0.7,2,1,1,0,1,0.8,"0-5",{"$nulls":4},0.4,1,0.7,1,1,{"$f":"(2*SUM(F193,L193,R193)+SUM(S193:V193))/(2*AREAS((F193,L193,R193))+COLUMNS(S193:V193))","v":0.75},1.7249999999999999,"ei","ei","ei","ei","ei","ei","NT","Luonnontilaisemmaksi kehittyessään METSO-potentiaalia"]
[285,"Ku valtainen metsä kaatopaikan vieressä","M02.01.03 Vanhat havupuuvaltaiset lehtomaiset kankaat",90,1.7,1,1,1,1,0,1,0.8,null,null,1,1,null,0.7,1,0.9,1,0.7,{"$f":"(2*SUM(F194,L194,R194)+SUM(S194:V194))/(2*AREAS((F194,L194,R194))+COLUMNS(S194:V194))","v":0.86},1.462,"kyllä","Luonnonmetsät (9010)","hyvä","ei","ei","ei","EN","Puusto järeää, ku, ha. Viettää kohti Korvapuroa ja vaihettuu lehtokorveksi. Vieressä kaatopaikka-alue, roskaantumista."]
[287,"Ku valtainen metsä kaatopaikan vieressä","M02.01.01 Nuoret lehtomaiset kankaat",90,0.4,0.5,1,0,0,0,1,0.6,{"$nulls":5},0.3,0.8,0.2,0.9,0.6,{"$f":"(2*SUM(F195,L195,R195)+SUM(S195:V195))/(2*AREAS((F195,L195,R195))+COLUMNS(S195:V195))","v":0.53},0.21200000000000002,"ei","ei","ei","ei","ei","ei","VU","Tulkittu"]
[288,"Heinälamminojaan rajautuva pieni metsäkuvio"," M02.02.09 Varttuneet havupuuvaltaiset tuoreet kankaat",70,0.4,0.7,2,1,2,0,2,0.8,"0-5",{"$nulls":4},0.3,0.7,0.5,0.4,0.6,{"$f":"(2*SUM(F196,L196,R196)+SUM(S196:V196))/(2*AREAS((F196,L196,R196))+COLUMNS(S196:V196))","v":0.58000000000000007},0.23200000000000004,"kyllä","ei","ei","kyllä","ei","ei","NT","Osin tulkittu. Puusto osin ikääntynttä kuusikkoa, osin nuorta lehtipuuta, ha, koi, rai. Länsikulma kulttuurilehtoa, runsaasti jättipalsamia. Pienpetopyydys metsässä. Roskaantumista, kaatopaikan vieressä. Rajautuu luonnontilaisen kaltaiseen Heinälamminojaan."]
[294,"Iäkästä kuusikkoa, kuviolla noro","M02.01.02 Varttuneet havupuuvaltaiset lehtomaiset kankaat",90,0.9,0.9,2,1,1,0,1,0.9,null,null,1,1,1,0.7,1,1,1,0.9,{"$f":"(2*SUM(F197,L197,R197)+SUM(S197:V197))/(2*AREAS((F197,L197,R197))+COLUMNS(S197:V197))","v":0.89},0.80100000000000005,"kyllä","Luonnonmetsät (9010)","hyvä","kyllä","kyllä ","ei","NT","Kuviolla noro(293) ja pienialainen metsäkortekorpi, sekä metsittyvä kärrytie"]
[295,"Järeää puustoa, paikoin haapaa","M02.01.03 Vanhat havupuuvaltaiset lehtomaiset kankaat",90,4.5,1,2,2,1,0,1,0.9,null,null,2,2,1,0.9,1,1,1,0.7,{"$f":"(2*SUM(F198,L198,R198)+SUM(S198:V198))/(2*AREAS((F198,L198,R198))+COLUMNS(S198:V198))","v":0.93},4.1850000000000005,"kyllä","Luonnonmetsät (9010)","hyvä","ei","ei","ei","EN","Korkealle mäelle nouseva vanha, arvokas metsäkuvio. Myös vanhoja koivuja ja paikoin haapaa. Vähän roskia (kaatopaikka) ja mönkijän uria. Louhoksen reunalla heinikoitumista."]
[296,"Pohjoisrinne, järeää lahopuuta","M02.01.03 Vanhat havupuuvaltaiset lehtomaiset kankaat",85,5.3,1,2,1,1,0,1,0.8,null,null,1,2,1,1,0.8,1,0.9,0.7,{"$f":"(2*SUM(F199,L199,R199)+SUM(S199:V199))/(2*AREAS((F199,L199,R199))+COLUMNS(S199:V199))","v":0.9},4.7699999999999996,"kyllä","Luonnonmetsät (9010)","hyvä","ei","ei","ei","EN","Mönkijäuria, louhoksen reunaa, hieman roskia. Metsäkastikka, vadelma ja metsäalvejuuri runsaita. Paikoin terttuseljaa. Aukkopaikkoja, ei tarpeeksi kaatunutta puuta ollakseen luontaisia? Paikoin kosteaa, korpiorvokkia. Järeää kuusilahoa erityisen paljon."]
[299,"Iäkäs talousmetsä"," M02.02.09 Varttuneet havupuuvaltaiset tuoreet kankaat",95,1.1000000000000001,0.9,2,1,2,0,1,0.8,null,null,1,1,1,0.6,0.9,0.7,1,0.7,{"$f":"(2*SUM(F200,L200,R200)+SUM(S200:V200))/(2*AREAS((F200,L200,R200))+COLUMNS(S200:V200))","v":0.79},0.86900000000000011,"kyllä","Luonnonmetsät (9010)","merkittävä","ei","ei","ei","NT","Rajautuu ojitettuun Heiniojan uomaosuuteen ja korpimuuttumaan. Kuviolla pieni jyrkänne ja rinteen alla haapaa. Lahopuuta vielä niukalti, mutta hyvää potentiaalia."]
[301,"Osin soistunut","M02.01.03 Vanhat havupuuvaltaiset lehtomaiset kankaat",70,3.4,1,2,2,1,0,1,0.8,"0-5",{"$nulls":4},0.5,1,0.9,1,0.5,{"$f":"(2*SUM(F201,L201,R201)+SUM(S201:V201))/(2*AREAS((F201,L201,R201))+COLUMNS(S201:V201))","v":0.8},2.72,"kyllä","Luonnonmetsät (9010)","merkittävä","ei","lounaiskulmalla noro","ei","EN","Kuviolla todennäköisesti myös vesitaloudeltaan luonnotilaisen kaltaista korpea, koko kuviota ei ehditty käydä läpi maastossa. Lounaiskulma tulee norolle. Roskaantumista, uria ja ojituksia. Etelärajaa pitkin vanha kiviaita."]
[302,"Entistä peltoa noron varressa","M02.01.03 Vanhat havupuuvaltaiset lehtomaiset kankaat",99,1,0.5,1,1,1,0,1,0.7,"0-5",{"$nulls":4},0.2,0.8,0.2,0.9,0.5,{"$f":"(2*SUM(F202,L202,R202)+SUM(S202:V202))/(2*AREAS((F202,L202,R202))+COLUMNS(S202:V202))","v":0.51999999999999991},0.51999999999999991,"ei","ei","ei","osin, rajautuu noroon","rajautuu noroon","ei","NT","Vanhalla pellolla lehtomaista metsää, pohjoisrajalla vanha kiviaita, länsirajalla luonnontilaisen kaltainen noro. "]
[314,"Talousmetsää Heinäojan tuntumassa"," M02.02.09 Varttuneet havupuuvaltaiset tuoreet kankaat",90,0.4,0.6,1,1,0,0,1,0.7,"0-5",{"$nulls":4},0.2,0.9,0.3,1,0.7,{"$f":"(2*SUM(F203,L203,R203)+SUM(S203:V203))/(2*AREAS((F203,L203,R203))+COLUMNS(S203:V203))","v":0.59000000000000008},0.23600000000000004,"ei","ei","ei","osin, rajautuu puroon ja sen lähiympäristöön","ei","ei","NT","Tulkittu"]
[315,"Arvokas vanha metsä Korpelassa","M02.01.03 Vanhat havupuuvaltaiset lehtomaiset kankaat",75,2.2000000000000002,1,2,2,2,0,2,1,null,null,2,1,1,0.8,1,1,1,0.9,{"$f":"(2*SUM(F204,L204,R204)+SUM(S204:V204))/(2*AREAS((F204,L204,R204))+COLUMNS(S204:V204))","v":0.95},2.09,"kyllä","Luonnonmetsät (9010)","erinomainen","ei","ei","ei","EN","Edustava, erirakenteinen metsä, jossa hieman korpisuutta. Sulkasammal runsas ja alueen keskiosissa laajahko vaarapykäsammalesiintymä. Kuvion reunamilla paikoin hyvin varttunutta haapaa. Koko kuviolla myös vanhoja koivuja ja pihlajia. Muutamassa kohtaa vanhoja kuoppia, jotka sittemmin soistuneet, suurin kaakkoisreunalla (ei vaikuta luonnollisesti syntyneelle). Hyvä lahopuujatkumo, sekä havu-, että lehtipuuta kaikissa lahoasteissa 1-5. Liito-oravalle ja lepakoille hyvin sopiva alue."]
[316,"Arvokas vanha metsä Korpelassa","M02.02.03 Vanhat havupuuvaltaiset tuoreet kankaat",75,3.2,1,2,2,2,0,1,0.9,null,null,2,2,1,1,0.9,1,1,0.7,{"$f":"(2*SUM(F205,L205,R205)+SUM(S205:V205))/(2*AREAS((F205,L205,R205))+COLUMNS(S205:V205))","v":0.93999999999999984},3.0079999999999996,"kyllä","Luonnonmetsät (9010)","merkittävä","ei","ei","ei","EN","Valtavasti järeää kuusilahopuuta, tuulenkaatoja ja pystylahoa alueen eteläosassa. Muutamia järeitä haapoja ja jokunen vanha koivu. Alueen pohjoisosassa uria ja viereinen Hepomäen louhos haukannut jo osan kuviosta, myös reunavaikutusta. Aiempia liito-oravahavaintoja."]
[320,"Poskilammen SW-rannan rantametsä","M02.01.03 Vanhat havupuuvaltaiset lehtomaiset kankaat",75,0.9,1,2,2,2,1,2,1,null,null,2,2,2,1,0.9,1,1,1,{"$f":"(2*SUM(F206,L206,R206)+SUM(S206:V206))/(2*AREAS((F206,L206,R206))+COLUMNS(S206:V206))","v":0.99},{"$f":"(PRODUCT(E206,W206))","v":0.89100000000000001},"kyllä","Luonnonmetsät (9010)","erinomainen","ei","ei","ei","EN","Erityisen monimuotoinen puusto ja runsaasti lahopuuta. Rajautuu metsälammen rantaan. Erinomainen elinympäristö liito-oravalle ja lepakoille."]
[322,"Poskilammen E-rannan metsä","M02.01.02 Varttuneet havupuuvaltaiset lehtomaiset kankaat",40,2.5,0.7,2,1,2,0,2,0.8,null,null,1,1,2,0.5,0.5,0.5,1,0.5,{"$f":"(2*SUM(F207,L207,R207)+SUM(S207:V207))/(2*AREAS((F207,L207,R207))+COLUMNS(S207:V207))","v":0.65},1.625,"kyllä","Luonnonmetsät (9010)","hyvä","ei","ei","ei","NT","Kuvion pohjoisosa lehtipuuvaltaista OMT-kangasta, puusto vanhaa, osin mahd. jopa 100 vuotiasta, järeitä haapoja, runsaasti lahopuuta. Muutoin erilaista turvekangasta, tuoretta kangasta ja korpimuuttumaa. Kuvion keskiosissa raidankeuhkojäkälää (NT) vanhalla pihlajalla ja rannassa hyvin vanha ontto puu (lepakot), muu puusto nuorempaa, paikoin jälleen hiko valtaista. Kuvion eteläkulmalla leveä oja ja korpimuuttumaa. Ympäröivät louhokset todennäköisesti kuivattaneet Poskilammen aluetta ojia enemmän. Kuvion NE-kulmalla roskaa ja letkuja lampeen. Louhoksen reunavaikutusta. Vesistön rantametsänä arvokas ja tukee Poskilammen monimuotoista kokonaisuutta."]
[333,"Talousmetsä","M02.02.01 Nuoret tuoreet kankaat",95,5.6,0.5,1,0,1,0,1,0.6,"0-5",{"$nulls":4},0.2,0.7,0.2,1,0.7,{"$f":"(2*SUM(F208,L208,R208)+SUM(S208:V208))/(2*AREAS((F208,L208,R208))+COLUMNS(S208:V208))","v":0.51999999999999991},2.9119999999999995,"ei","ei","ei","ei","ei","ei","VU"]
[329,"Talousmetsä","M02.02.01 Nuoret tuoreet kankaat",99,0.6,0.5,1,0,0,0,1,0.5,"0-5",{"$nulls":4},0.2,0.7,0.2,1,0.7,{"$f":"(2*SUM(F209,L209,R209)+SUM(S209:V209))/(2*AREAS((F209,L209,R209))+COLUMNS(S209:V209))","v":0.5},0.3,"ei","ei","ei","ei","ei","ei","VU"]
[323,"Tienreunusrinne","M02.02.01 Nuoret tuoreet kankaat",70,0.9,0.4,1,0,1,0,1,0.6,"0-5",{"$nulls":4},0.4,0.7,0.5,1,0.6,{"$f":"(2*SUM(F210,L210,R210)+SUM(S210:V210))/(2*AREAS((F210,L210,R210))+COLUMNS(S210:V210))","v":0.55999999999999994},0.504,"ei","ei","ei","ei","ei","ei","VU","Osa kuviosta vanhaa lehtomaista kangasta, jota suurehko kuvio rinteen alla selvitysalueen ulkopuolella ja  jossa hyvinkin järeitä kuusia."]
[326,"Harvennettu talousmetsä","M02.01.01 Nuoret lehtomaiset kankaat",98,1.7,0.5,1,0,1,0,1,0.6,"0-5",{"$nulls":4},0.3,0.7,0.2,1,0.7,{"$f":"(2*SUM(F211,L211,R211)+SUM(S211:V211))/(2*AREAS((F211,L211,R211))+COLUMNS(S211:V211))","v":0.54},0.91800000000000004,"ei","ei","ei","ei","ei","ei","VU"]
[334,"Nuori lehtipuuvaltainen metsä","M02.01.01 Nuoret lehtomaiset kankaat",95,0.9,0.4,1,1,1,0,1,0.7,"0-5",{"$nulls":4},0.3,0.7,0.3,1,0.8,{"$f":"(2*SUM(F212,L212,R212)+SUM(S212:V212))/(2*AREAS((F212,L212,R212))+COLUMNS(S212:V212))","v":0.55999999999999994},0.504,"ei","ei","ei","ei","ei","ei","VU","kuusta poistettu"]
[335,"Lehtipuuvaltainen, kosteahko metsä","M02.01.01 Nuoret lehtomaiset kankaat",80,0.5,0.5,1,1,1,0,2,0.7,"0-5",{"$nulls":4},0.2,0.7,0.2,1,0.7,{"$f":"(2*SUM(F213,L213,R213)+SUM(S213:V213))/(2*AREAS((F213,L213,R213))+COLUMNS(S213:V213))","v":0.53999999999999992},0.26999999999999996,"ei","ei","ei","ei","ei","ei","VU","kuviolla pieni painanne, jossa kuivahtanutta lehtokorpimuuttumaa. Esim. isoalvejuurta vielä."]
[336,"Harva talousmetsä","M02.01.02 Varttuneet havupuuvaltaiset lehtomaiset kankaat",60,1.4,0.5,0,0,0,0,1,0.3,"0-5",{"$nulls":4},0.3,0.3,0.1,1,0.8,{"$f":"(2*SUM(F214,L214,R214)+SUM(S214:V214))/(2*AREAS((F214,L214,R214))+COLUMNS(S214:V214))","v":0.44000000000000006},0.61599999999999999,"ei","ei","ei","ei","ei","ei","NT","Loput kuviosta vastaavanlaista tuoretta kangasta, puulajisuhteet vaihtelevat. Valkolehdokki (rauh) runsas kuviolla."]
[337,"Hakkuulle noussut nuori taimikko","M02.01.01 Nuoret lehtomaiset kankaat",60,1,0.3,0,0,1,0,2,0.5,"0-5",{"$nulls":4},0.2,1,0.2,1,0.7,{"$f":"(2*SUM(F215,L215,R215)+SUM(S215:V215))/(2*AREAS((F215,L215,R215))+COLUMNS(S215:V215))","v":0.49000000000000005},0.49000000000000005,"ei","ei","ei","ei","ei",null,"VU","Taimikkoa raivattu juuri ennen kartoitusajankohtaa, todella runsaasti haapaa edelleen! Valkolehdokkia kuvion itäpäässä. Kuvio osin tuoretta kangasta."]
[338,"Hakkuulle noussut nuori taimikko","M02.02.01 Nuoret tuoreet kankaat",100,2,0.3,0,0,1,0,1,0.4,"0-5",{"$nulls":4},0.2,0.7,0.2,1,0.9,{"$f":"(2*SUM(F216,L216,R216)+SUM(S216:V216))/(2*AREAS((F216,L216,R216))+COLUMNS(S216:V216))","v":0.45999999999999996},0.91999999999999993,"ei","ei","ei","ei","ei","ei","VU","Ku valtainen"]
[339,"Harvennettu talouskuusikko","M02.02.01 Nuoret tuoreet kankaat",99,1.8,0.4,0,0,0,0,0,0.2,"0-5",{"$nulls":4},0.1,0.6,0.1,1,0.7,{"$f":"(2*SUM(F217,L217,R217)+SUM(S217:V217))/(2*AREAS((F217,L217,R217))+COLUMNS(S217:V217))","v":0.38},0.68400000000000005,"ei","ei","ei","ei","ei","ei","VU","Ku valtainen"]
[340,"Harvennettu talousmetsä","M02.01.01 Nuoret lehtomaiset kankaat",95,1.6,0.5,1,0,1,0,1,0.7,"0-5",{"$nulls":4},0.2,0.8,0.2,1,0.8,{"$f":"(2*SUM(F218,L218,R218)+SUM(S218:V218))/(2*AREAS((F218,L218,R218))+COLUMNS(S218:V218))","v":0.55999999999999994},0.89599999999999991,"ei","ei","ei","ei","ei","ei","VU","Puulajisuhteet vaihtelevat"]
[347,"Taimikko","M02.01.01 Nuoret lehtomaiset kankaat",99,1.8,0.3,0,0,1,0,1,0.4,"0-5",{"$nulls":4},0.2,0.9,0.1,0.9,0.8,{"$f":"(2*SUM(F219,L219,R219)+SUM(S219:V219))/(2*AREAS((F219,L219,R219))+COLUMNS(S219:V219))","v":0.45},0.81,"ei","ei","ei","ei","ei","ei","VU","Tulkittu"]
[348,"Rajautuu Heinälamminojan ja Myllyjoen rantametsään."," M02.02.09 Varttuneet havupuuvaltaiset tuoreet kankaat",99,2,"0.7",1,1,1,0,1,0.8,5,{"$nulls":4},0.5,1,0.7,0.9,0.9,{"$f":"(2*SUM(F220,L220,R220)+SUM(S220:V220))/(2*AREAS((F220,L220,R220))+COLUMNS(S220:V220))","v":0.61},1.22,"ei","ei","ei","ei","ei","ei","NT","Tulkittu"]
[349,"Talousmetsä","M02.01.01 Nuoret lehtomaiset kankaat",99,2,0.5,0,0,0,0,1,0.3,"0-5",{"$nulls":4},0.2,0.8,0.1,1,0.9,{"$f":"(2*SUM(F221,L221,R221)+SUM(S221:V221))/(2*AREAS((F221,L221,R221))+COLUMNS(S221:V221))","v":0.48},0.96,"ei","ei","ei","ei","ei","ei","VU","Tulkittu"]
[350,"Talousmetsä","M02.01.01 Nuoret lehtomaiset kankaat",99,3.2,0.4,1,0,0,0,1,0.5,"0-5",{"$nulls":4},0.2,0.8,0.1,1,0.8,{"$f":"(2*SUM(F222,L222,R222)+SUM(S222:V222))/(2*AREAS((F222,L222,R222))+COLUMNS(S222:V222))","v":0.49000000000000005},1.5680000000000003,"ei","ei","ei","ei","ei","ei","VU","Tulkittu"]
[351,"Kuvio rajautuu Myllyjoen rantametsään"," M02.02.09 Varttuneet havupuuvaltaiset tuoreet kankaat",98,5.5,0.7,1,1,1,0,1,0.8,5,{"$nulls":4},0.5,1,0.5,1,0.9,{"$f":"(2*SUM(F223,L223,R223)+SUM(S223:V223))/(2*AREAS((F223,L223,R223))+COLUMNS(S223:V223))","v":0.74},4.07,"ei","ei","ei","ei","ei","ei","NT","Tulkittu. Talousmetsää, mahdollisesti METSO-potentiaalia. Ojitettu soistuma kuvion pohjoisosassa."]
[352,"Taimikko","M02.02.01 Nuoret tuoreet kankaat",100,1.3,0.3,0,0,1,0,1,0.4,"0-5",{"$nulls":4},0.2,0.8,0.1,1,0.8,{"$f":"(2*SUM(F224,L224,R224)+SUM(S224:V224))/(2*AREAS((F224,L224,R224))+COLUMNS(S224:V224))","v":0.45},0.58500000000000008,"ei","ei","ei","ei","ei","ei","VU","Hakkuulle noussut taimikko"]
[353,"Tiheäpuustoinen","M02.01.01 Nuoret lehtomaiset kankaat",90,3.1,0.5,1,1,1,0,2,0.8,"0-5",{"$nulls":4},0.3,0.8,0.3,1,0.9,{"$f":"(2*SUM(F225,L225,R225)+SUM(S225:V225))/(2*AREAS((F225,L225,R225))+COLUMNS(S225:V225))","v":0.62},1.9219999999999999,"ei","ei","ei","ei","ei","ei","VU","Aiempi liito-oravahavainto kuvion reunamilta, jossa lehtomaista kasvillisuutta ja runsaammin lehtipuuta, myös hale. Puulajisuhteet ja puuston ikä vaihtelevat kuviolla, kasvillisuus tiheää."]
[354,"Talousmetsä","M02.02.01 Nuoret tuoreet kankaat",99,2.5,0.5,1,0,0,0,1,0.5,"0-5",{"$nulls":4},0.2,0.9,0.2,1,0.9,{"$f":"(2*SUM(F226,L226,R226)+SUM(S226:V226))/(2*AREAS((F226,L226,R226))+COLUMNS(S226:V226))","v":0.54},1.35,"ei","ei","ei","ei","ei","ei","VU","Tulkittu"]
[356,"Talousmetsä","M02.01.01 Nuoret lehtomaiset kankaat",95,3,0.5,0,0,0,0,1,0.3,"0-5",{"$nulls":4},0.2,0.7,0.1,1,0.6,{"$f":"(2*SUM(F227,L227,R227)+SUM(S227:V227))/(2*AREAS((F227,L227,R227))+COLUMNS(S227:V227))","v":0.44000000000000006},1.3200000000000003,"ei","ei","ei","ei","ei","ei","VU","Roskaantumista, oja S-kulmalla"]
[357,"Rajautuu louhoksen reunaan","M02.01.02 Varttuneet havupuuvaltaiset lehtomaiset kankaat",90,2.6,0.5,1,0,1,0,2,0.7,"0-5",{"$nulls":4},0.4,0.7,0.2,1,0.6,{"$f":"(2*SUM(F228,L228,R228)+SUM(S228:V228))/(2*AREAS((F228,L228,R228))+COLUMNS(S228:V228))","v":0.57000000000000006},1.4820000000000002,"ei","ei","ei","ei","ei","ei","NT","Metsäautotien ja louhoksen rajaama rinnekaistale, reunavaikutusta, paikoin kuluneisuutta. Puuston ikä ja lajisuhteet vaihtelevat, paikoin hyvin tiheää, N-osa nuorempaa."]
[358,"Ojitettu louhoksenvierusmetsä"," M02.02.09 Varttuneet havupuuvaltaiset tuoreet kankaat",85,11,0.7,2,1,1,0,1,0.8,"0-5",{"$nulls":4},0.5,0.8,0.1,0.5,0.6,{"$f":"(2*SUM(F229,L229,R229)+SUM(S229:V229))/(2*AREAS((F229,L229,R229))+COLUMNS(S229:V229))","v":0.6},6.6,"ei","ei","ei","ei","ei","ei","NT","Osa kuviosta lehtomaista kangasta, osa korpimuuttumaa, ojituksia. Puuston tiheys ja ikäjakauma vaihtelevat, osa puustosta selvästi nuorempaa. Itäosassa komealupiinia. Louhoksen ja kaatopaikantien reunavaikutusta. Osin tulkittu."]
[365,"Taimikko","M02.01.01 Nuoret lehtomaiset kankaat",90,1.4,0.3,0,0,1,0,1,0.5,"0-5",{"$nulls":4},0.2,0.6,0.2,0.5,0.6,{"$f":"(2*SUM(F230,L230,R230)+SUM(S230:V230))/(2*AREAS((F230,L230,R230))+COLUMNS(S230:V230))","v":0.39},0.54599999999999993,"ei","ei","ei","ei","ei","ei","VU","Osa kuviosta kosteahkoa lehtoa, mutta hakkuun ja tien reunavaikutuksesta kasvillisuus ei tyypillistä."]
[366,"MT"," M02.02.09 Varttuneet havupuuvaltaiset tuoreet kankaat",98,0.9,0.6,1,1,0,0,1,0.7,"0-5",{"$nulls":4},0.2,1,0.2,1,0.7,{"$f":"(2*SUM(F231,L231,R231)+SUM(S231:V231))/(2*AREAS((F231,L231,R231))+COLUMNS(S231:V231))","v":0.59000000000000008},0.53100000000000014,"ei","ei","ei","ei","ei","ei","NT","Alas W-rinnettä muuttuu lehtomaiseksi"]
[368,"Täyttömäkeen rajautuva kuvio","M02.01.02 Varttuneet havupuuvaltaiset lehtomaiset kankaat",75,1.2,0.6,1,1,1,0,1,0.7,"0-5",{"$nulls":4},0.3,0.8,0.3,0.9,0.7,{"$f":"(2*SUM(F232,L232,R232)+SUM(S232:V232))/(2*AREAS((F232,L232,R232))+COLUMNS(S232:V232))","v":0.59000000000000008},0.70800000000000007,"ei","ei","ei","ei","ei","ei","NT","Tulkittu. Osa kuviosta lehtomaisempaa, osa tuoretta kangasta. Puuston ikä ja lajisuhteet vaihtelevat."]
[369,"Täyttömäkeen rajautuva taimikko","M02.01.01 Nuoret lehtomaiset kankaat",99,1.2,0.2,1,0,0,0,1,0.4,"0-5",{"$nulls":4},0.1,0.7,0.1,0.5,0.7,{"$f":"(2*SUM(F233,L233,R233)+SUM(S233:V233))/(2*AREAS((F233,L233,R233))+COLUMNS(S233:V233))","v":0.33999999999999997},0.40799999999999997,"ei","ei","ei","ei","ei","ei","VU","Osa taimikosta yli 10 v. Jättipalsamia runsaasti N-päässä."]
[370,"Täyttömäen reunamilla","M02.01.01 Nuoret lehtomaiset kankaat",98,1.9,0.4,1,0,0,0,1,0.4,"0-5",{"$nulls":4},0.2,0.9,0.1,0.9,0.8,{"$f":"(2*SUM(F234,L234,R234)+SUM(S234:V234))/(2*AREAS((F234,L234,R234))+COLUMNS(S234:V234))","v":0.47000000000000003},0.89300000000000002,"ei","ei","ei","ei","ei","ei","VU","Osin tulkittu"]
[371,"Mä valtainen talousmetsä"," M02.02.09 Varttuneet havupuuvaltaiset tuoreet kankaat",85,5.4,0.6,1,0,0,0,1,0.5,"0-5",{"$nulls":4},0.2,0.8,0.4,1,0.9,{"$f":"(2*SUM(F235,L235,R235)+SUM(S235:V235))/(2*AREAS((F235,L235,R235))+COLUMNS(S235:V235))","v":0.57000000000000006},3.0780000000000007,"ei",null,"ei","ei","ei","ei","NT","Kuviolla pienialaisia kalliometsälaikkuja, joista osassa pieniä lohkareisia jyrkänteitä (lepakoille hyviä piilopaikkoja). Itärinteessä luontotyyppi vaihettuu lehtomaiseksi, puustossa varttunutta ko & ha. Metsäkastikka koko kuviolla runsas."]
[374,"Ojitettu louhoksenvieruskorpi","Turvekangas",99,2,0.3,0,0,0,0,1,0.3,"0-5",{"$nulls":4},0.1,0.2,0.1,0.9,0.4,{"$f":"(2*SUM(F236,L236,R236)+SUM(S236:V236))/(2*AREAS((F236,L236,R236))+COLUMNS(S236:V236))","v":0.3},0.6,"ei","ei","ei","ei","ei","ei",null,"Tulkittu. Tiuhaan ojitettu, rajautuu louhosalueeseen. Alle 15 vuotiasta taimikkoa MV-tietojen ja hist. ilmakuvien perusteella"]
[377,"Koi valtainen kasvatusmetsä","M02.01.01 Nuoret lehtomaiset kankaat",100,0.5,0.4,1,0,0,0,1,0.5,"0-5",{"$nulls":4},0.1,0.7,0.2,0.9,0.7,{"$f":"(2*SUM(F237,L237,R237)+SUM(S237:V237))/(2*AREAS((F237,L237,R237))+COLUMNS(S237:V237))","v":0.45},0.22500000000000001,"ei","ei","ei","ei","ei","ei","VU","Pieniä jyrkkäseinämäisiä kalliopaljastumia, hieman haapaa."]
[378,"Nuori sekapuustoinen taimikko","M02.01.01 Nuoret lehtomaiset kankaat",100,1.6,0.3,0,0,1,0,2,0.6,"0-5",{"$nulls":4},0.2,0.8,0.1,0.5,0.7,{"$f":"(2*SUM(F238,L238,R238)+SUM(S238:V238))/(2*AREAS((F238,L238,R238))+COLUMNS(S238:V238))","v":0.42999999999999988},0.68799999999999983,"ei","ei","ei","ei","ei","ei","VU","Rajautuu etelässä luohokseen ja idässä louhokselta laskeutuvaan pitkään ojaränniin. Lännessä METE ja METSO-kohde, sekä VL-kohde."]
[379,"Luonnontilaisen kaltainen pieni kuvio"," M02.02.09 Varttuneet havupuuvaltaiset tuoreet kankaat",100,0.4,0.7,2,1,1,0,1,0.8,null,null,1,1,0,0.7,0.9,0.7,0.9,0.7,{"$f":"(2*SUM(F239,L239,R239)+SUM(S239:V239))/(2*AREAS((F239,L239,R239))+COLUMNS(S239:V239))","v":0.76},0.30400000000000005,"ei","Luonnonmetsät (9010)","ei merkittävä","ei","ei","ei","NT","Voimakas reunavaikutus pohjoispuolella sijaitsevan louhosalueen vuoksi. Toimii suojavyöhykkeenä louhoksen (360) ja METE-kohteen (375) välillä."]
[380,"Nuori sekapuustoinen taimikko","M02.01.01 Nuoret lehtomaiset kankaat",100,2.2999999999999998,0.3,0,0,1,0,1,0.5,"0-5",{"$nulls":4},0.2,0.6,0.1,0.3,0.7,{"$f":"(2*SUM(F240,L240,R240)+SUM(S240:V240))/(2*AREAS((F240,L240,R240))+COLUMNS(S240:V240))","v":0.37},0.85099999999999998,"ei","ei","ei","ei","ei","ei","VU","Komealupiini levinnyt kuviolle"]
[382,"Ku valtainen tiheähkö talousmetsä","M02.02.01 Nuoret tuoreet kankaat",90,3.5,0.4,0,0,1,0,1,0.4,"0-5",{"$nulls":4},0.2,0.7,0.1,1,0.9,{"$f":"(2*SUM(F241,L241,R241)+SUM(S241:V241))/(2*AREAS((F241,L241,R241))+COLUMNS(S241:V241))","v":0.46999999999999992},1.6449999999999998,"ei","ei","ei","ei","ei","ei","VU","Osa kuviosta lehtomaista kangasta."]
[384,"Ko valtainen kasvatusmetsä","M02.02.01 Nuoret tuoreet kankaat",99,1.4,0.4,1,0,0,0,1,0.4,"0-5",{"$nulls":4},0.1,0.7,0.2,1,0.7,{"$f":"(2*SUM(F242,L242,R242)+SUM(S242:V242))/(2*AREAS((F242,L242,R242))+COLUMNS(S242:V242))","v":0.43999999999999995},0.61599999999999988,"ei","ei","ei","ei","ei","ei","VU","Metsäkastikka runsas"]
[385,"Ku valtainen tiheähkö talousmetsä","M02.01.01 Nuoret lehtomaiset kankaat",95,0.8,0.4,0,0,1,0,1,0.4,"0-5",{"$nulls":4},0.2,0.7,0.1,1,0.7,{"$f":"(2*SUM(F243,L243,R243)+SUM(S243:V243))/(2*AREAS((F243,L243,R243))+COLUMNS(S243:V243))","v":0.45},0.36000000000000004,"ei","ei","ei","ei","ei","ei","VU","Maastokartalla näkyvä pienvesi kartoitusaljankohtana kuiva, suora ja matala ojamainen ränni. Osa kuiviosta ko valtainen."]
[386,"Sekapuustoinen reunusmetsä","M02.01.01 Nuoret lehtomaiset kankaat",95,2.1,0.5,1,1,1,0,2,0.7,"0-5",{"$nulls":4},0.3,0.7,0.3,0.9,0.7,{"$f":"(2*SUM(F244,L244,R244)+SUM(S244:V244))/(2*AREAS((F244,L244,R244))+COLUMNS(S244:V244))","v":0.55999999999999994},1.1759999999999999,"ei","ei","ei","ei","ei","ei","VU","Osa puustosta varttunutta, puuston ikä ja  lajisuhteet vaihtelevat, osin käsitellympää. Reunavaikutusta. "]
[387,"Harvennettu talousmetsä","M02.02.01 Nuoret tuoreet kankaat",98,3.5,0.4,0,0,0,0,1,0.3,"0-5",{"$nulls":4},0.2,0.6,0.1,1,0.6,{"$f":"(2*SUM(F245,L245,R245)+SUM(S245:V245))/(2*AREAS((F245,L245,R245))+COLUMNS(S245:V245))","v":0.41},1.4349999999999998,"ei","ei","ei","ei","ei","ei","VU","Voimakkaasti käsitelty, ojia"]
[388,"Havupuuvaltainen","M02.02.01 Nuoret tuoreet kankaat",99,2.9,0.3,0,0,1,0,1,0.4,"0-5",{"$nulls":4},0.2,1,0.1,1,0.9,{"$f":"(2*SUM(F246,L246,R246)+SUM(S246:V246))/(2*AREAS((F246,L246,R246))+COLUMNS(S246:V246))","v":0.48},1.3919999999999999,"ei","ei","ei","ei","ei","ei","VU"]
[389,"Kulttuurivaikutteinen suurruohoturvekangas","Ruohoturvekangas ja turvelehto",95,6.8,0.6,1,1,1,0,2,0.8,"5-10",null,1,1,1,0.8,0.5,0.8,1,0.7,{"$f":"(2*SUM(F247,L247,R247)+SUM(S247:V247))/(2*AREAS((F247,L247,R247))+COLUMNS(S247:V247))","v":0.74},{"$f":"(PRODUCT(E247,W247))","v":5.032},"kyllä","ei","ei","ei","ei","ei","ei","Vanhaa peltomaata. Todennäköisesti ollut ennen pellonraivausta rehevää lehtokorpea. Käenkaali, oravanmarja, korpi- ja metsäimarre, paikoin korkeaa vadelmikkoa, mesiangervoa, puna-ailakkia, suo-orvokkia, nurmilauhaa, paikoin hiirenporras, metsäalvejuuri, lehtokuusamaa, mustaherukkaa, karhunputkea, jokunen mustakonnanmarja. Osin karumpaa. Lehtipuuta runsaasti, joitain vanhoja raitoja ja järeitä haapoja. Lahopuuta kohtalaisesti, varsinkin lehtipuuta, myös järeää. Hömötiaishavainto (EN) kesän 2025 kartoituksen yhteydessä. Suuri ylispuuhaapa ja risupesä sen vieressä kuvion W-kulmalla vanhan ladon jäänteiden luona. Ojalla koivulla erikoisen suuri pahka jossa koivuvinokasta. Aiempia liito-oravahavaintoja. Ojituksia: myös itään kulkenut norouoma ojitettu, suora, tasapaksu ja matala, kuiva, luonnontilansa menettänyt. Mahdollisesti ennallistamiskelpoinen."]
[390,"Tiheää kuusikkoa","M02.02.01 Nuoret tuoreet kankaat",90,9.1999999999999993,0.3,0,0,0,0,1,0.3,"0-5",{"$nulls":4},0.2,0.8,0.2,1,0.7,{"$f":"(2*SUM(F248,L248,R248)+SUM(S248:V248))/(2*AREAS((F248,L248,R248))+COLUMNS(S248:V248))","v":0.43000000000000005},3.956,"ei","ei","ei","ei","ei","ei","VU","Pohjois- ja koillisreunalla luonnontilansa menettänyt ojitettu noro, joka mahdollisesti ennallistamiskelpoinen. Kuiva kartoitusaikaan."]
[393,"Harvennettu talousmetsä","M02.02.01 Nuoret tuoreet kankaat",100,3.4,0.4,0,0,0,0,1,0.3,"0-5",{"$nulls":4},0.1,0.6,0.1,1,0.6,{"$f":"(2*SUM(F249,L249,R249)+SUM(S249:V249))/(2*AREAS((F249,L249,R249))+COLUMNS(S249:V249))","v":0.38999999999999996},1.3259999999999998,"ei","ei","ei","ei","ei","ei","VU","Voimakkaasti käsitelty"]
[394,"Tiheää kuusikkoa","M02.02.01 Nuoret tuoreet kankaat",99,10.4,0.3,0,0,0,0,1,0.3,"0-5",{"$nulls":4},0.3,0.7,0.2,1,0.9,{"$f":"(2*SUM(F250,L250,R250)+SUM(S250:V250))/(2*AREAS((F250,L250,R250))+COLUMNS(S250:V250))","v":0.45999999999999996},4.7839999999999998,"ei","ei","ei","ei","ei","ei","VU","Eteläreunalla oja, joka ollut noro, sen luona hieman soistumaa, korpisuutta ja korpimuuttumaa, noron ojitus kuivattanut aluetta. Tehty hiljan taimikonraivausta, siksi vaikeakulkuinen."]
[398,"Noroa ympäröivä metsä"," M02.02.09 Varttuneet havupuuvaltaiset tuoreet kankaat",90,0.5,0.6,1,1,1,0,2,0.8,null,null,1,1,1,0.8,0.7,0.7,1,0.8,{"$f":"(2*SUM(F251,L251,R251)+SUM(S251:V251))/(2*AREAS((F251,L251,R251))+COLUMNS(S251:V251))","v":0.76},0.38,"kyllä","ei","ei","ei","ei","ei","NT","VL ja METE-kohdetta ympäröivä metsä. Järeitä hapoja, varttuneita, suria koivuja ja kuusia. Lahopuuta hyvin. Useita aiempia liito-oravahavaintoja lähistöltä. Hieman tien ja radan reunavaikutusta."]
[399,"Tien laidassa","M02.02.04 Varttuneet lehtipuuvaltaiset lehtomaiset ja tuoreet kankaat",100,0.4,0.6,1,1,1,0,2,0.8,"0-5",{"$nulls":4},0.2,0.7,0.5,1,0.7,{"$f":"(2*SUM(F252,L252,R252)+SUM(S252:V252))/(2*AREAS((F252,L252,R252))+COLUMNS(S252:V252))","v":0.61},0.24399999999999999,"ei","ei","ei","ei","ei","ei","VU","Muutama järeä haapa, koivua, lehtokuusamaa tienposkessa"]
[400,"Harvennettu talousmetsä","M02.01.01 Nuoret lehtomaiset kankaat",80,8.9,0.4,0,0,0,0,1,0.3,"0-5",{"$nulls":4},0.2,0.5,0.1,0.8,0.5,{"$f":"(2*SUM(F253,L253,R253)+SUM(S253:V253))/(2*AREAS((F253,L253,R253))+COLUMNS(S253:V253))","v":0.37},3.2930000000000001,"ei","ei","ei","ei","ei","ei","VU","Osa kuviosta vastaavanlaista ku valtaista tuoretta kangasta"]
[401,"Ku valt talousmetsä","M02.02.01 Nuoret tuoreet kankaat",90,9.3000000000000007,0.4,0,0,0,0,1,0.4,"0-5",{"$nulls":4},0.3,0.8,0.2,1,0.9,{"$f":"(2*SUM(F254,L254,R254)+SUM(S254:V254))/(2*AREAS((F254,L254,R254))+COLUMNS(S254:V254))","v":0.51},4.7430000000000003,"ei","ei","ei","ei","ei","ei","VU","Paikoin hieman soistumaa"]
[403,"Harvennettu talousmetsä","M02.02.01 Nuoret tuoreet kankaat",100,1,0.3,0,0,0,0,1,0.3,"0-5",{"$nulls":4},0.1,0.5,0.1,1,0.5,{"$f":"(2*SUM(F255,L255,R255)+SUM(S255:V255))/(2*AREAS((F255,L255,R255))+COLUMNS(S255:V255))","v":0.35},0.35,"ei","ei","ei","ei","ei","ei","VU","Voimakkaasti käsitelty"]
[405,"Taimikko hakkuuaukiolla","M02.01.01 Nuoret lehtomaiset kankaat",90,1.3,0.2,0,0,1,0,2,0.5,"0-5",{"$nulls":4},0.1,0.7,0.1,0.9,0.8,{"$f":"(2*SUM(F256,L256,R256)+SUM(S256:V256))/(2*AREAS((F256,L256,R256))+COLUMNS(S256:V256))","v":0.41},0.53300000000000003,"ei","ei","ei","ei","ei","ei","VU","Lehtipuuvaltainen"]
[406,"Harvennettu talousmetsä","M02.01.02 Varttuneet havupuuvaltaiset lehtomaiset kankaat",90,3.1,0.5,1,0,0,0,2,0.5,"0-5",{"$nulls":4},0.2,0.7,0.2,1,0.7,{"$f":"(2*SUM(F257,L257,R257)+SUM(S257:V257))/(2*AREAS((F257,L257,R257))+COLUMNS(S257:V257))","v":0.5},1.55,"ei","ei","ei","ei","ei","ei","NT","Reippaasti harvennettu. Järeä kolohaapa E-osassa. SW-kulmalla pieni kalliopaljastuma ja tuoretta kangasta. Puulajisuhteet vaihtelevat: E-osassa ko, ha, hale, SW-osassa mä, muualla ku."]
[407,"Pieni erirakenteinen kuvio","M02.02.01 Nuoret tuoreet kankaat",100,0.4,0.4,1,1,1,0,1,0.7,"0-5",{"$nulls":4},0.2,0.8,0.2,1,0.9,{"$f":"(2*SUM(F258,L258,R258)+SUM(S258:V258))/(2*AREAS((F258,L258,R258))+COLUMNS(S258:V258))","v":0.55000000000000004},0.22000000000000003,"ei","ei","ei","ei","ei","ei","VU","Ku valtainen"]
[408,"Voimakkaasti käsitelty talousmetsä","M02.02.01 Nuoret tuoreet kankaat",98,4.5,0.4,0,0,0,0,1,0.3,"0-5",{"$nulls":4},0.2,0.5,0.1,0.9,0.6,{"$f":"(2*SUM(F259,L259,R259)+SUM(S259:V259))/(2*AREAS((F259,L259,R259))+COLUMNS(S259:V259))","v":0.39},1.7550000000000001,"ei","ei","ei","ei","ei","ei","VU","Reippaasti harvennettu. Rajautuu louhosalueeseen. Valkolehdokkia."]
[409,"Mä valtainen","M02.02.01 Nuoret tuoreet kankaat",100,1.3,0.5,1,0,0,0,1,0.4,"0-5",{"$nulls":4},0.1,0.9,0.1,1,0.9,{"$f":"(2*SUM(F260,L260,R260)+SUM(S260:V260))/(2*AREAS((F260,L260,R260))+COLUMNS(S260:V260))","v":0.49000000000000005},0.63700000000000012,"ei","ei","ei","ei","ei","ei","VU","Harvennettu"]
[410,"Mä valtainen","M02.01.02 Varttuneet havupuuvaltaiset lehtomaiset kankaat",99,1.7,0.6,1,0,0,0,1,0.5,"0-5",{"$nulls":4},0.2,0.8,0.2,1,0.9,{"$f":"(2*SUM(F261,L261,R261)+SUM(S261:V261))/(2*AREAS((F261,L261,R261))+COLUMNS(S261:V261))","v":0.55000000000000004},0.93500000000000005,"ei","ei","ei","ei","ei","ei","NT","Harvennettu"]
[411,"Järeitä kuusia","M02.01.02 Varttuneet havupuuvaltaiset lehtomaiset kankaat",100,0.1,0.8,2,1,1,0,1,0.9,null,null,1,0,1,0.7,1,1,1,1,{"$f":"(2*SUM(F262,L262,R262)+SUM(S262:V262))/(2*AREAS((F262,L262,R262))+COLUMNS(S262:V262))","v":0.88000000000000012},8.8000000000000023E-2,"kyllä","Luonnonmetsät (9010)","hyvä","ei","ei","ei","NT","Hyvin järeitä kuusia, erityisesti kuvion reunamilla lahoa lehtipuuta. Palokärjen hakkuita. Rajautuu pohjoisessa entiselle pellolle syntyneeseen kosteaan lehtoon."]
[414,"Järeitä kuusia","M02.01.02 Varttuneet havupuuvaltaiset lehtomaiset kankaat",100,0.2,0.8,2,1,1,0,1,0.8,null,null,1,1,0,0.7,1,1,1,0.9,{"$f":"(2*SUM(F263,L263,R263)+SUM(S263:V263))/(2*AREAS((F263,L263,R263))+COLUMNS(S263:V263))","v":0.85},0.17,"ei","Luonnonmetsät (9010)","merkittävä","ei","ei","ei","NT","Järeitä ku, kilpikaarnamäntyjä. Jonkin eläimen pesäluola. Vanha kärryura."]
[415,"Järeitä kuusia","M02.01.02 Varttuneet havupuuvaltaiset lehtomaiset kankaat",100,0.6,0.8,2,1,1,0,1,0.9,null,null,1,1,1,0.8,1,1,1,0.8,{"$f":"(2*SUM(F264,L264,R264)+SUM(S264:V264))/(2*AREAS((F264,L264,R264))+COLUMNS(S264:V264))","v":0.88000000000000012},0.52800000000000002,"kyllä","Luonnonmetsät (9010)","hyvä","ei","ei","ei","NT","N-reunall varttunutta ja lahoa lehtipuuta, rajautuu kosteaan lehtoon. E-reunalla pieni kasa rakennusjätettä. S -puolella käsiteltyä talousmetsää."]
[416,"Ko valtainen, entistä peltoa","M02.02.04 Varttuneet lehtipuuvaltaiset lehtomaiset ja tuoreet kankaat",98,1.3,0.6,1,1,1,0,1,0.6,"0-5",{"$nulls":4},0.2,0.6,0.4,1,0.8,{"$f":"(2*SUM(F265,L265,R265)+SUM(S265:V265))/(2*AREAS((F265,L265,R265))+COLUMNS(S265:V265))","v":0.55999999999999994},0.72799999999999998,"ei","ei","ei","ei","ei","ei","VU","Entisellä pellolla avaraa, harvaa koivikkoa. Vanha kiviaita ja kiviröykkiö N-rajalla. Aidan lähettyvillä järeitä kilpikaarnamäntyjä ja niittylajistoa: poimulehdet, röllit, särmäkuisma, niittynätkelmä, nurmitädyke, hiirenvirna, korvakeltano, siankärsämö, aho-orvokki, ahopukinjuuri. Kielo, lillukka runsaita. Kosteammilla paikoilla karhunputkea, ojakärsämöä. Monin paikoin metsäkastikka runsas. E-osan puusto hieman nuorempaa ja vähän roskia, jokunen oja näkyvissä. E-rajalla yhteenkasvettuneet suuri kuusi ja mänty."]
[417,"Kuusikoinen itärinne","M02.01.01 Nuoret lehtomaiset kankaat",85,2.2000000000000002,0.5,1,0,1,0,1,0.6,"0-5",{"$nulls":4},0.2,0.8,0.3,1,0.8,{"$f":"(2*SUM(F266,L266,R266)+SUM(S266:V266))/(2*AREAS((F266,L266,R266))+COLUMNS(S266:V266))","v":0.55000000000000004},1.2100000000000002,"ei","ei","ei","ei","ei","ei","VU","Eteläosan puusto varttunutta. Pohjoisosassa paikoin kosteaa lehtoa ja jonkinlaista veden valuntaa. Kasvillisuus reheväityy pohjoista kohti, enemmän lehtokuusamaa ym."]
[418,"Harvaa talouskoivikkoa","M02.01.01 Nuoret lehtomaiset kankaat",99,6.4,0.4,0,0,1,0,1,0.2,"0-5",{"$nulls":4},0.2,0.5,0.2,1,0.9,{"$f":"(2*SUM(F267,L267,R267)+SUM(S267:V267))/(2*AREAS((F267,L267,R267))+COLUMNS(S267:V267))","v":0.42000000000000004},2.6880000000000006,"ei","ei","ei","ei","ei","ei","VU","Metsäkastikka hyvin runsas, paikoin lehtokuusamaa reunamila."]
[420,"Ojitettu korpi","Turvekangas",90,1.3,0.5,1,1,1,0,1,0.7,null,null,1,0,1,0.7,0.5,0.2,1,0.6,{"$f":"(2*SUM(F268,L268,R268)+SUM(S268:V268))/(2*AREAS((F268,L268,R268))+COLUMNS(S268:V268))","v":0.61},0.79300000000000004,"kyllä","ei","ei","ei","ei","ei",null,"Hieskoivut 60-vuotiaita, ku nuorempaa, valtapuu. Lahopuuta kohtalaisen paljon. Kuivunut. Ennallistamis- ja METSO-potentiaalia. Viereinen kuvio (412) METE- ja METSO-kohde."]
[421,"Monimuotoinen kuvio","M02.02.03 Vanhat havupuuvaltaiset tuoreet kankaat",40,0.3,1,1,1,1,0,2,0.9,null,null,1,1,1,0.9,1,1,1,1,{"$f":"(2*SUM(F269,L269,R269)+SUM(S269:V269))/(2*AREAS((F269,L269,R269))+COLUMNS(S269:V269))","v":0.96},0.28799999999999998,"kyllä","Luonnonmetsät (9010)","hyvä","kyllä","ei","ei","EN","Vaihtelevan kuvion MT-osassa järeitä ku ja lahopuuta. Loput kuviosta kalliometsää ja tuoretta lehtoa."]
[422,"Heinikoitunut talousmetsä","M02.01.01 Nuoret lehtomaiset kankaat",95,4.4000000000000004,0.4,1,0,0,0,1,0.5,"0-5",{"$nulls":4},0.2,0.5,0.1,1,0.8,{"$f":"(2*SUM(F270,L270,R270)+SUM(S270:V270))/(2*AREAS((F270,L270,R270))+COLUMNS(S270:V270))","v":0.46000000000000008},2.0240000000000005,"ei","ei","ei","ei","ei","ei","VU","Ku valtainen laaja kuvio"]
[424,"Kasvatusmännnikkö"," M02.02.09 Varttuneet havupuuvaltaiset tuoreet kankaat",98,5.3,0.5,0,0,0,0,1,0.3,"0-5",{"$nulls":4},0.2,0.7,0.2,1,0.8,{"$f":"(2*SUM(F271,L271,R271)+SUM(S271:V271))/(2*AREAS((F271,L271,R271))+COLUMNS(S271:V271))","v":0.47000000000000003},{"$f":"(PRODUCT(E271,W271))","v":2.4910000000000001},"ei","ei","ei","ei","ei","ei","NT","Rajautuu louhokseen ja rakennettavaan alueeseen. Kangasmaitikka runsas, samoin mustikka, metsälauha ja puolukka."]
[425,"Ojituksen kuivattama","Turvekangas",90,1.2,0.7,1,0,0,0,1,0.5,"0-5",{"$nulls":4},0.3,0.5,0.5,1,0.5,{"$f":"(2*SUM(F272,L272,R272)+SUM(S272:V272))/(2*AREAS((F272,L272,R272))+COLUMNS(S272:V272))","v":0.55000000000000004},0.66,"ei","ei","ei","ei","ei","ei",null,"Ku valtainen, ko, ha, ra, puuston puolesta liito-oravalle soveltuva kuvio. Oja halki kuvion, kuivunut, turvekerros painunut, ollut ehkä lehtokorpi."]
[426,"Ojituksen kuivattama","Turvekangas",90,3.9,0.6,1,0,0,0,1,0.4,"0-5",{"$nulls":4},0.2,0.5,0.2,1,0.6,{"$f":"(2*SUM(F273,L273,R273)+SUM(S273:V273))/(2*AREAS((F273,L273,R273))+COLUMNS(S273:V273))","v":0.46999999999999992},1.8329999999999997,"ei","ei","ei","ei","ei","ei"]
[427,"Havupuuvaltainen","M02.02.01 Nuoret tuoreet kankaat",99,7,0.3,1,0,1,0,1,0.6,"0-5",{"$nulls":4},0.3,0.7,0.3,1,0.9,{"$f":"(2*SUM(F274,L274,R274)+SUM(S274:V274))/(2*AREAS((F274,L274,R274))+COLUMNS(S274:V274))","v":0.53},3.71,"ei","ei","ei","ei","ei","ei","VU","Osin mä, osin ku valtainen. Kuvion eteläreunalla vanhoja mäntyjä pienellä alalla."]
[429,"Mä valtainen kasvatusmetsä"," M02.02.09 Varttuneet havupuuvaltaiset tuoreet kankaat",98,15.4,0.5,1,1,0,0,1,0.6,"0-5",{"$nulls":4},0.2,0.7,0.2,1,0.8,{"$f":"(2*SUM(F275,L275,R275)+SUM(S275:V275))/(2*AREAS((F275,L275,R275))+COLUMNS(S275:V275))","v":0.53},8.1620000000000008,"ei","ei","ei","ei","ei","ei","NT","Pieniä soistumia, osassa kuviota hieman monipuolisempi puuston rakenne, paikoin metsäkastikkaa paljon. Kangasmaitikka runsas, kartoitusajankohtana olemattomaksi. kuivunut"]
[430,"Ojitettu laajalti","Ruohoturvekangas",90,8.1999999999999993,0.5,1,0,0,0,1,0.4,"0-5",{"$nulls":4},0.3,0.3,0.2,0.8,0.2,{"$f":"(2*SUM(F276,L276,R276)+SUM(S276:V276))/(2*AREAS((F276,L276,R276))+COLUMNS(S276:V276))","v":0.39},3.198,"ei","ei","ei","ei","ei","ei",null,"Harvennettu, vadelmikkoinen. Puulajisuhteet vaihtelevat: mä, ku, hiko"]
[431,"Tiheää kuusikkoa","M02.02.01 Nuoret tuoreet kankaat",99,2.2000000000000002,0.3,0,0,1,0,1,0.4,"0-5",{"$nulls":4},0.3,0.9,0.3,1,0.9,{"$f":"(2*SUM(F277,L277,R277)+SUM(S277:V277))/(2*AREAS((F277,L277,R277))+COLUMNS(S277:V277))","v":0.51},1.1220000000000001,"ei","ei","ei","ei","ei","ei","VU","Harvennettu hiljan, risukkoinen"]
[433,"Harvennettu"," M02.02.09 Varttuneet havupuuvaltaiset tuoreet kankaat",98,7.6,0.5,0,0,0,0,1,0.3,"0-5",{"$nulls":4},0.2,0.6,0.2,1,0.7,{"$f":"(2*SUM(F278,L278,R278)+SUM(S278:V278))/(2*AREAS((F278,L278,R278))+COLUMNS(S278:V278))","v":0.45},3.42,"ei","ei","ei","ei","ei","ei","NT","Puulajisuhteet vaihtelevat, metsäkastikka ja vadelma paikoin runsaita."]
[434,"Ojitettu mä valtainen","Turvekangas",100,2.4,0.5,0,0,0,0,1,0.3,"0-5",{"$nulls":4},0.2,0.5,0.1,0.9,0.6,{"$f":"(2*SUM(F279,L279,R279)+SUM(S279:V279))/(2*AREAS((F279,L279,R279))+COLUMNS(S279:V279))","v":0.41},0.98399999999999987,"ei","ei","ei","ei","ei","ei",null,"Runsaasti koivuntaimia, harvennettu. Vielä paikoin tupasvilla ja lakka, suopursu."]
[435,"Hakkuuaukea, pieni taimikko","Ruohoturvekangas",90,1,0.2,1,0,0,0,2,0.4,"0-5",{"$nulls":4},0.2,0.6,0.1,0.9,0.5,{"$f":"(2*SUM(F280,L280,R280)+SUM(S280:V280))/(2*AREAS((F280,L280,R280))+COLUMNS(S280:V280))","v":0.37},0.37,"ei","ei","ei","ei","ei","ei",null,"Useampi oja, tiheä vadelmikko hakkuulla, lehtipuustoiset reunukset. Reunavaikutusta  Kaatopaikantie ja louhosalue."]
[437,"Harva mä valtainen kasvatusmetsä"," M02.02.09 Varttuneet havupuuvaltaiset tuoreet kankaat",98,1.2,0.5,0,0,0,0,1,0.3,"0-5",{"$nulls":4},0.1,0.6,0.1,1,0.7,{"$f":"(2*SUM(F281,L281,R281)+SUM(S281:V281))/(2*AREAS((F281,L281,R281))+COLUMNS(S281:V281))","v":0.42000000000000004},0.504,"ei","ei","ei","ei","ei","ei","NT","Metsäkastikka ja metsälauha runsaita"]
[438,"Harva mä valtainen kasvatusmetsä","M02.02.01 Nuoret tuoreet kankaat",99,1.5,0.4,0,0,0,0,1,0.3,"0-5",{"$nulls":4},0.2,0.6,0.1,1,0.8,{"$f":"(2*SUM(F282,L282,R282)+SUM(S282:V282))/(2*AREAS((F282,L282,R282))+COLUMNS(S282:V282))","v":0.43},0.64500000000000002,"ei","ei","ei","ei","ei","ei","VU","Pieniä kalliopaljastumia. Metsälauha runsas."]
[440,"Hakkuuaukea","M02.02.01 Nuoret tuoreet kankaat",85,2.7,0.2,0,0,0,0,1,0.2,"0-5",{"$nulls":4},0.2,0.6,0.1,0.9,0.6,{"$f":"(2*SUM(F283,L283,R283)+SUM(S283:V283))/(2*AREAS((F283,L283,R283))+COLUMNS(S283:V283))","v":0.34},0.91800000000000015,"ei","ei","ei","ei","ei","ei","VU","Hakkuu ei näy kokonaan ilmakuvissa? Osa kuviosta todennäköisesti lehtomaista kangasta tai lehtoa."]
[441,"Harva talouskuusikko","M02.02.01 Nuoret tuoreet kankaat",99,1,0.4,0,0,0,0,0,0.1,"0-5",{"$nulls":4},0.1,0.6,0.1,1,0.6,{"$f":"(2*SUM(F284,L284,R284)+SUM(S284:V284))/(2*AREAS((F284,L284,R284))+COLUMNS(S284:V284))","v":0.35},0.35,"ei","ei","ei","ei","ei","ei","VU"]
[442,"Nuori talousmetsä","M02.02.01 Nuoret tuoreet kankaat",98,2.2999999999999998,0.3,1,0,1,0,1,0.6,"0-5",{"$nulls":4},0.2,0.7,0.2,1,0.9,{"$f":"(2*SUM(F285,L285,R285)+SUM(S285:V285))/(2*AREAS((F285,L285,R285))+COLUMNS(S285:V285))","v":0.5},{"$f":"(PRODUCT(E285,W285))","v":1.1499999999999999},"ei","ei","ei","ei","ei","ei","VU","Osa puustosta varttunutta"]
[444,null,"M02.01.02 Varttuneet havupuuvaltaiset lehtomaiset kankaat",99,0.7,0.7,1,1,1,0,2,0.8,"0-5",{"$nulls":4},0.6,0.9,0.5,1,0.9,{"$f":"(2*SUM(F286,L286,R286)+SUM(S286:V286))/(2*AREAS((F286,L286,R286))+COLUMNS(S286:V286))","v":0.75},0.52499999999999991,"ei","ei","ei","ei","ei","ei","NT","Tulkittu. 2014 mainitaan olevan ylispuina rauduskoivua, muutoin puustossa lehtipuuta ja että harvennetut puut jätetty sijoilleen."]
[448,"Hakkuuaukio","M02.01.01 Nuoret lehtomaiset kankaat",98,5.5,0.2,0,0,0,0,1,0.2,"0-5",{"$nulls":4},0.1,0.5,0.1,0.9,0.7,{"$f":"(2*SUM(F287,L287,R287)+SUM(S287:V287))/(2*AREAS((F287,L287,R287))+COLUMNS(S287:V287))","v":0.32},1.76,"ei","ei","ei","ei","ei","ei","VU","Tulkittu. "]
[449,null,"M02.01.01 Nuoret lehtomaiset kankaat",99,1.3,0.3,1,1,0,0,1,0.6,"0-5",{"$nulls":4},0.2,0.5,0.2,1,0.6,{"$f":"(2*SUM(F288,L288,R288)+SUM(S288:V288))/(2*AREAS((F288,L288,R288))+COLUMNS(S288:V288))","v":0.45},0.58500000000000008,"ei","ei","ei","ei","ei","ei","VU","Tulkittu. "]
[450,"Laaja, vaihteleva kuvio"," M02.02.09 Varttuneet havupuuvaltaiset tuoreet kankaat",90,5.8,0.5,1,1,1,0,1,0.7,"0-5",{"$nulls":4},0.3,0.7,0.2,1,0.6,{"$f":"(2*SUM(F289,L289,R289)+SUM(S289:V289))/(2*AREAS((F289,L289,R289))+COLUMNS(S289:V289))","v":0.55000000000000004},3.19,"ei","ei","ei","ei","ei","ei","NT","Laaja kuvio. Mä valt, mutta paikoin ku, rako. Reunavaikutusta,kone-& mönkkäriuria, roskia. Soistumaa aika paljon, rahkasammaleista märkää pintaa. Noroja ja ojia."]
[452,"Rako valtainen","M02.02.01 Nuoret tuoreet kankaat",100,1.1000000000000001,0.4,1,0,1,0,1,0.6,"0-5",{"$nulls":4},0.2,0.7,0.1,1,0.6,{"$f":"(2*SUM(F290,L290,R290)+SUM(S290:V290))/(2*AREAS((F290,L290,R290))+COLUMNS(S290:V290))","v":0.48},0.52800000000000002,"ei","ei","ei","ei","ei","ei","VU"]
[455,"Hakkuuaukio","M02.02.01 Nuoret tuoreet kankaat",100,0.7,0.2,0,0,1,0,1,0.4,"0-5",{"$nulls":4},0.2,0.8,0.1,1,0.7,{"$f":"(2*SUM(F291,L291,R291)+SUM(S291:V291))/(2*AREAS((F291,L291,R291))+COLUMNS(S291:V291))","v":0.41999999999999993},0.29399999999999993,"ei","ei","ei","ei","ei","ei","VU","Kuviolla suoristettu, luonnontilansa menettänyt noro. Voi palautua."]
[456,"Taimikko","M02.02.01 Nuoret tuoreet kankaat",99,3.7,0.3,1,0,1,0,1,0.6,"0-5",{"$nulls":4},0.2,0.8,0.2,1,0.8,{"$f":"(2*SUM(F292,L292,R292)+SUM(S292:V292))/(2*AREAS((F292,L292,R292))+COLUMNS(S292:V292))","v":0.5},1.85,"ei","ei","ei","ei","ei","ei","VU"]
[457,"Osin turvekankaan tapaista","M02.01.02 Varttuneet havupuuvaltaiset lehtomaiset kankaat",75,2.2000000000000002,0.7,1,1,1,0,1,0.8,"0-5",{"$nulls":4},0.3,0.6,0.4,1,0.6,{"$f":"(2*SUM(F293,L293,R293)+SUM(S293:V293))/(2*AREAS((F293,L293,R293))+COLUMNS(S293:V293))","v":0.62},1.3640000000000001,"ei","ei","ei","ei","ei","ei","NT","Kuvion S-osa turvekangasta, vielä mm. isoalvejuurta, harmaaleppää, korpi-imarretta, ojakellukkaa. Ollut kosteaa saniaislehtoa. Jonkinlainen köykäinen oja. N-osa tuoretta kangasta, välissä suurin osa lehtomaista. Pohjois- ja eteläosan välissä kone/mönkkäriura, joka myös kiertää kuviota idässä. Puusto melko erirakenteista, ikä vaihtelee, myös vanhemman sukupolven puustoa. METSO-potentiaalia, mikäli saa kehittyä luonnontilaiseen suuntaan (viereinen kuvio 458 METSO-kohde). Jonkin verran roskaantumista (kaatopaikka)."]
[458,"Ikääntynyttä, järeää  puustoa"," M02.02.09 Varttuneet havupuuvaltaiset tuoreet kankaat",60,2.4,0.9,2,1,1,0,1,0.8,null,null,1,2,0,0.8,0.9,0.9,1,0.7,{"$f":"(2*SUM(F294,L294,R294)+SUM(S294:V294))/(2*AREAS((F294,L294,R294))+COLUMNS(S294:V294))","v":0.85},2.04,"kyllä","Luonnonmetsät (9010)","hyvä","ei","ei","ei","NT","Järeitä ku ja kilpikaarnamä. Runsaslahopuustoinen, lehtipuuta vähemmän. Osassa kuviota kaadettu puita, puut harvemmassa, heinikoitumista, osa luonnontilaisempi. Kuviolla kiertää mönkijäura ja linnut tuovat roskia kaatopaikalta. Jo aiemmin todettu soveltuvan METSO-ohjelmaan. Loput 40 % kuviosta vastaavanlaista lehtomaista kangasta."]
[459,"Harvennettu talousmetsä"," M02.02.09 Varttuneet havupuuvaltaiset tuoreet kankaat",99,0.9,0.5,1,0,1,0,1,0.6,"0-5",{"$nulls":4},0.1,0.7,0.1,1,0.7,{"$f":"(2*SUM(F295,L295,R295)+SUM(S295:V295))/(2*AREAS((F295,L295,R295))+COLUMNS(S295:V295))","v":0.49000000000000005},0.44100000000000006,"ei","ei","ei","ei","ei","ei","NT"]
[460,"Taimikko hakkuulla","M02.01.01 Nuoret lehtomaiset kankaat",99,2.7,0.3,0,0,1,0,1,0.4,"0-5",{"$nulls":4},0.2,0.7,0.1,1,0.7,{"$f":"(2*SUM(F296,L296,R296)+SUM(S296:V296))/(2*AREAS((F296,L296,R296))+COLUMNS(S296:V296))","v":0.43},1.161,"ei","ei","ei","ei","ei","ei","VU"]
[461,"Harvennettu talousmetsä"," M02.02.09 Varttuneet havupuuvaltaiset tuoreet kankaat",99,4.5999999999999996,0.5,1,1,0,0,1,0.6,"0-5",{"$nulls":4},0.2,0.7,0.1,0.9,0.7,{"$f":"(2*SUM(F297,L297,R297)+SUM(S297:V297))/(2*AREAS((F297,L297,R297))+COLUMNS(S297:V297))","v":0.5},2.2999999999999998,"ei","ei","ei","ei","ei","ei","NT","Kuviolla oja"]
[249,"taimikko T2","M02.01.01 Nuoret lehtomaiset kankaat",99,2.5,0.3,0,0,0,0,1,0.3,{"$nulls":5},0.3,0.3,0.1,1,0.2,{"$f":"(2*SUM(F298,L298,R298)+SUM(S298:V298))/(2*AREAS((F298,L298,R298))+COLUMNS(S298:V298))","v":0.33999999999999997},{"$f":"(PRODUCT(E298,W298))","v":0.84999999999999987},"ei","ei","e","ei","ei","ei","VU","Hyvin harva pieni taimikko hakkuualueella. Koivu, haapa, kuusi. Ojitettu. Entistä peltoa (ks esim ilmakuva v1949), jolla kulkenut myös luonnontilaisempi puro. Tulkittu"]
[250,null,"M02.01.01 Nuoret lehtomaiset kankaat",99,0.9,0.5,0,0,0,0,1,0.3,{"$nulls":5},0.3,0.5,0.2,1,0.2,{"$f":"(2*SUM(F299,L299,R299)+SUM(S299:V299))/(2*AREAS((F299,L299,R299))+COLUMNS(S299:V299))","v":0.41},0.36899999999999999,"ei","ei","e","ei","ei","ei","VU","Lehtipuuvaltainen metsä, metsävaratiedon mukaan keski-ikä 42 vuotta; varttunut kasvatusmetsä. Ojitettu. Entistä peltoa (ks esim ilmakuva v1949), jolla kulkenut myös luonnontilaisempi puro. Tulkittu"]
[373,null,"M02.02.01 Nuoret tuoreet kankaat",99,3.8,0.4,1,0,0,0,1,0.4,{"$nulls":5},0.3,0.4,0.2,1,0.5,{"$f":"(2*SUM(F300,L300,R300)+SUM(S300:V300))/(2*AREAS((F300,L300,R300))+COLUMNS(S300:V300))","v":0.43000000000000005},1.6340000000000001,"ei","ei","e","ei","ei","ei","VU","Hyvin tiheää nuorta kuusikkoa, metsäorton perusteella myös paljon lehtipuuta, kuvion pohjoisosassa isompaa puustoa (mahd myös isoja haapoja). Metsävaratiedon mukaan nuori kasvatusmetsikkö, jossa paljon kuusta, keski-ikä 29 vuotta. Osin tulkittu."]

{"sheet":"Kosteat lehdot","index":6,"n_rows":44,"n_cols":22,"rows_kept":44,"cut":false,"hidden":false,"merged":[]}
["8.3.2a. Kosteat lehdot"]
[]
[{"$nulls":4},1,2,3,4,5,6,7,8]
["Mittarit",null,null,null,"Kehitysluokka","Luontotyypille ominaisten puuston rakennepiirteiden esiintyminen: eri-ikäisyys, latvuskerroksellisuus, satunnainen tilajakauma, palojäljet, monilajisuus","Luontotyypille ominainen lahopuun määrä3 ja rakennepiirteet: jatkumo, järeä lahopuu, monilajisuus","Kasvillisuuden (putkilokasvit ja/tai jäkälät ja/tai sammalet) edustavuus: lajisto ja kasvillisuuden rakenne (runsaus, peittävyys, lajien/lajiryhmien runsaussuhteet","Järeiden puiden määrä","Haitalliset vieraskavilajit","Muu ihmisvaikutus","Vesitalous"]
["Mittarin suhteellinen painokerroin",null,null,null,2,2,2,2,1,1,1,1]
[]
[null,"Tee tarvitatessa usempi rivi samalle kuviolle, jos useita kosteiden lehtojen luontotyyppejä!"]
["Kuvionro","LuTu-luontotyyppi (koodi)","LuTu-tyypin % kuviosta","Kuvion pinta-ala, ha","Mittarin arvo (0,1 -1,0)","Mittarin arvo (0,1 -1,0)","Mittarin arvo (0,1 -1,0)","Mittarin arvo (0,1 -1,0)","Mittarin arvo (0,1 -1,0)","Mittarin arvo (0,1 -1,0)","Mittarin arvo (0,1 -1,0)",null,"Luonnonarvovastaavuus","Luonnonarvohehtaarit","METSO kohde","NATURA-tyyppi","Natura-edustavuusluokka","mete","vesilakikohde","LSL 64-65 § kohde","Uhex","Muuta"]
["1","M01.02.06 Kostea runsasravinteinen lehto",70,2.6,0.6,0.6,0.4,0.9,0.7,1,0.1,0.7,{"$f":"(2*SUM(E9:H9)+SUM(I9:L9))/(2*COLUMNS(E9:H9)+COLUMNS(I9:L9))","v":0.625},{"$f":"(PRODUCT(D9,M9))","v":1.625},"ei","Lehdot (9050)","hyvä, poikkeama ihmistoiminnan aiheuttama","ei","ei","ei","VU","Paljon vanhoja kasattuja kiviröykkiöitä: Vanha kaskimetsä tai rautakautinen hautalehto"]
["3","M01.02.06 Kostea runsasravinteinen lehto",70,0.8,0.3,0.1,0.1,0.1,0.1,1,0.6,0.4,0.27499999999999997,0.21999999999999997,"ei","Lehdot (9050)","ei merkittävä, poikkeama ihmistoiminnan aiheuttama","ei","ei","ei","VU","ilmakuvassa vv 1949 tiheästi sarkaojia, jotka nyt jo pääosin tukkeutuneet "]
["8","M01.02.05 Kostea keskiravinteinen lehto",70,3.6,0.5,0.7,0.3,0.7,0.4,0.9,1,0.9,0.6333333333333333,2.2799999999999998,"ei","Lehdot (9050)","merkittävä, poikkeama ihmistoiminnan aiheuttama","ei","ei","ei","NT"," sammalista mm. ruusukesammal löytyy selkeiltä lehto-osioilta, runsaasti saniaisia mm. soreahiirenporrasta. Jyrkkiä kivikkorapautumia notkelmassakin. Jyrkänteet liittyvät tähän kuvioon."]
["16","M01.02.05 Kostea keskiravinteinen lehto","yli 50 ",11,0.5,0.4,0.1,0.6,0.3,0.8,0.7,0.5,{"$f":"(2*SUM(E12:H12)+SUM(I12:L12))/(2*COLUMNS(E12:H12)+COLUMNS(I12:L12))","v":0.45833333333333331},{"$f":"(PRODUCT(D12,M12))","v":5.0416666666666661},"ei","Lehdot (9050)","ei merkittävä, poikkeama ihmistoiminnan aiheuttama","ei","ei","ei","NT","talousmetsänä, paljon koivua, kenttäkerroksen lajistossa monin paikoin hyvin luontotyypin kasvillisuutta, ei ojia."]
["18","M01.02.05 Kostea keskiravinteinen lehto",80,0.8,0.6,0.5,0.3,0.6,0.5,0.5,0.7,0.9,0.54999999999999993,0.43999999999999995,"ei","Lehdot (9050)","ei merkittävä, poikkeama ihmistoiminnan aiheuttama","ei","ei","ei","NT","terttuselja-puskia muutama "]
["21","M01.02.05 Kostea keskiravinteinen lehto",70,5.2,0.5,0.3,0.3,0.5,0.2,0.5,0.7,0.7,0.44166666666666665,2.2966666666666669,"ei","Lehdot (9050)","ei merkittävä, poikkeama ihmistoiminnan aiheuttama","ei","ei","ei","NT","terttuselja-puskia muutama "]
[24,"M01.02.05 Kostea keskiravinteinen lehto",80,0.5,0.3,0.3,0.1,0.4,0.2,0.9,0.7,0.3,0.35833333333333339,0.1791666666666667,"ei","Lehdot (9050)","ei merkittävä, poikkeama ihmistoiminnan aiheuttama","ei","ei","ei","NT"]
[67,"M01.02.05 Kostea keskiravinteinen lehto",30,1.1399999999999999,0.8,0.9,0.8,0.9,0.8,1,0.9,0.9,0.8666666666666667,0.98799999999999999,"kyllä","Lehdot (9050)","Hyvä, poikkeama ihmistoiminnan aiheuttama","ei","ei","ei","NT","Noronvarsilehdossa osana isompaa kuviota (tuoreet keskiravinteiset lehdot), paikoin mosaiikkimaisesti"]
[82,"M01.02.05 Kostea keskiravinteinen lehto",90,4.0999999999999996,0.6,0.5,0.7,0.9,0.1,1,0.9,0.7,0.67500000000000016,2.7675000000000005,"ei","Lehdot (9050)","merkittävä, poikkeama ihmistoiminnan aiheuttama","ei","ei","ei","NT","Hyvä kehitettävä kohde (esim ekologinen kompensaatio) paljon jätettyjä isoja tuulenkaatoja, myös maapuuta ja keloja (monilajista), soistumaa, muutamia ojia, puusto hiukan vanhempaa ja monipuolisempaa kuin muissa varttuneissa kuuusikoissa (myös raitaa löytyy), pieni ala tuoretta kesirav lehtoa"]
[99,"Turvelehto/kostea keskiravainteinen lehto M01.02.05",10,2,0.6,0.7,0.3,0.5,0.4,1,0.5,0.3,0.53333333333333321,1.0666666666666664,"ei","ei","ei","ei","ei","ei","NT","Keskellä kuviota kulkee syvä ja suora oja, jota koneella hiljan paranneltu, vain kuvion N-päässä vielä kosteaa lehtoa. Puusto vanhempaa ja monimuotoisempaa kuvion s-päässä. Ojan vedet tulevat etelästä mm. Tervalammesta ja virtaavat Purolan ohi kuvioille 110 ja 111 luonnontilaisen kaltaiseen uomajaksoon. Liito-orava -alueita ympärillä."]
[110,"M01.02.05 Kostea keskiravinteinen lehto",70,0.9,0.6,0.7,0.7,0.9,0.2,1,0.8,0.8,0.71666666666666667,0.64500000000000002,"kyllä","Lehdot (9050)","hyvä, poikkeama ihmistoiminnan aiheuttama","kyllä","ei","ei","NT","Kuviolla luonnontilaisen kaltainen noro (111, vesilakikohde). Pikkuvelholehteä. Hajuheinälle ja liito-oravalle potentiaalista elinympäristöä."]
[110,"M01.02.06 Kostea runsasravinteinen lehto",30,0.4,0.6,0.7,0.7,1,0.2,1,0.8,0.8,0.73333333333333339,0.29333333333333339,"kyllä","Lehdot (9050)","hyvä, poikkeama ihmistoiminnan aiheuttama","kyllä","ei","ei","VU","Kuviolla luonnontilaisen kaltainen noro (111, vesilakikohde). Kotkansiipilehtoa, pikkuvelholehteä."]
[112,"M01.02.05 Kostea keskiravinteinen lehto",70,0.5,1,0.9,1,0.9,0.9,1,0.9,0.9,0.94166666666666654,0.47083333333333327,"kyllä","Lehdot (9050)","erinomainen","kyllä","ei","ei","NT","Kuviolla luonnontilaisen kaltainen noro (111, vesilakikohde). Osa kuviosta runsasravinteisempaa kotkansiipilehtoa ja osa lehtomaista kangasta. Hajuheinälle,  liito-oravalle ja lepakoille potentiaalista elinympäristöä. Runsaasti aiempia liito-oravahavaintoja."]
[128,"Ei LuTu eikä RYTY, umpeenkasvava vanha pelto, muuttumassa kosteaksi lehdoksi.",0,1.5,0.3,0.5,0.1,0.7,0.1,1,0.6,0.8,0.47500000000000003,0.71250000000000002,"ei","ei","ei","ei","ei","ei",null,"Entiselle pellolle noussut kostean suurruohoniityn kasvillisuutta, pajukkoa ja nuorta puustoa. Kasvamassa umpeen. Maaperä saraturvetta. Puoliavoin ympäristö, joka täydentää Korpelan alueen monimuotoisia elinympäristökuvioita. Hyönteislajistolle hyvä kuvio, linnustolle mahdollisesti tärkeä ruokailualue (hyönteis- ja siemensyöjät)"]
[132,"M01.02.05 Kostea keskiravinteinen lehto",99,1.1000000000000001,0.6,0.8,0.7,1,0.4,0.9,0.9,0.7,0.7583333333333333,0.83416666666666672,"kyllä","Lehdot (9050)","erinomainen","ei","ei","ei","NT","Lehtipuuvaltainen, korpinurmikkaa (NT,RT), velholehteä."]
[170,"M01.02.05 Kostea keskiravinteinen lehto",95,1.3,0.6,0.9,0.8,0.9,0.5,1,0.5,0.6,0.75,0.97500000000000009,"kyllä","Lehdot (9050)","hyvä, poikkeama ihmistoiminnan aiheuttama","kyllä","ei","ei","NT","Korvapuron varressa. Suuria haapoja, tuomiryteiköä paikoin, lahopuuta hyvin. Hiirenporras, isoalvejuuri, metsäalvejuuri, korpi-imarre, metsäimarre, käenkaali, sudenmarja, suokeltto, suo-orvokki, rönsyleinikki, ranta- ja luhtamatara, metsäkorte, rentukka, vehka, terttualpi. Mahdollinen hajuheinän kasvupaikka."]
[244,"M01.02.06 Kosteat runsasravinteiset lehdot",95,0.7,0.6,0.7,0.2,0.7,0.3,1,0.4,0.5,0.54999999999999993,0.38499999999999995,"ei","Lehdot (9050)","hyvä, poikkeama ihmistoiminnan aiheuttama","ei","ei","ei","VU","Vanhaa peltoa, suuri kivivalli, jonka päällä vanhoja roskasäiliöitä. Ojia. Puusto mä valtaista kasvatusmetsää, monilajista, mutta lahopuuta ei juuri lankaan."]
[246,"M01.02.06 Kosteat runsasravinteiset lehdot",95,1.1000000000000001,0.6,0.7,0.2,0.7,0.3,1,0.5,0.5,0.55833333333333324,0.61416666666666664,"ei","Lehdot (9050)","hyvä, poikkeama ihmistoiminnan aiheuttama","ei","ei","ei","VU","Vanhaa peltoa, ojia"]
[254,"M01.02.05 Kosteat keskiravinteiset lehdot",65,0.3,0.8,0.8,0.7,0.9,0.7,1,1,1,0.84166666666666667,0.2525,"kyllä","Lehdot (9050)","erinomainen","kyllä","ei, mutta kuviolla noro","ei","NT","Kuvio melko jyrkässä rinnenotkelmassa, kuviolla noro. Puusto osin vanhaa, järeitä ku, keskiosa lehtipuuvaltainen, hale, tuomi. Saniaislehtoa. Notkelman rinteet ylempänä OMT-kangasta."]
[258,"M01.02.06 Kosteat runsasravinteiset lehdot",60,1.4,0.5,0.6,0.2,0.8,0.3,1,0.6,0.7,0.56666666666666665,0.79333333333333322,"kyllä","Lehdot (9050)","hyvä, poikkeama ihmistoiminnan aiheuttama","ei","ei","ei","VU","Entiselle pellolle syntynyt kostea, nuori lehto. Ojitettu, kapea sähkölinja talolle. Osa pustosta varttuneempaa, osa havupuuvaltaista ei tarkkaa tietoa luontotyypistä."]
[290,"M01.02.06 Kosteat runsasravinteiset lehdot",70,1.7,0.6,0.8,0.6,0.9,0.5,0.9,0.5,0.9,0.71666666666666667,1.2183333333333333,"kyllä","Lehdot (9050)","hyvä, poikkeama ihmistoiminnan aiheuttama","kyllä","ei, mutta kuviolla noro","ei","VU","Puusto erirakenteista, monilajista, kasvillisuus edustavaa, velholehteä ym. Uria ja hieman roskaantumista, norouomaan kajottu, viereinen hakkuu heikentänyt myös luonnontilaisuutta."]
[305,"M01.02.05 Kosteat keskiravinteiset lehdot",45,0.7,0.5,0.7,0.4,0.9,0.2,1,0.5,0.5,0.6,0.42,"kyllä","Lehdot (9050)","hyvä, poikkeama ihmistoiminnan aiheuttama","kyllä","ei, mutta kuviolla noro","ei","NT","Noronvarsilehto rinteessä. Rinteen alla metsäkortevaltaista ojitettua turvekangasta ja korpimuuttumaa."]
[324,"M01.02.05 Kosteat keskiravinteiset lehdot",40,0.6,0.7,0.9,0.7,1,0.7,1,0.9,0.9,0.84166666666666667,0.505,"kyllä","Lehdot (9050)","erinomainen","kyllä","ei, mutta kuviolla noro","ei","NT","Lehtipuuvaltainen, erirakenteinen! Runsaasti haapaa. Muutamia järeitä lehtipuita: ha, ko, tele. Kuvion keskellä kulkee noro osin kivikossa näkymättömissä Kaatopaikantien nurkilta rinnettä alas koilliseen. Aiempia ja maastokartoituksen yhteydessä tehty päivityshavainto hajuheinästä. Kuvion keskiosa kosteaa, runsas- ja keskiravinteista lehtoa ja loput kuviosta tuoretta, keskiravinteista lehtoa."]
[332,"M01.02.05 Kosteat keskiravinteiset lehdot",55,1.2,0.4,0.6,0.2,0.3,0.3,0.9,0.2,0.4,0.39999999999999997,0.47999999999999993,"ei","ei","ei","ei","ei","ei","NT","Mutaa ja maa-aineksia, sekä asfalttilohkareita vyörynyt laajalti kuviolle, voimakas reuna- ja ihmisvaikutus. Salaojaputkesta valuu vettä louhosalueelta kuviolle."]
[342,"M01.02.06 Kosteat runsasravinteiset lehdot",95,1.9,0.4,0.7,0.3,0.7,0.2,0.4,0.3,0.7,0.48333333333333339,0.91833333333333345,"ei",9050,"merkittävä, poikkeama ihmistoiminnan aiheuttama","kyllä","ei","ei","VU","Tulkittu. Rajautuu kahdelta sivulta noroon ja puroon. Viereinen kaatopaikka ja metsänkäsittely heikentäneet merkittävästi luonnontilaa."]
[345,"M01.02.05 Kosteat keskiravinteisest lehdot",90,0.8,0.5,0.4,0.1,0.5,0.3,0.8,0.7,0.4,{"$f":"(2*SUM(E34:H34)+SUM(I34:L34))/(2*COLUMNS(E34:H34)+COLUMNS(I34:L34))","v":0.43333333333333335},{"$f":"(PRODUCT(D34,M34))","v":0.34666666666666668},"ei","lehdot (9050)","ei merkittävä, poikkeama ihmistoiminnan aiheuttama","ei","ei","ei","NT","Kuvionro oli hukkunut ja sama nro 2x. Oli tehtävä uusi numero joka ei sotke systeemiä."]
[367,"M01.02.05 Kosteat keskiravinteiset lehdot",55,0.5,0.6,0.8,0.6,0.8,0.3,0.9,0.7,0.7,0.68333333333333324,0.34166666666666662,"kyllä",9050,"hyvä, poikkeama ihmistoiminnan aiheuttama","ei","ei","ei","NT","Alue rajautuu entisen kaatopaikan täyttömäkeen. Vaihettuu painanteeseen tultaessa nopesti lehtomaisesta kankaasta lehdoksi. Hiirenporras runsain kenttäkerroksessa, hiko, ku, hale, ha puustossa."]
[]
[367,"M01.02.06 Kosteat runsasravinteiset lehdot",45,0.5,0.6,0.8,0.6,0.7,0.3,0.9,0.6,0.7,0.65833333333333333,0.32916666666666666,"kyllä",9050,"hyvä, poikkeama ihmistoiminnan aiheuttama","ei","ei","ei","VU","Keskellä sameavetinen leveä oja jamutaisia vesiallikoita, joissa limaskaa. Hiirenporras, käenkaali, mustaherukka ja metsäkorte runsaita, koiranputki, vadelma, nokkonen, rönsyleinikki."]
[372,"M01.02.05 Kosteat keskiravinteiset lehdot",95,1.2,0.5,0.8,0.7,1,0.2,1,0.8,1,0.75,0.89999999999999991,"kyllä",9050,"erinomainen","ei","ei","ei","NT","Lehtipuuvaltainen saniaislehto, lahopuuta melko runsaasti ikään nähden. Ojitettu, mutta vesitalous vaikuttaa luonnontilaisen kaltaiselta. Vieressä ent. kaatopaikan täyttömäki, jonka suunnalta vesiä ojia pitkin alueelle ja sen läpi. Kasvillisuus indikoi osin runsasravinteisuutta. Pikkuvelholehti, isoalvejuuri, soreahiirenporras, käenkaali, ojakellukka, mustaherukka, lehtotähtimö, lehtomatara, nokkonen, vadelma, metsäkorte, mesiangervo, karhunputki, leskenlehti, järvikorte, lehväsammalet."]
[375,"M01.02.05 Kosteat keskiravinteiset lehdot",85,1.3,1,0.9,0.9,1,0.7,1,0.9,0.9,0.92499999999999993,1.2024999999999999,"kyllä",9050,"erinomainen","kyllä","ei","ei","NT","Kuviolla painanne, jossa osin piilossa virtaava noro (376) ja saniaislehtoa. Jo aiemmin tunnistettu METE-kohteeksi. Yläpuolella, kuvion eteläpuolella olevalla louhoksella saattaa olla vaikutusta noron vesitalouteen."]
[412,"M01.02.05 Kosteat keskiravinteiset lehdot",85,0.6,0.7,0.8,0.8,0.9,0.6,1,0.7,0.8,0.79166666666666663,0.47499999999999998,"kyllä",9050,"hyvä, poikkeama ihmistoiminnan aiheuttama","ei","ei","ei","NT","Entiselle pellolle jo vuosikymmeniä sitten syntynyt ryteikköinen lehto. S-reunalla vanha pelto-oja (?) jonka pohjalla kirkasta vettä. Isoalvejuuri runsas, suokelttoa, leskenlehteä, mesiangervoa. Saattaa olla pohjavesivaikutteinen. Itälaidalla vanha kiviaita."]
[413,"M01.02.06 Kosteat runsasravinteiset lehdot",90,1.1000000000000001,0.7,0.6,0.3,0.6,0.5,1,0.7,0.8,0.61666666666666659,0.67833333333333334,"ei","ei","ei","ei","ei","ei","VU","Entiselle pellolle syntynyt harvapuustoinen, kulttuurivaikutteinen lehto. Ko valtainen. Vadelma, metsäkorte ja mesiangervo runsaita, paikoin esim nurmitädykettä. Harvennettu,koneuria, mutakuoppia. Kostea juotti itään."]
[445,"M01.02.06 Kosteat runsasravinteiset lehdot",100,0.5,0.4,0.7,0.3,0.7,0.2,1,0.7,0.8,0.57500000000000007,0.28750000000000003,"kyllä","ei","ei","ei","ei","ei","VU","Tulkittu. Entiselle pellolle kehittynyt ilmeisesti kostean lehdon kasvillisuutta. Ollut vielä 1990-luvulla peltoa, tai osin niittyä, ojitukset selvästi vielä näkyvissä. Rajautuu VL- ja METE-kohteeseen luonnontilaisen kaltainen noro (293). Havaittu jo aiemmin täyttävän METSO-ohjelman III-luokan perusteet. Tuolloin tulkittu olevan mahdollisesti puustoinen perinnebiotooppi. Tästä ei varmuutta, koska ei tarkempaa tietoa lajihavainnoista."]
[446,"M01.02.06 Kosteat runsasravinteiset lehdot",100,0.7,0.5,0.6,0.3,0.7,0.3,1,0.6,0.7,0.56666666666666665,0.39666666666666661,"ei","ei","ei","ei","ei","ei","VU","Tulkittu. Entistä peltoa.Varttunut puusto pitkin entisiäpelto-ojia riveissä. Aukkoinen."]
[453,"M01.02.05 Kosteat keskiravinteiset lehdot",90,0.6,0.8,0.8,0.7,0.7,0.6,1,0.6,0.7,0.7416666666666667,0.44500000000000001,"ei","ei","ei","ei","ei","ei","VU","Tulkittu. Mahdollinen METSO-kohde! Kuviolla VL-kohde noro (454)."]

{"sheet":"Muut lehdot ja erityismetsät","index":7,"n_rows":26,"n_cols":22,"rows_kept":26,"cut":false,"hidden":false,"merged":[]}
["8.3.2b. Lehdot ja jalopuulehdot, Harjumetsien valorinteet, Sisämaan dyynimetsät, Serpentiinivaikutteisen maapohjan metsät"]
[]
[]
["Mittarit",{"$nulls":4},"Kehitysluokka","Luontotyypille ominaisten puuston rakennepiirteiden esiintyminen: eri-ikäisyys, latvuskerroksellisuus, satunnainen tilajakauma, palojäljet, monilajisuus","Luontotyypille ominainen lahopuun määrä3 ja rakennepiirteet: jatkumo, järeä lahopuu, monilajisuus","Kasvillisuuden (putkilokasvit ja/tai jäkälät ja/tai sammalet) edustavuus: lajisto ja kasvillisuuden rakenne (runsaus, peittävyys, lajien/lajiryhmien runsaussuhteet","Järeiden puiden määrä","Haitalliset vieraskavilajit","Muu ihmisvaikutus"]
["Mittarin suhteellinen painokerroin",{"$nulls":4},2,2,2,2,1,1,1]
[]
[null,null,"Tee tarvitatessa usempi rivi samalle kuviolle, jos useita tämän taulukon otsikon mukaisia luontotyyppejä!"]
["Kuvionro","apusarake","LuTu-luontotyyppi (koodi)","LuTu-tyypin % kuviosta","Kuvion pinta-ala, ha","Mittarin arvo (0,1 -1,0)","Mittarin arvo (0,1 -1,0)","Mittarin arvo (0,1 -1,0)","Mittarin arvo (0,1 -1,0)","Mittarin arvo (0,1 -1,0)","Mittarin arvo (0,1 -1,0)","Mittarin arvo (0,1 -1,0)","Luonnonarvovastaavuus","Luonnonarvohehtaarit","METSO kohde","NATURA-tyyppi","Natura-edustavuusluokka","mete","vesilakikohde","LSL 64-65 § kohde","uhex","Muuta"]
["17",null,"M01.02.03 Tuoreet keskiravinteiset lehdot","70",1.4,0.6,0.5,0.3,0.7,0.3,0.6,0.8,{"$f":"(2*SUM(F9:I9)+SUM(J9:L9))/(2*COLUMNS(F9:I9)+COLUMNS(J9:L9))","v":0.53636363636363638},{"$f":"(PRODUCT(E9,M9))","v":0.75090909090909086},"ei ","lehdot (9050)","Hyvä, poikkeama ihmistoiminnan aiheuttama","ei","ei","ei","VU","Entinen talon paikka, ks. Ilmakuva vv 1949. Ollut niittypeltoa jne. (mv-tieto: puuston keski-ikä 51 v), havupuuvaltainen, mutta myös vanhoja koivuja. Alikasvoksena mm. pihlajaa, myös metsäruusu. Saattaisi olla hyvä kehittyvä kohde, esim METSO-kohteeksi."]
["67","Metsokohde, puronvarsimetsää, monilajista, myös vanhaa, lahopuuta","M01.02.03 Tuoreet keskiravinteiset lehdot","70",2.66,0.8,0.9,0.8,0.9,0.8,1,0.9,0.86363636363636365,2.2972727272727274,"kyllä","lehdot (9050)","Hyvä, poikkeama ihmistoiminnan aiheuttama","OSITTAIN. Lähteiden, purojen ja pysyvän vedenjuoksu-uoman muodostavien norojen sekä pienten lampien välittömät lähiympäristöt",null,"ei","VU","Noronvarsilehto, paikoin runsaasti lahopuuta. Monilajinen puusto.Ehdotettu METSO- kohteeksi, myös metsälaikohteena Kuopion metsävaratiedoissa. Koko kuvio metekohteena liian iso, mutta koko noronvarsi on 10-20 metrin leveydeltä metsälakikohde. Uomaa on oiottu, mutta paikoin hyvin luonnotilaisen oloinen, esim kiviä, lahopuuta jne, käyntihetkellä uoma oli kuitenkin pääosin kuiva. Osa kuviosta kosteaa lehtoa (toisella välilehdellä). Osin hieman sositunuttakin, sekä lehtomaista kangasta."]
[91,"nuori, harvennettu kuusivaltainen lehtorinne","M01.02.03 Tuoreet keskiravinteiset lehdot",90,0.9,0.5,0.6,0.2,0.7,0.1,1,0.5,0.50909090909090904,0.45818181818181813,"ei","ei",null,"ei","ei","ei","VU"," vaihettuu länteen lehtom kankaaksi, pohjoisosa runsasravinteisempi: lehtokuusama, puna-ailakki, lehtotesma"]
[93,"Nuori kuusivaltainen turvelehto, vanhalle pellolle syntynyt, ihmisvaikutteinen","M01.02.03 Tuoreet keskiravinteiset lehdot",95,0.4,0.5,0.6,0.5,0.3,0.1,1,0.2,0.46363636363636368,0.18545454545454548,"ei","ei",null,"ei","ei","ei","VU","puna-ailakki, mesiangervo, vadelma, metsäkurjenpolvi, hirenporras, nokkonen paikoin. Paljasta, karikkeista maata "]
[102,"nuori, kuusivaltainen vanhalle pellolle syntynyt lehto, varttuneita koivuja","M01.02.03 Tuoreet keskiravinteiset lehdot",85,0.7,0.5,0.6,0.2,0.6,0.1,1,0.3,0.47272727272727272,0.33090909090909087,"ei","ei",null,"ei","ei","ei","VU","Varttuneita lehtipuita erityisesti vanhojen ojien reunamilla, kenttäkerroksessa mm. oravanmarja, puna-ailakki, mesiangervo, metsäkurjenpolvi, metsäalvejuuri, suo-orvokki metsätähti, metsäkorte."]
[104,"Varttunut, sekapuustoinen kuiva, keskiravinteinen lehto VRT","M01.02.01 Kuivat keskiravinteiset lehdot",50,0.9,0.8,0.8,0.7,1,0.7,1,0.8,0.82727272727272727,0.74454545454545451,"kyllä","lehdot (9050)","hyvä","ei","ei","ei","NT","Ehdotettu aiemmin METSO-kohteeksi, vahaa ja lahoa lehtipuuta, liito-oravan ruokailualue, liito-oravahavaintoja, erirakenteinen. Myös lepakoille sopiva."]
[106,"Varttunut, harvennettu koivuvaltainen lehto","M01.02.01 Kuivat keskiravinteiset lehdot",60,0.3,0.7,0.8,0.5,0.9,0.5,1,0.7,0.72727272727272729,0.21818181818181817,"ei","lehdot (9050)","ei merkittävä, poikkeama ihmistoiminnan aiheuttama","ei","ei","ei","NT","Osa koivuista ja haavoista järeitä, mutta harvennettu rajusti ja lahopuuta vähän. Alikasvoksena runsaasti haapaa. Liiturihavainto 2015, soveltuu yhä lajille. Loput kuviosta lehtomaista kangasta."]
[108,"Ihmisvaikutteinen lehto vanhan Ratapohjan ympäristössä","M01.02.03 Tuoreet keskiravinteiset lehdot",null,1.3,0.6,0.8,0.7,0.9,0.5,0.9,0.6,0.72727272727272718,0.94545454545454533,"ei","ei","ei","ei","ei","ei","VU","Ratapohjan ulkoilureitti kallioleikauksineen osin kuviolla. Vanha talonpaikka kuvion pohjoispäässä. Talonpaikan metsä erityisen monimuotoista ja rehevää lehtoa, puusto varttuneempaa, kuin muualla kuviolla. Runsaita mm. kielo, metsäkurjenpolvi, käenkali, oravanmarja, lillukka, metsätähti, metsäalvejuuri, metsäimarre, vadelma, mesiangervo ja puna-ailakki. Tuoreiden ja kuivien lehtojen kasvillisuus vaihettuu ulkoilureitin reunoilla toreiden ja kosteiden niittyjen kasvillisuudeksi. Paikoin metsäruusua, näsiää, mustaherukkaa, muutama koiranheisi ja talopaikan luona karviainen. Ulkoilureitin pintareilla ja kallioleikkauksessa paikoin hietapitkäpalkoa ja peurankelloa.Sopii liito-oravan ja lepakoiden elinympäristöksi."]
[113,"Ihmisvaikutteinen lehto vanhan Ratapohjan ympäristössä","M01.02.03 Tuoreet keskiravinteiset lehdot",60,0.3,0.5,0.6,0.3,0.5,0.4,0.9,0.3,0.49090909090909096,0.14727272727272728,"ei","ei","ei","ei","ei","ei","VU","Vanha Ratapohja nousee kuviolla korkean, sammaloituneen kivipengerryksen päälle, metsäisen rinteet ulkoilureitin molemmin puolin. Kuviolla vesilakikohde: luonnontilaisen kaltainen noro alittaa Ratapohjan länsi-itäsuunnassa.Noro alittaa tässä Ratapohjan sukeltamalla vanhan kiveyksen alle Puusto kuusivaltainen, myös rauduskoivua. Aiempia liito-oravahavaintoja. Kuvio rajautuu osin pohjoisessa luonnonsuojelualueeseen ( uhanalaisen lajin suojelualue Ratapohjan pengermän kedolla kuviolla 114). HUOM! Kuviolta ei kartoitettu Ratapohjan E-puolelle jäävää osaa. "]
[125,"Varttunut sekapuustoinen reunuslehto","M01.02.03 Tuoreet keskiravinteiset lehdot",99,0.8,0.6,0.9,0.6,0.8,0.4,1,0.8,0.72727272727272729,0.5818181818181819,"ei","ei","ei","ei","ei","ei","VU","Osana Korpelan metsien monimuotoista kokonaisuutta merkittävä, vaikka reunavaikutuksen vuoksi ei voida katsoa olevan luonnontilainen. Puuston koostumus vaihtelee, paikoin lehtipuvaltainen, paikoin pieniä tiheikköjä ja ryteikköisyyttä. Käenkaali, oravanmarja, lillukka, kielo, ahomansikka, runsaita, paikoin tuomi, vadelma, näsiä, nokkonen, metsäkorte, metsäalvejuuri, kultapiisku, metsäorvokki, korpiorvokki, korpi-imarre, hiirenporras. Liittyy METSO-kohteeseen (122,123,124)"]
[134,"Lehtipuuvaltainen ruderaattilehto","M01 Lehdot",90,3.9,0.4,0.5,0.4,0.3,0.1,0.4,0.3,0.36363636363636365,1.4181818181818182,"ei","ei","ei","ei","ei","ei","VU","Ei enää sovi ruderaatin määritelmään, vanhan kaatopaikka-alueen ruderaatille kehittynyt rehevä, lehtipuuvaltainen lehto. Ollut jätevesialtaita 1990-luvulla, jotka täytetty. Ei myöskään LuTu. Pajut, hale, kyläkellukka, nokkonen, vadelma, rönsyleinikki ja ranta-alpi runsaita."]
[188,"Lehtipuuvaltainen taimikko vanhalla peltomaalla","M01 Lehdot",90,0.9,0.5,0.7,0.6,0.5,0.4,0.8,0.6,0.5818181818181819,0.52363636363636368,"kyllä","lehdot (9050)","ei merkittävä, poikkeama ihmistoiminnan aiheuttama","ei","ei","ei","VU","Tiheä, lehtipuuvaltainen lehto Liukon entisellä peltomaalla. Osin käsitelty, puusto paikoin nuorempaa, paikoin varttunutta. Puustollisesti arvokas, kenttäkerros heikommin kehittynyt. Runsaasti liito-oravahavaintoja vuodelta 2015."]
[245,"Lehtipuuvaltainen lehto vanhalla peltomaalla","M01 Lehdot",99,0.4,0.3,0.5,0.2,0.7,0.1,1,0.5,0.45454545454545453,0.18181818181818182,"ei","lehdot (9050)","ei merkittävä, poikkeama ihmistoiminnan aiheuttama","ei","ei","ei","VU","Ollut jonkinlainen kääntöpaikka ja varastointialue"]
[261,"Erirakenteinen metsä","M01.02.03 Tuoreet keskiravinteiset lehdot",85,1.2,0.7,0.8,0.7,1,0.2,1,0.8,0.76363636363636367,0.91636363636363638,"ei","lehdot (9050)","merkittävä","ei","ei","ei","VU","Osa kuviosta tuoretta kosteampaa, metsäkorte, hiireporras, osa kuivempaa OMT-kangasta."]
[328,"Varttunut ku valtainen metsä","M01.02.03 Tuoreet keskiravinteiset lehdot",90,0.5,0.7,0.8,0.7,1,0.7,0.9,0.9,0.80909090909090908,0.40454545454545454,"kyllä","lehdot (9050)","hyvä","ei","ei","ei","VU","Vaihettuu kosteampaan rinnettä alas. Osa puista vanhempia."]
[331,"Lehtipuuvaltainen vaihteleva lehto","M01.02.03 Tuoreet keskiravinteiset lehdot",80,1.3,0.5,0.7,0.3,0.7,0.3,0.8,0.6,0.55454545454545456,0.72090909090909094,"kyllä","lehdot (9050)","ei merkittävä, poikkeama ihmistoiminnan aiheuttama","ei","ei","ei","VU","Valtapuu vaihdellen ha, ko, ku. Haapa runsas, jokunen järeä. Reunavaikutusta."]
[421,"Kallionaluslehto","M01.02.03 Tuoreet keskiravinteiset lehdot",35,0.3,1,0.9,0.8,1,1,1,0.9,0.9363636363636364,0.28090909090909089,"kyllä","lehdot (9050)","erinomainen","kyllä","ei","ei","VU","Osa monimuotoista vaihtelevaa pientä kuviota. Loput kuviosta MT-kangasta ja kalliometsää. Koko kuvio ympäristöstään selvästi erottuva. Lehdossa lehtokuusama runsas, suuria haapoja, joista yksi koloinen ja laho."]
[{"$nulls":13}," "]

{"sheet":"Kalliojyrkänteet","index":8,"n_rows":23,"n_cols":18,"rows_kept":23,"cut":false,"hidden":false,"merged":[]}
["9.3.2. Kalliojyrkänteet"]
[]
[]
["Mittarit",null,null,"Kasvillisuuden (putkilokasvit ja/tai jäkälät ja/tai sammalet) edustavuus: lajisto ja kasvillisuuden rakenne (runsaus, peittävyys, lajien/lajiryhmien runsaussuhteet)","Jyrkänteen morfologinen monimuotoisuus","Varjostus ja mikroilmaston vakaus","Jyrkänne- ja aluspuusto","Vaatelias lajisto"]
["Mittarin suhteellinen painokerroin:"]
["karut","varjoisat","puustoiset",2,2,1,1,"ei sovelleta",null,null,"Luonnonarvohehtaari lasketaan ekologinen tila x pinta-ala"]
["karut","varjoisat","avoimet",2,2,1,"ei sovelleta","ei sovelleta"]
["karut","ei-varjoisat","puustoiset",2,2,"ei sovelleta",1,"ei sovelleta"]
["karut","ei-varjoisat","avoimet",2,2,"ei sovelleta","ei sovelleta","ei sovelleta"]
["keskiravinteiset","varjoisat","puustoiset",2,1,1,1,"ei sovelleta"]
["keskiravinteiset","varjoisat","avoimet",2,1,1,"ei sovelleta","ei sovelleta"]
["keskiravinteiset","ei-varjoisat","puustoiset",2,1,"ei sovelleta",1,"ei sovelleta"]
["keskiravinteiset","ei-varjoisat","avoimet",2,1,"ei sovelleta","ei sovelleta","ei sovelleta"]
["kalkki- tai serpentiini","varjoisat","puustoiset",2,1,1,1,2]
["kalkki- tai serpentiini","varjoisat","avoimet",2,1,1,"ei sovelleta",2]
["kalkki- tai serpentiini","ei-varjoisat","puustoiset",2,1,"ei sovelleta",1,2]
["kalkki- tai serpentiini","ei-varjoisat","avoimet",2,1,"ei sovelleta","ei sovelleta",2]
[]
["Laske luontoarvohehtaarit erikseen jokaiselle tyypille. "]
["Kuvionro","LuTu-luontotyyppi (koodi)","Kuvion pinta-ala, ha","Mittarin arvo (0,1 -1,0)","Mittarin arvo (0,1 -1,0)","Mittarin arvo (0,1 -1,0)","Mittarin arvo (0,1 -1,0)","Mittarin arvo (0,1 -1,0)","ekologinen tila (luonnonarvovastaavuus)","Luonnonarvohehtaarit","METSO kohde?","NATURA-tyyppi?","Natura-edustavuusluokka","mete?","vesilakikohde?","LSL 64-65 § kohde?","uhex","Muuta"]
["13","K01.07 Karut varjoisat kalliojyrkänteet",0.3,0.9,0.5,0.4,0.7,"ei sovelleta",{"$f":"(2*SUM(D21:E21)+SUM(F21:G21))/(2*COLUMNS(D21:E21)+COLUMNS(F21:G21))","v":0.65},{"$f":"(PRODUCT(C21,I21))","v":0.19500000000000001},"ei","silikaattikalliot (8220)","Hyvä, poikkeama ihmistoiminnan aiheuttama","ei","ei","ei","NT","esim. kallio-omensammalta"]
["14","K01.07 Karut varjoisat kalliojyrkänteet",1.3,0.9,0.5,0.4,0.7,"ei sovelleta",{"$f":"(2*SUM(D22:E22)+SUM(F22:G22))/(2*COLUMNS(D22:E22)+COLUMNS(F22:G22))","v":0.65},{"$f":"(PRODUCT(C22,I22))","v":0.84500000000000008},"ei","silikaattikalliot (8220)","Hyvä, poikkeama ihmistoiminnan aiheuttama","ei","ei","ei","NT"]
["15","K01.07 Karut varjoisat kalliojyrkänteet",0.8,0.9,0.5,0.4,0.7,"ei sovelleta",0.65,{"$f":"(PRODUCT(C23,I23))","v":0.52},"ei","silikaattikalliot (8220)","Hyvä, poikkeama ihmistoiminnan aiheuttama","ei","ei","ei","NT"]

{"sheet":"Karut avokalliot","index":9,"n_rows":9,"n_cols":18,"rows_kept":9,"cut":false,"hidden":false,"merged":[]}
["9.3.1b. Karut avokalliot"]
[]
[]
["Mittarit",null,null,null,"Kasvillisuuden (putkilokasvit ja/tai jäkälät ja/tai sammalet) edustavuus: lajisto ja kasvillisuuden rakenne (runsaus, peittävyys, lajien/lajiryhmien runsaussuhteet)","Kallion morfologinen monimuotoisuus","Muu ihmisvaikutus","Puusto"]
["Mittarin suhteellinen painokerroin",null,null,null,2,2,1,1]
[]
[null,"Tee tarvitatessa usempi rivi samalle kuviolle, jos useampia karujen avokallioiden luontotyyppejä!"]
["Kuvionro","LuTu-luontotyyppi (koodi)","LuTu-tyypin % kuviosta","Kuvion pinta-ala, ha","Mittarin arvo (0,1 -1,0)","Mittarin arvo (0,1 -1,0)","Mittarin arvo (0,1 -1,0)","Mittarin arvo (0,1 -1,0)","Ekologinen tila/ Luonnonarvovastaavuus","Luonnonarvohehtaarit","METSO kohde","NATURA-tyyppi","Natura-edustavuusluokka","mete-kohde (ML 10 §)","vesilakikohde (VL 11 §)","LSL 64-65 § kohde","uhex","Muuta"]
["20","K01.05 Karut poronjäkälä-sammalkalliot","99",0.1,0.3,0.2,0.3,0,{"$f":"(2*SUM(E9:F9)+SUM(G9))/(2*COLUMNS(E9:F9)+COLUMNS(G9))","v":0.26},{"$f":"(PRODUCT(D9,I9))","v":2.6000000000000002E-2},"ei","ei","ei","Karukkokankaita puuntuotannollisesti vähätuottoisemmat hietikot, kalliot, kivikot ja louhikot, joiden ominaispiirre on harvahko puusto.","ei","ei","LC","Kohteella kananverkkorulla sekä kangas\"koreja\""]

{"sheet":"karuimmat- ja kalliometsät","index":10,"n_rows":15,"n_cols":21,"rows_kept":15,"cut":false,"hidden":false,"merged":[]}
["8.3.3. Karukkokankaat, Kalliometsät, Jäkäläturvekankaat"]
[]
[]
["Mittarit",null,null,null,"Kehitysluokka","Luontotyypille ominaisten puuston rakennepiirteiden esiintyminen: eri-ikäisyys, latvuskerroksellisuus, satunnainen tilajakauma, palojäljet, monilajisuus","Luontotyypille ominainen lahopuun määrä ja rakennepiirteet: jatkumo, järeä lahopuu, monilajisuus","Kasvillisuuden (putkilokasvit ja/tai jäkälät ja/tai sammalet) edustavuus: lajisto ja kasvillisuuden rakenne (runsaus, peittävyys, lajien/lajiryhmien runsaussuhteet","Järeiden puiden määrä","Haitalliset vieraskavilajit","Muu ihmisvaikutus"]
["Mittarin suhteellinen painokerroin",null,null,null,2,2,2,1,1,1,1]
[]
[null,"Tee tarvitatessa usempi rivi samalle kuviolle, jos sekä karukkokankaiden, kalliometsien ja/tai jäkälakankaan luontotyyppejä!"]
["Kuvionro","LuTu-luontotyyppi (koodi)","LuTu-tyypin % kuviosta","Kuvion pinta-ala, ha","Mittarin arvo (0,1 -1,0)","Mittarin arvo (0,1 -1,0)","Mittarin arvo (0,1 -1,0)","Mittarin arvo (0,1 -1,0)","Mittarin arvo (0,1 -1,0)","Mittarin arvo (0,1 -1,0)","Mittarin arvo (0,1 -1,0)","Ekologinen tila/Luonnonarvovastaavuus","Luonnonarvohehtaarit","METSO kohde?","NATURA-tyyppi?","Natura-edustavuusluokka","mete?","vesilakikohde?","LSL 64-65 § kohde?","uhex","Muuta"]
["12","M03.04 Kalliometsät","80",0.7,0.9,0.9,0.6,1,1,1,1,{"$f":"(2*SUM(E9:G9)+SUM(H9:K9))/(2*COLUMNS(E9:G9)+COLUMNS(H9:K9))","v":0.88000000000000012},{"$f":"(PRODUCT(D9,L9))","v":0.61599999999999999},"kyllä, Metso-taulukossa","Luonnonmetsät (9010)","hyvä, poikkeama ihmistoiminnan ja luontaisten syiden aiheuttama","ei","ei","ei","NT","Puolta kuviosta ei ole hakattu ilmeisesti lainkaan sitten 1900-luvun alun, toiselta puolen ilm pientä poimintahakkuuta, joka sekin vanhaa perua. keski-ikä 91 vuotta mv-tiedoissa, mutta osa puustosta pitempään ollut hakkaamatta, jo 1900 -luvun alusta (ks esim. vanhat ilmakuvat), lahopuuta kuitenkin niukasti. Kilpikaarnamäntyjä, myös nuorta haapaa."]
["355","M03.04 Kalliometsät","90",0.9,0.9,0.9,0.5,1,1,1,1,0.86,0.77400000000000002,"kyllä, Metso-taulukossa","Luonnonmetsät (9010)","hyvä, poikkeama ihmistoiminnan ja luontaisten syiden aiheuttama","ei","ei","ei","NT","Puusto MV-tietojen mukaan 120-vuotiasta. Komeita kilpikaarnaisia mäntyjä, suuria haapoja reunamilla. Kataja runsas kallion päällä, samoin nuori kuusi taaempana. Kallioinen mäki laskeutuu jyrkkänä länteen. Lahopuuta niukalti. Myös maisema-arvoja."]
["383","M03.04 Kalliometsät","100",0.7,0.9,0.7,0.6,1,1,1,0.6,0.8,0.55999999999999994,"kyllä, Metso-taulukossa","Luonnonmetsät (9010)","merkittävä","ei","ei","ei","NT","Kilpikaarnamäntyjä, pari keloa ja muutama keloutunut maapuu. Muuten lahopuuta niukalti. Vanhaa puustoa ja maisema-arvoja. Kalliometsän laella uudehko, puurakenteinen laavu ja viereisellä kuviolla (384) ulkokäymälä. Maasto kulunut laavun ympärillä, ei roskia. Muutoin pohjakerros suurelta osin rahkainen, variksenmarjaa kenttäkerroksessa puolukan ja mustikan seurassa, kanervaa laella. Tunnistettu METSO-ohjelmaan sopivaksi kohteeksi jo aiemmissa luontoselvityksissä  ja mainittu metson soidinpaikaksi (Kröger 2014). "]
["392","M03.04 Kalliometsät","98",0.2,0.4,0.5,0.3,1,0.8,1,1,0.61999999999999988,0.12399999999999999,"ei","ei","ei","kyllä","ei","ei","NT","Pieni kalliopaljastuma, jonka korkeimmalla kohdalla ketun ulosteita. W-reunalla pikkuinen jyrkänne. Lakiosaa peittävät poronjäkälät ja puolukka. Muutama kilpikaarnamänty ja kelo kuvion S-osassa, muutoin puusto nuorta."]
[395,"M03.04 Kalliometsät","90",0.2,0.4,0.6,0.4,1,0.3,1,1,0.61,0.122,"ei","ei","ei","ei","ei","ei","NT","Pieni kalliopaljastuma."]
[402,"M03.04 Kalliometsät","99",0.1,0.6,0.6,0.6,1,0.8,1,1,0.74,7.3999999999999996E-2,"ei","ei","ei","kyllä","ei","ei","NT","Muutama kilpikaarnamänty, kelo ja lahopökkelö, pari suurta kuusta reunalla. Muu puusto nuorempaa. Jäkäläistä kalliopaljastumaa."]
[421,"M03.04 Kalliometsät","25",0.3,1,0.8,0.8,1,1,1,1,0.91999999999999993,0.27599999999999997,"kyllä, Metso-taulukossa","Luonnonmetsät (9010)","hyvä","kyllä","ei","ei","NT","Kilpikaarnamäntyjä ja järeitä kuusia. Osa pientä, monipuolista kuviota. Loput kuviosta vanhaa MT-kangasta ja tuoretta lehtoa."]

{"sheet":"Puustoiset perinnebiotoopit","index":11,"n_rows":9,"n_cols":30,"rows_kept":9,"cut":false,"hidden":false,"merged":[]}
["10.3.3. Puustoiset perinnebiotoopit"]
[]
[]
["Mittarit",null,null,null,"Kasvillisuuden (putkilokasvit ja/tai jäkälät ja/tai sammalet) edustavuus: lajisto ja kasvillisuuden rakenne (runsaus, peittävyys, lajien/lajiryhmien runsaussuhteet)","Huomionarvoinen lajisto","Rehevöityminen ja miinuslajit","Puuston ja pensaston edustavuus","Ei rehevöittävä niitto tai laidunnus, tai muu vastaava hoito","Umpeenkasvu","Haitalliset vieraskasvilajit"]
["Mittarin suhteellinen painokerroin",null,null,null,2,2,2,2,1,1,1]
[]
[null,"Tee tarvitatessa usempi rivi samalle kuviolle, jos useampia puustoisten perinnebiotooppien luontotyyppejä!"]
["Kuvionro","LuTu-luontotyyppi (koodi)","LuTu-tyypin % kuviosta","Kuvion pinta-ala, ha","Mittarin arvo (0,1 -1,0)","Mittarin arvo (0,1 -1,0)","Mittarin arvo (0,1 -1,0)","Mittarin arvo (0,1 -1,0)","Mittarin arvo (0,1 -1,0)","Mittarin arvo (0,1 -1,0)","Mittarin arvo (0,1 -1,0)","Luonnonarvovastaavuus","Luonnonarvohehtaarit","METSO kohde","NATURA-tyyppi","Natura-edustavuusluokka","mete","vesilakikohde","LSL 64-65 § kohde","Uhex","Muuta"]
["121","P12.03 Havumetsälaitumet","60",0.3,0.5,0.2,1,0.7,0.5,0.9,1,{"$f":"(2*SUM(E9:H9)+SUM(I9:K9))/(2*COLUMNS(E9:H9)+COLUMNS(I9:K9))","v":0.65454545454545443},{"$f":"(PRODUCT(D9,L9))","v":0.19636363636363632},null,"ei","ei","ei","ei","ei","CR","Liittyy muihin Korpelan arvokkaisiin luontotyyppikuvioihin, METSO-, vesilaki- ja METE-kohteisiin. Puusto vanhaa kuusikkoa. Ei tarkkaa tietoa kasvilajistosta. Kenttäkerros eroaa kuitenkin läheiden OMT metsän pohjasta. Ei tietoa laidunnustilanteesta (laidunnusta ollut kuitenkin aitarakenteista päätellen vielä joku aika sitten). Muistiinpanot riittämättömät. ",{"$nulls":8}," "]

{"sheet":"Taul23","index":12,"n_rows":0,"n_cols":0,"rows_kept":0,"cut":false,"hidden":false,"merged":[]}